Workbook

Sheet Initializing
C1: ='Getting Started'!C1 -> WSU Code Compliance Calculator - WSEC 2018 & 2021 | J1: (C) 2025
C2: ='Getting Started'!C2 -> Washington State University Energy Program | J2: =VersionDate -> 2026-06-10T18:45:04
C3: ='Getting Started'!C3 -> For assistance contact: energycode@energy.wsu.edu
B4: Welcome to the WSU Code Compliance Calculator
B5: This worksheet is designed to document the qualification of building designs by the (1) R402.1.1 prescriptive path, including the R406.3 UA percent trade off for Option 1 envelope measures, and (2) R402.1.4 Total UA Alternative (compnent performance). These are both based on the requirements of the 2021 and the 2018 editions of the Washington State Energy Code (WSEC). This tool can also calculate Efficient Building Envelope Options 1.3 – 1.6 for 2018 and Options 1.1 –1.4 for 2021.
B6: We appreciate your feedback! Send us your suggestions, comments and bug reports to the email above.
B7: ENABLE MACROS: Macros must be enabled for this tool to function properly.
B8: Office 365 Users: Save this file to your LOCAL drive. To unblock macros, follow the instructions on the Unblocking Macros tab.
B9: Calculator tabs will open when macros are enabled and you click button to Accept Terms.
B10: If the tool does not open:
B11: * | C11: Have you enabled editing? Have you enabled macros? Have you saved to your harddrive?
C12: - | D12: See the text box "Excel Start Up Tips" to the right
C13: - | D13: If you missed clicking "Enable Macros" just below the Excel ribbon, close this file and open again.
B14: * | C14: What is your Excel version? This tool is not compatible with Excel for Mac or web-based versions of Excel.
C15: - | D15: Include your Excel version when you email us
B16: * | C16: Is VBA installed in your Office installation? If not, on a PC follow these steps:
C17: 1 | D17: Go to the Control Panel --> Programs --> Programs and Features
C18: 2 | D18: Find Microsoft Offcie in the list of programs. Right click it and select Change
C19: 3 | D19: In the window that opens, choose Add or Remove Features
C20: 4 | D20: In the next window, go to Installation Options -> Office Shared features, click Visual Basic for Applications and select Run from My Computer.
C21: 5 | D21: Click Continue and restart Excel.
B22: * | C22: Your antivirus may be removing VBA code or disabling macro-enabled Excel files or forcing the file to close
C23: - | D23: If Excel brings up an error message that includes "Removed Part: /xl/vbaProject.bin part", your antivirus may be removing VBA code from Excel files
C24: - | D24: Another indication that the system is blocking macro-enabled Excel files is if the file is "forced to close" before you even have a chance to enable macros or accept the user agreement.
C25: - | D25: If you get this warning, you may need to work with your IT department to allow running this file.
C26: - | D26: Please let us know what anti-virus you are using.
B28: Tips / Known Issues
B29: =IF('Getting Started'!B203="","",'Getting Started'!B203) -> * | C29: =IF('Getting Started'!C203="","",'Getting Started'!C203) -> Print button does not work in pre-2016 versions of Excel
B30: =IF('Getting Started'!B204="","",'Getting Started'!B204) ->  | C30: =IF('Getting Started'!C204="","",'Getting Started'!C204) -> - Temporary Solution: Print using the Excel Tool Bar: File / Print
B31: =IF('Getting Started'!B205="","",'Getting Started'!B205) ->  | C31: =IF('Getting Started'!C205="","",'Getting Started'!C205) -> - We plan to fix this issue. Stay tuned -- and thanks for your patience.
B32: =IF('Getting Started'!B206="","",'Getting Started'!B206) -> * | C32: =IF('Getting Started'!C206="","",'Getting Started'!C206) -> This tool is not compatible with Excel for Mac
B33: =IF('Getting Started'!B207="","",'Getting Started'!B207) ->  | C33: =IF('Getting Started'!C207="","",'Getting Started'!C207) -> - Sorry, we do not have plans to develop a Mac compatible tool.
C34: =IF('Getting Started'!B209="","",'Getting Started'!B209) -> This tool is compatible with Office 365 -- How to unblock macros
B35: =IF('Getting Started'!B209="","",'Getting Started'!B209) -> This tool is compatible with Office 365 -- How to unblock macros
B36: =IF('Getting Started'!B210="","",'Getting Started'!B210) -> * | C36: =IF('Getting Started'!C210="","",'Getting Started'!C210) -> However, it will not work if you open the calculator within Microsoft Edge. Save the file to your local drive.
B37: =IF('Getting Started'!B211="","",'Getting Started'!B211) -> * | C37: =IF('Getting Started'!C211="","",'Getting Started'!C211) -> Enabling macros requires that you change the properties of the file to unblock macros. Follow the instructions in the link that comes up when you try to open the file.
B38: =IF('Getting Started'!B212="","",'Getting Started'!B212) -> * | C38: =IF('Getting Started'!C212="","",'Getting Started'!C212) -> Here is a screenshot of Microsoft's instructions for modifying the file properties.
B39: =IF('Getting Started'!B213="","",'Getting Started'!B213) ->  | C39: =IF('Getting Started'!C214="","",'Getting Started'!C214) -> 
B40: =IF('Getting Started'!B214="","",'Getting Started'!B214) ->  | C40: =IF('Getting Started'!C215="","",'Getting Started'!C215) -> 
B41: =IF('Getting Started'!B215="","",'Getting Started'!B215) ->  | C41: =IF('Getting Started'!C216="","",'Getting Started'!C216) -> 

Sheet Getting Started
C1: WSU Code Compliance Calculator - WSEC 2018 & 2021 | J1: =Initializing!J1 -> (C) 2025
C2: Washington State University Energy Program | J2: =VersionDate -> 2026-06-10T18:45:04
C3: For assistance contact: energycode@energy.wsu.edu
C4: =IF(MacroMessage="","",MacroMessage) -> ENABLE MACROS: Macros must be enabled for this tool to function properly.
C5: =IF(IntroMessage2="","",Initializing!B8) -> Office 365 Users: Save this file to your LOCAL drive. To unblock macros, follow the instructions on the Unblocking Macros tab.
B10: Overview and Background
B11: This worksheet is designed to document the qualification of building designs by the (1) R402.1.1 prescriptive path, including the R406.3 UA percent trade off for Option 1 envelope measures, and (2) R402.1.4 Total UA Alternative (compnent performance). These are both based on the requirements of the 2021 and the 2018 editions of the Washington State Energy Code (WSEC). This tool can also calculate Efficient Building Envelope Options 1.3 – 1.6 for 2018 and Options 1.1 –1.4 for 2021.
B12: This calculator also integrates WSU's glazing schedule and the heating system sizing worksheets. If using the prescriptive PDF worksheets for compliance, you can use this tool to calculate average weighted fenestration U-factor and areas based on your window/door schedule. The heating system size for new and existing construction is also estimated. Note it does not do air conditioning sizing or zonal heating calculations.
C13: These instructions do not attempt to teach the requirements of the WSEC. If you need an overview of the Code, we recommend that you begin by looking at the resources contained on the WSU Energy Program website.
B14: Resources on the website include:
B15: * | C15: WSU Energy Code Website | D15: http://www.energy.wsu.edu/BuildingEfficiency/EnergyCode.aspx
B16: * | C16: 2021 WA State Energy Code | D16: https://sbcc.wa.gov/sites/default/files/2023-04/2021_WSEC_R_1stPrint-1_042623.pdf
B17: * | C17: 2018 WA State Energy Code | D17: https://www.sbcc.wa.gov/sites/default/files/2020-02/2018%20WSEC_R%20Final%20package.pdf
B18: * | C18: Prescriptive Checklist 2021 | D18: Under development
B19: * | C19: Prescriptive Checklist 2018 | D19: http://www.energy.wsu.edu/documents/Prescriptive%20Checklist%202018_rev%2012-4-20.pdf
B20: * | C20: IRC - WA Amendments | D20: https://www.sbcc.wa.gov/sites/default/files/2019-12/2015_IRC_Final_2.pdf#:~:text=Authority%3A%20The%20International%20Residential%20Code%20%28Chapter%2051-51%20WAC%29,reference%20by%20the%20Washington%20State%20Legislature%20in%201974.%20originalAttribute=
B21: * | C21: 2015 WSEC Appendices | D21: http://www.energy.wsu.edu/Documents/ga_2015WSEC_Appx.pdf
B22: * | C22: Additional Resources | D22: http://www.energy.wsu.edu/BuildingEfficiency/EnergyCode/AdditionalResources.aspx
B23: Send us your feedback
B24: We appreciate your feedback! Please send email suggestions, comments and bug reports to:
C25: energycode@energy.wsu.edu
B26: Options for Code Compliance
B27: The 2021 WSEC-R introduces the U-factor compliance path:
B28: * | C28: U-factor compliance path: In this appraoched dubbed the "U-factor compliance path" defined in Section R402.1.2 "Insulation and fenestration criteria", calculations of the UA value are based on the home’s proposed design and are compared to the code baseline of the same home with the thermal envelope meeting the U-factors summarized in Table R402.1.2. This Code Compliance Calculator has been developed to assist you with the UA analysis required by this pathway.
C29: If Options 1.2, 1.3 or 1.4 there are two additional baseline requirements to meet compliance based on Section 402.1.5 "Total UA Alternative": (1) The maximum vertical glazing percent in the baseline is 15% of the floor area. (2) Exempt window and door areas.are not allowed. Otherwise, the baseline does not have a maximum glazing percent and exempt window and door areas are allowed
B30: Both 2018 and 2021 WSEC-R have a Prescriptive Path. In 2021 WSEC-R it is referred to as the "R-value Alternative"
B31: * | C31: Prescriptive Path / R-value Alternative: The simplest approach that allows for unlimited glazing in most cases. Refer to insulation minimum R-values and fenestration requirements by component in table R402.1.3 in 2021 WSEC-R and Table R402.1.1 in 2018 WSEC-R. This path requires compliance with R406 fuel normalization and energy credits, following the prescriptive descriptions of insulation requirements in Option 1 of Table 406.3.
C32: If you select this path, you do not need to enter details of your proposed design in this calculator. Simply select the your Heating System Type and selection Energy Options to meet the required total credits required, per Section R406. Instead of this calculator, you may use the PDF worksheets available from our website. Select the single family worksheet for single family, townhomes and additions. Use the multifamily R2 worksheet for low rise multi-family corridor or non-corridor buildings up to three stories.
C33: We recommend using the single family and multifamily prescriptive PDF worksheets available from our website for this pathway.
B34: Both 2018 and 2021 WSEC-R have the following compliance paths:
B35: * | C35: Total UA Alternative Path: In this approach, calculations of the UA value are based on the home’s proposed design and are compared to the code baseline of the same home with insulation values as summarized in Table R402.1.1. This path requires compliance with R406 fuel normalization and energy credits, using the percent UA reduction values specified in Option 1 in Table R406.3. This Code Compliance Calculator has been developed to assist you with the UA analysis required by this pathway.
C36: Under this path, the maximum vertical glazing percent in the baseline is 15% of the floor area. Also, exempt window and door areas.are not allowed.
C37: This path is defined in Section R402.1.4 in 2018 WSEC-R and Section R402.1.5 in 2021 WSEC-R
B38: * | C38: R405 Simulated Performance Alternative Path: WSU is not aware that this approach has ever been used. The path relies on energy simulation computer program modeling software. To date, WSU has not identified software that meets the energy simulation software requirements. If you are interested in using this compliance path approach, please contact us at energycode@energy.wsu.edu to discuss this issue before submitting permit forms.
B39: * | C39: R407 Passive House Path: This new compliance path in the 2018 WSEC-R allows certified Passive House projects to achieve compliance with WSEC-R. There are requirements for documentation at plan review and final site inspection. See Passive House Northwest for more information.
C40: For more on Passive House visit | D40: https://www.phnw.org/phnw-mission
B41: The Prescriptive Path and the Total UA Alternative Approach require additional energy efficiency requirements as specified in Section R406:
B42: * | C42: R406 Additional Energy Efficiency Requirement: These requirements are based on energy credits and fuel normalization credits required by WSEC-R 2018 and 2021.
B43: Getting Started: The "Group R" tab
B44: Set Up Your Analysis
B45: Begin your analysis by answering questions in the "Analysis Set Up" area by selecting options from the drop down menus. Your responses to these questions will set up the input areas below, such that only inputs areas that are relevant to your analysis show and input areas that do not pertain are hidden and ignored. In other words, this tool is user responsive. The specific sections that hide and show in response to each question are discussed below.
B55: Inputs are in yellow cells. The classification and baseline description are automatically determined from your inputs in this section, plus the conditioned floor area (which is entered below.)
B57: Question: "What code compliance pathway are you using?:
B58: Select one of the three uses of this tool from the drop down.
B65: Options are:
B66: U-Factor Compliance Path / Total UA Alternative - Select this option, if you are using percent reductions in Total conductive UA specified in Table 406.3 to achieve Option 1 Efficient Building Envelope credits. Your design is compared to the code targets summarized in Table R402.1.1. Your design is compared to the code targets summarized in Table R402.1.1 in 2018 WSEC-R or Table R402.1.2 in 2021 WSEC-R. In calcualtion the Percent UA Reduction for Option 1, the maximum baseline window area for comparison is 15% of the floor area. Exempt wall and window areas are not included, so these input areas hide.
B67: User-Defined Baseline - This option is primarily used for remodels / alterations or for additions when doing a trade off with the existing home. There are exceptions where you would use a user-defined baseline for New Construction, such as when doing a UA trade off on a log home. An additional input area for building baseline design details opens to the right adjacent to the proposed description on the left. (Depending on the size of your screen, you may have to scroll right to see the baseline input area.)
B68: For remodels/alterations, this calculator may be used to determine if the alteration or repair uses "no more energy than the existing building or structure prior to the alteration or repair", per Section R503.1. For additions, a user-defined baseline analysis may be used for a UA trade off analysis using improvements to the existing dwelling unit to achieve energy credits for the addition. For more about user-defined baselines for additions and remodels/alterations, see "Project Building Type?" below.
B69: Prescriptive Path (Tables 406.2 and 406.3 Only) - Select this option if you are following the Prescriptive Path and would like to fill out and print Table R406.2 for and Table R406.3 without calculating the UA value or other detailed results. All input areas for building design details hide, except for the permitted floor area. Permitted floor area is used to determine the number of energy credits required.
B70: Question: "Project Building Type?"
B76: New Construction - Thermal envelope requirements for new construction of heated residential buildings are per WSEC Section 4. New construction of dwelling units requires additional energy efficiency credits per Section R406.
B77: Additions - The definition of an addition is "An extension or increase in the conditioned space floor area or height of a building or structure." Requirements for additions are per Section R502 and requirements for “Alterations” are per Section R503. Additions require additional energy efficiency credits per Section R406. Your selection is used with other responses to determine required Energy Credits; in particular additions less than 500 square feet have lower energy credit requirements than new construction of the same size.
B78: If you are doing a UA trade-off using improvements to an existing dwelling unit to achieve Option 1 energy credits for an addition, select User-Defined Baseline for your compliance path. Input areas for exempt wall and window areas hide. Tables R406.2 and R406.3 show when this option is selected.
B79: Remodel/Alteration - An alteration is defined as any construction, retrofit or renovation to an existing structure, other than repair or addition, that requires a permit. Alterations do not require additional energy efficiency requirements per Section R406.
B80: In most cases if your project is a remodel that does not include an addition, you should use the simpler spreadsheet available at:
C81: http://www.energy.wsu.edu/Documents/Alterations%20Remodel%20Worksheet.xlsx
B82: For remodels/alterations, you must select User-Defined Baseline as your compliance pathway. In conjunction with system design information, this calculator may be used to determine if the alteration or repair uses "no more energy than the existing building or structure prior to the alteration or repair", per Section R503.1. Exempt wall and window areas are not allowed, so these input areas hide. Alterations do not require additional energy efficiency requirements per Section R406, so Tables R406.2 and R406.3 hide when this option is selected.
B83: An example where you use this code compliance calculator is an addition to an existing home where there is also a remodel.
B84: For combined Addition and Alteration - Select "Addition" from the menu and be sure to enter the floor area of the addition. This is because credit requirements are based on the floor area of the addition.
B85: For more using improvements to the existing home in a UA trade off analysis per the exception in R502.1.1.1, watch the C3 training video "Using the C3 Calculator: Small Addition with User-defined Baseline" available at:
B86: https://www.energy.wsu.edu/BuildingEfficiency/EnergyCode.aspx#Permit
B87: Question: "Occupancy Type?"
B93: Your selection -- either R2 Multifamily or R3 Single family homes and duplexes -- is used with the permitted floor area and code version to determine the number of Energy Credits required per Section R406.
B94: Question: "Code Version?"
B100: Select the code version -- either WSEC 2021 or WSEC 2018 -- under which your project is permitted. Your response modifies the options in Table 406.2 and 406.3. Code version is also used with floor area and project type to determine the number of energy credits required.
B102: Table R406.2 and R406.3: Select Energy Credits and Fuel Normalization Credits
B103: Fuel Normalization Credits
B104: If WSEC 2018 is selected, Table 406.2 Fuel Normalization Credits will show. Select the system type from the drop down menu. The fuel normalization credit, energy credits from Table R406.3 and their total will show under "Total Credits".
B107: If you select an Option 3 energy credit below that is incompatible with the System Type you select, your selection will be automatically changed to a compatible system type. You will get a pop-up alerting you to the change.
B108: Energy Credits
B109: Next select Energy Credits from Table R406.3 using the drop down menus for each option. Once an option is selected a brief description of the option is shown. For a complete description, refer to WSEC. The total Energy Credits for your selections is totalled.
B110: If an Option 3 energy credits are selected that are inconsistent with your fuel normalization selection above, the fuel normalization selection will automatically adjust to the correct system type.
B111: Option 4 credits cannot be used with ductless systems. Option 4 energy credits will be set to NA if a ductless system is selected in Option 3.
B112: For Renewable Electric Energy credits, also enter the annual electrical generation per housing unit of the system in kWh, as calculated using NREL's PVWatts calculator or approved alternate.
B114: Enter Thermal Envelope Details
B115: In the next major section, details on the building's thermal envelope are entered, including areas and insulation values for windows, skylights, walls, floor, slab and ceiling or roof.
B116: Conditioned Floor Area
B117: The first input is the conditioned floor area of the proposed design. Note if you have selected to analyze a Remodel/Alteration, there is an identical input to the right for the conditioned floor area of the baseline design. Floor area is measured from the exterior face of the exterior sheathing of the exterior walls
B118: Per ANSI/RESNET/ICC 301,"Dimensions shall be measured and rounded to the nearest 1/2 foot and the square footage calculated and rounded to the nearest square foot. Dimensions shall use exterior measurements starting at the exterior finished surface of the outside wall."
B121: Exterior Doors
B122: Select the description of up to seven exterior doors from the drop down menu. Enter the quantity of each door type. Enter the width and height of the rough opening in feet and inches for each door type. Optionally enter an ID.
B123: If you have selected Prescriptive Path as your code compliance path, an additional input opens for an exempt swinging door up to 24 sq. ft. in rough opening area. If the allowable area is exceeded, an error message is displayed. The total area and UA value in this section does not include the exempt door. On the other hand, the exempt door is included in the Heating System Sizing calculation below, so it is considered in the sizing of the heating equipment.
B126: If you have data for doors you will be installing, you can enter a custom description and U-value in the database. Click on the button "Go to Custom Input". This will take you to the custom area on the Doors tab. On database tabs, enter a unique description and a NFRC-certified U-value. Window and door manufacturers can generally provide these tested U-values. You may be asked to provide manufacturer data as part of your building permit application for any such "custom" entries.
B127: On the database tab, click on the button "Return to Input" to return back to door section of the Group R tab.
B129: Your custom entries will automatically appear at the bottom of the drop down menus in the door section on the Group R tab.
B131: Overhead Glazing
B132: Enter up to five types of skylights. Enter the quantity, the width and height of the rough opening, and an optional Plan ID. As for doors, click the button "Go to Custom Input" to jump to the database tab Overhead Glazing to add custom descriptions and NFRC tested U-values.
B134: Vertical Glazing
B135: Up to 60 types of vertical glazing can be entered. Enter the quantity, the width and height of the rough opening, and an optional Plan ID. As for doors, click the button "Go to Custom Input" to jump to the database tab Vertical Glazing to add custom descriptions and NFRC tested U-values.
B136: Enter a number of Rows to Show, to reduce the input area if you don't need all 60 available input rows. Any leftover data in hidden rows is automatically excluded from calculations and ignored.
B137: As with exterior doors, if you have selected Prescriptive Path as your code compliance pathway, an additional input opens for an exempt window up to 15 sq. ft. in rough opening area. If the allowable area is exceeded, an error message is displayed. The total area and UA value in this section does not include the exempt window. On the other hand, the exempt window is included in the Heating System Sizing calculation below so it is considered in the sizing of the heating equipment.
B139: Flat/Vaulted Ceilings
B140: Up to 4 construction types for flat or vaulted ceilings can be entered. Select a description of the component from the drop down -- OR click the button Go to Custom Input to enter a description and U-value for a custom construction on the database tab Flat-Vaulted Ceilings. Enter an area and optionally a Plan ID. Custom U-values should be calculated in accordance with WSEC Appendix A.
B142: Walls (Above Grade)
B143: Up to 4 construction types for above-grade exterior walls or walls separating a conditioned space from an unconditioned space, such an unheated garage. Select a description of the component from the drop down or click the button Go to Custom Input to enter a description and U-value for a custom construction on the database tab Walls (above grade). Enter an area and optionally a Plan ID. Custom U-values must be calculated in accordance with WSEC Appendix A. For more, refer to the FAQ "U-Factors for Non-Prescriptive Constructions" available on our website at:
C144: https://www.energy.wsu.edu/BuildingEfficiency/EnergyCode/AdditionalResources.aspx#FAQs
B146: Floor (over crawl or exterior)
B147: Enter up to 4 construction types for floors over vented crawl spaces, cantilevered floors or floors over an unconditioned space, such as an unheated basement or garage. Select a description of the component from the drop down or click the button Go to Custom Input to enter a description and U-value for a custom construction on the database tab Floors. Enter an area and optionally a Plan ID. Custom U-values must be calculated in accordance with WSEC Appendix A.
B149: Slab on Grade (less than 2 feet below grade)
B150: Enter up to 4 construction types for slab on grade foundations. Select a description of the component from the drop down or click the button Go to Custom Input to enter a description and F-value for a custom construction on the database tab Slab on Grade. Enter an exterior perimeter and optionally a Plan ID.
B151: A Slab-on-Grade Floor is defined as "that portion of a slab floor of the building envelope that is in contact with the ground and that is either above grade or is less than or equal to 24 inches below the final elevation of the nearest exterior grade." The "nearest exterior grade" is where grade meets the footing.
B152: By the definition of thermal envelope, the exterior perimeter includes the perimeter separating a conditioned space and an adjacent unconditioned space, such as an attached unheated garage.
B153: For more information on slabs, refer to the FAQ title "“Slabs and Below-Grade Walls: Prescriptive Path” available on our website at:
C154: https://www.energy.wsu.edu/BuildingEfficiency/EnergyCode/AdditionalResources.aspx#FAQs
B156: Below Grade Walls and Slabs
B157: Enter up to 4 construction types for below grade walls and slabs. Select a description of the component from the drop down. Or click the button Go to Custom Input to enter a description, slab F-value and wall U-value for a custom construction on the database tab Below Grade Walls & Slabs. Optionally enter a Plan ID. Below grade walls and slabs require both area and perimeter dimensions. If you enter a custom construction, a unique description, U-value and a F-value are required.
B158: For more information, refer to the FAQ title "“Slabs and Below-Grade Walls: Prescriptive Path” available on our website at:
C159: https://www.energy.wsu.edu/BuildingEfficiency/EnergyCode/AdditionalResources.aspx#FAQs
B161: Heating System Sizing Worksheet
B162: This section provides a preliminary estimate of the heating system size. Note this calculator sizes heating systems only; it will not accurately size cooling systems. This preliminary value should be used only a placeholder until submitting permit documents before an HVAC contractor provides a more accurate heating-cooling calculation that considers air conditioning and zones.
B163: Consider using ACCA Manual J and S or NEEA's SpecPro, instead of this worksheet, as approved by AHJ per R403.7 "Equipment Sizing and Efficiency Rating".
B164: ACCA Manual J and S: | E164: https://www.acca.org/home
B165: NEEA's SpecPro: | E165: https://betterbuiltnw.com/resources/hvac-sizing-tool
B166: Special Tip: Early coordination with the HVAC contractor, the builder and the designer prior to submitting plans is critical to reduce the first cost of compliance with the code. Coordination on the design and location of the thermal distribution air handler and ductwork may result in greater flexibility when considering HVAC options.
B167: Nearest Weather Station
B168: Select the nearest weather station from the drop down menu. Note only Washington weather stations are included on the menu.
B169: The tool uses this location to automatically look up the outdoor design temperature and determine the design temperature difference.
B171: Conditioned Volume
B172: Optionally enter the conditioned volume. If you leave this cell blank an average ceiling height of 8.5 feet is assumed and the volume is calculated as the conditioned floor area multiplied by 8.5 feet. | K172: define ceiling height
B174: System Type
B175: Select the system type as either Heat Pump or All Other Systems (not heat pump).
B177: Location of Ducts
B178: Indicate the location of ducts by selecting Unducted, Conditioned Space, or Unconditioned Space from the drop down menu.
B180: Results of Heating System Sizing
B181: The remainder of this section summarizes calculation results. The final result is the Maximum Heat Equipment Output.
B183: Database Tabs
B184: Databases with insulation values for building constructions are located on white-colored tabs. Each database includes a protected (unmodifiable section) at the top with an unprotected area for adding custom descriptions and insulation values at the bottom.
B185: The protected, unmodifable sections each includes a "Most Frequently Used" section where most common constructions are selected, followed by the complete database. Construction descriptions and U-values generally correspond to constructions tabulated in WSEC Appendix A, available at:
C186: 2015 WSEC Appendices | D186: http://www.energy.wsu.edu/Documents/ga_2015WSEC_Appx.pdf
B187: To understand the construction descriptions, compare them to the corresponding tables in Appendix A.
B188: For example, compare this partial section of the database descriptions for above-grade wall constructions (in yellow on left) to Table A103.3.1(1) (on right):
B191: Example Above-Grade Wall: "R11 cavity+R5 foam STD 2x4W Lap" describes an above-grade wall with 2x4 standard-framed wood construction with lapped wood siding, having the cavity filled with R11 insulation and with R-5 foam board
B192: Entering Custom Constructions and U-values
B193: Only white areas on database tabs can be edited. Enter component descriptions and calculated U-factors. Submit the detailed calculations as part of the application for your building permit.
B194: Where proposed construction assemblies are not represented in Appendix A tables, values shall be calculated in accordance with Chapters 21-29 in Standard RS-1 listed in Chapter 5, (ASHRAE Handbook of Fundamentals) using the framing factors listed in Appendix A where applicable.
B195: Where proposed construction assemblies are not represented in Appendix A tables, values shall be calculated in accordance with Chapters 21-29 in Standard RS-1 listed in Chapter 5, (ASHRAE Handbook of Fundamentals) using the framing factors listed in Appendix A where applicable.
B196: For envelope assemblies containing metal framing, the U-factor shall be determined by one of the following methods:
B197: 1 | C197: Results of laboratory or field measurements.
B198: 2 | C198: Standard RS-25, listed in Chapter 5, where the metal framing is bonded on one or both sides to a metal skin or covering.
B199: 3 | C199: The zone method as provided in Chapter 24 of Standard RS-1, listed in Chapter 5.
B200: 4 | C200: Results of parallel path correction factors for effective framing/cavity R-values as provided in TABLE A103.3.6.1(1) : Effective R-Values for Metal Framing and Cavity Only for metal stud walls and roof/ceilings.
B202: Tips / Known Issues
B203: * | C203: Print button does not work in pre-2016 versions of Excel
C204: - Temporary Solution: Print using the Excel Tool Bar: File / Print
C205: - We plan to fix this issue. Stay tuned -- and thanks for your patience.
B206: * | C206: This tool is not compatible with Excel for Mac
C207: - Sorry, we do not have plans to develop a Mac compatible tool.
B209: This tool is compatible with Office 365 -- How to unblock macros
B210: * | C210: However, it will not work if you open the calculator within Microsoft Edge. Save the file to your local drive.
B211: * | C211: Enabling macros requires that you change the properties of the file to unblock macros. Follow the instructions in the link that comes up when you try to open the file.
B212: * | C212: Here is a screenshot of Microsoft's instructions for modifying the file properties.

Sheet Instructions (hidden)
A1: Component Performance Worksheet (CPWorksheet)
A3: These worksheets are designed to document the qualification of building designs by the component performance approach described in the 2015 and 2018 edition, Washington State Energy Code (WSEC).
A5: These instructions do not attempt to teach the requirements of the WSEC. If you need an overview of the Code, we recommend that you begin by looking at the resources contained on the WSU Energy Program website: www.energy.wsu.edu/code.
A7: Resources on the website include:
A8: · Text of the WSEC
A10: How to use the worksheets
A12: This Excel workbook contains 15 worksheets:
A13: Copyright Worksheet
A14: These instructions
A15: The Component Performance Worksheet
A16: Group R occupancies as defined by the IECC
A17: The Library Worksheets
A18: Energy Credit Options (Table 406.2)
A19: Vertical Glazing
A20: Overhead Glazing
A21: Doors
A22: Ceilings, Attic
A23: Ceilings, Vault
A24: Walls (above grade)
A25: Floors
A26: Slab on Grade
A27: Below Grade Walls & Slabs
A28: Weather
A32: The Library Worksheets
A34: The library worksheets provided the default component u-factors from the WSEC. These are the u-factors necessary to complete most projects.
A36: You can enter custom component descriptions to the library worksheets. If you have tested u-factors for windows, skylights and doors, you will want to enter them into the library, since tested u-factors tend to be more favorable to design qualification than the default values.
A38: To add new components to the library worksheets
A40: For most building components, it is important to utilize the component listings from the code. The exception is glazing and door products. Most glazing products perform much better than the default code values. If you can obtain NFRC certified u-factors for windows and doors, it is to your advantage to use them.
A42: To add data to the library:
A43: · Tab to the library worksheet you would like to edit. A blue box at the right of the screen has instructions for editing the specific worksheet. Each has somewhat different instructions.
A44: · There are two types of cells in the worksheet. White cells are for data entry; shaded cells perform calculations or summarize data. Do not attempt to enter data into the shaded cells. Do not delete rows, columns or cells. This will disrupt the indexing reference to the CPWorksheet.
A45: · Get in the habit of clearing cell contents using the delete key. Other editing functions may leave traces of entries or functions that are undesirable.
A46: · Don’t forget to save your worksheet after you make changes.
A48: Note: The component library worksheets provide the default component u-factors from the WSEC. These are the u-factors necessary to complete most projects. Each of the worksheets contains space for users to input custom components as needed. Previous versions of this workbook required opening a separate workbook containing the component libraries (CPLibrary.xls.) This current version consolidates these two workbooks into one. If you have been maintaining your own custom library entries, you will need to copy the custom entries from your original CPLibrary worksheet into the appropriate tab of this worksheet (do not copy the entire worksheets from the original CPLibrary worksheet – these entries will not be recognized by the component performance worksheets. We strongly advise that you keep your original CPLibrary worksheet as a backup.
A50: Gathering the Building Component Data
A52: To document energy code compliance, you need to gather certain preliminary information. You will need to identify all the different exterior components and measure them, based on the set of plans.
A54: Identify the Building Components
A56: First, identify the building's thermal envelope. This is the part of the building that separates the heated and unheated spaces. Each different component of the building's thermal envelope should be clearly shown on the plans. Read the component descriptions in the WSEC. Match the construction method utilized in the project with the proper code description of the component.
A58: Measure the Building Components
A60: Each component must be measured and the size of each noted. Record all measurements. List the measurements next to the component description.
A62: The following measurement conventions should be followed:
A63: · Most components are listed in terms of area in square feet (ft²). Slabs are measured by the linear foot (ft), based on the length of the conditioned slab perimeter.
A64: · Use the rough opening area for windows and doors.
A66: You may want to print out a blank copy of the Component Performance CPWorksheet. Keep notes on the sheet as you take measurements from the plans.
A68: Working with the CPWorksheet
A70: Open the Worksheet
A72: Immediately save the workbook under a new file name using the Save As function. Give it a name specific to the project you are currently working on.
A74: The worksheets provide detailed documentation for the plans examiner and inspector. Do not skimp on details. Provide reference to the plans on the CPWorksheet using the “Plan ID” cell. Provide itemized glazing and door schedules, as well as area inputs on other building components.
A76: The top of the worksheet asks for general data on the building and includes a summary of the data entry performed in the rest of the worksheet.
A78: The Proposed Design Values at the top of the worksheet are a summary of the data entered on the rest of the worksheet, and perform the calculation required by WSEC R402.1.4 Total UA alternative.
A80: The Code Target Values on the top of the worksheet perform the calculations as prescribed in the WSEC R402.1.4 Total UA alternative.
A82: Below the Proposed Design Values and the Code Target Values are the Target UA Total, and the Proposed UA Total. To document compliance with the WSEC, the Proposed UA Total must be less than or equal to the Target UA Total. In addition, you must select at least Energy Credit options, listed at the bottom of the worksheet, for a total of at least 1.5 credits to meet minimum WSEC requirements for a small dwelling unit, 3.5 credits for a medium dwelling unit, and 4.5 credits for large dwelling unit. The CPWorksheet will add the note “Qualifies” next to the Target and Proposed UA totals and Energy Credits, when these requirements are met. You can not trade surplus Energy Credits for minimum envelope requirements.
A84: As you page down, you will find blank schedules for each component of the building. This is where most of the data entry work is completed. For each component, complete as many rows as needed to document your project.
A86: You only need to fill in cells that apply to your project. The CPWorksheets have been developed to accommodate fairly complex structures with numerous building components. Most projects will only utilize a fraction of the open cells on the CPWorksheet. For example, most residential structures only use one above grade wall type. In this case, only complete one row on the in the Walls (Above Grade) schedule; the other three rows would remain blank.
A88: A complete schedule for glazing and doors is required. Plans examiners need to be able to compare the CPWorksheet entries to the plans and to the completed structure. For each glazing or door model and size, a row on the schedule should be completed.
A90: Data Entry
A92: There are two types of cells in the CPWorksheet. Yellow cells are for data entry; shaded cells perform calculations or summarize data. Do not attempt to enter data into the shaded cells.
A94: The worksheet includes tips on data entry. Cells with tips can be identified by a red flag in the upper right corner of the cell. To view comments one at a time, simply place the cursor over the flag. A text box will appear with a tip on the specific cell.
A96: To view all the cell comments, go to the Excel menu bar, select View, then Comments. This will open all of the text boxes. To close the comments, repeat the selection, View, comments. This provides a good overview for first time users. If you need additional help viewing comments, use the Excel help menu.
A98: Help?
A100: WSU Energy Program will provide limited direct support for this product. Due to limited funding, it is simply not possible to complete forms for the public.
A102: WSU Energy Program does encourage e-mail input on this product. Comments from users will be used to update the worksheets and improve these instructions. Send your comments to energycode@energy.wsu.edu
A104: Changes and Updates
A107: The copyright page includes a version number of the workbook. If a change is required, a new version of the worksheets will be posted on our web page. Check the web site periodically to assure you are using the most recent version.
A108: Cheating
A110: These worksheets contain password protected cells that should not be edited. Plans examiners should be aware that this is not a 100% foolproof method of preventing tampering with the worksheets by unethical users; review submissions carefully. Editing cells in protected areas is a violation of the WSU Energy Program Copyright.
A112: Copyright Restrictions
A114: Copyright: Washington State University Extension Energy Program*
A115: © 2020
A117: *WSUEEP grants limited, conditional permission to Designated Users for:
A118: 1. Creation and distribution of free copies of the Spreadsheets and Workbooks, including electronic reproduction;
A119: 2. Editing of unprotected cells; and
A120: 3. Printing results from the Workbooks;
A122: The condition for permission is that the source of any materials copied or used from the Spreadsheets or Workbooks shall be acknowledged as: "Copied by permission from Washington State University Extension Energy Program."
A124: No other use or purpose for copying is permitted including, without limitation, changing password protected cells in the Workbooks or selling or using the Spreadsheets and Workbooks in any way calculated to derive profit as a product or service. Report any violations of this Copyright Policy to: energycode@energy.wsu.edu.
A126: All other rights reserved.

Sheet Unblocking Macros
C1: ='Getting Started'!C1 -> WSU Code Compliance Calculator - WSEC 2018 & 2021 | J1: (C) 2024
C2: ='Getting Started'!C2 -> Washington State University Energy Program | J2: =VersionDate -> 2026-06-10T18:45:04
C3: ='Getting Started'!C3 -> For assistance contact: energycode@energy.wsu.edu
C4: =IF('Getting Started'!C178="","",'Getting Started'!C178) -> 
B5: This tool is compatible with Office 365
B6: This tool is compatible with Office 365. However, it will not work if you open the calculator within Microsoft Edge. Save the file to your local drive.
B7: You also need to unblock macros, which Microsoft has made more more difficult in Office 365.
B8: There are two methods to unblock macros. We recommend you add a trusted Windows Explorer folder within Excel. Then if you open an Excel worksheet that you have saved to a trusted folder, it will automatically open with macros enabled. You only need to do this once, so it is the easiest method to follow. It is very important if you do this that you you only save files you trust to your trusted location.
B9: A second method is to change the properties of each file to unblock their macros. This is more tedious because you have to do it every time you download a new version.
B10: Adding a trusted Windows Explorer folder
B12: Modifying the properties of a file to unblock macros
B13: * | C13: Here is a screenshot of Microsoft's instructions for modifying the file properties.
C14: =IF('Getting Started'!C183="","",'Getting Started'!C183) -> 
C15: =IF('Getting Started'!C184="","",'Getting Started'!C184) -> 
C16: =IF('Getting Started'!C185="","",'Getting Started'!C185) -> 

Sheet Copyright
B1: =Initializing!C1 -> WSU Code Compliance Calculator - WSEC 2018 & 2021 | G1: ENABLE MACROS: Macros must be enabled for this tool to function properly.
B2: Version: WSU_C32021_20260610a~Master.xlsm, 6/10/2026 6:45:04 PM | G2: Office 365 Users: Save this file to your LOCAL drive.
B3: Tool Revision Date: | C3: 2026-06-10T18:45:04 | G3: Calculator tabs will open after macros are enabled and terms of use are accepted.
B4: Your Excel Version: | C4: 2019
C73: SheetProtection | D73: Protected
C74: SheetsUnhidden | D74: Calculation Sheets Hidden
C75: Mask | D75: 371753209829
C77: Current IP Address | D77: 2607:fa78:118e:1:a0b2:cef6:7d6d:26a
C78: Registered IP Address
C81: First Name | D81: Carolyn
C82: Last Name | D82: Roos
C83: Registration Date: | D83: 2020-08-21
C84: Version | D84: Version: 2015-2018 Total UA Alternative Worksheet~20200819~C2200-1.xlsm, 8/19/2020 3:11:38 PM | H84: vb
C85: Company | D85: WSUEP
C86: Demographic
C87: ContactInfo1
C88: ContactInfo2
C89: ContactInfo3
C90: ContactInfo4
C91: City | D91: Olympia
C92: State
C93: Zipcode
C94: Add to Mailing List? | D94: No
C95: Registrations with this file | D95: 0
C103: End of calculation area

Sheet Group R (hidden)
D1: =IF(MacroMessage="","",MacroMessage) -> ENABLE MACROS: Macros must be enabled for this tool to function properly. | S1: =IFERROR(CONCATENATE("UA Red=",ROUND(N43,1)," (",ROUND(N42*100,1),"%)"),"--") -> UA Red=39.8 (14.5%) | AK1: Prototypes
C2: ='Getting Started'!$C$1 -> WSU Code Compliance Calculator - WSEC 2018 & 2021 | M2: Inputs | O2: Results | AK2: id_prototypes | AL2: prototype | AM2: Tons | AN2: Furnsize | AO2: SDloc | AP2: SDArea | AQ2: RDloc | AR2: RDArea | AS2: Afloorcon | AT2: Volume | AU2: Afloorext | AV2: Aextwall | AW2: Aceiling | AX2: AwinN | AY2: AwinE | AZ2: AwinS | BA2: AwinW | BB2: Adoor | BC2: Foundtype | BD2: Afootprint | BE2: Pfootprint | BF2: HeightAG | BG2: HeightBG | BH2: StackHeight | BI2: FanCFM | BJ2: achattic | BK2: achcrawl | BL2: WH | BM2: WH_size | BN2: HPWH_performance | BO2: ducted | BP2: WH_fan | BQ2: WH_loc | BR2: InteractionFactor | BS2: prototype_desc | BT2: btype | BU2: occupants_per_unit | BV2: occupants | BW2: numunits | BX2: height_per_floor | BY2: floors_per_building | BZ2: total_height | CA2: baseductsinside | CB2: bedrooms_per_unit | CC2: reqvent | CD2: glazing_pct_hfa | CE2: perim_width | CF2: perim_length | CG2: seemtemplate_sort | CH2: official_rtf_prototype | CI2: sqft_per_unit | CJ2: sizecat | CK2: fan_cfm_per_unit | CL2: wh_size_per_unit | CM2: floor_ins_area | CN2: wall_ins_area | CO2: bsmtwall_ins_area | CP2: window_area | CQ2: slab_area | CR2: wall_to_floor_area | CS2: duct_area
AK3: 1 | AL3: c1344 | AM3: 2.5 | AN3: 17.58427263 | AO3: Crawl | AP3: 240 | AQ3: Attic | AR3: 50 | AS3: 1344 | AT3: 10752 | AU3: 0 | AV3: 1184 | AW3: 1344 | AX3: 43.68 | AY3: 43.68 | AZ3: 43.68 | BA3: 43.68 | BB3: 40 | BC3: 1 | BD3: 1344 | BE3: 148 | BF3: 1 | BG3: 2 | BH3: 8 | BI3: 50 | BJ3: 4.5 | BK3: 4.5 | BL3: 1 | BM3: 50 | BN3: 4 | BO3: 0 | BP3: 0 | BQ3: 1 | BR3: 0.65 | BS3: sf home | BT3: sf | BU3: 2.39184953 | BV3: 2.39184953 | BW3: 1 | BX3: 8 | BY3: 1 | BZ3: 8 | CA3: FALSE | CB3: 3 | CC3: 70.32 | CD3: 0.13 | CE3: 32 | CF3: 42 | CG3: 1 | CH3: TRUE | CI3: 1344 | CJ3: 1500 | CK3: 50 | CL3: 50 | CM3: 1344 | CN3: 969.28 | CO3: 0 | CP3: 174.72 | CQ3: 0 | CR3: 0.880952381 | CS3: 290
C4: Project Information | G4: Messages / Comments * | J4: =IF(Menu_UseOfCalculator=MenuItem_UserDefinedBaseline,"","RESULT=") -> RESULT= | K4: =IFERROR(IF(Menu_UseOfCalculator=MenuItem_UserDefinedBaseline,"",J343),"") -> PASS | S4: User Work Area | AK4: 2 | AL4: s1344 | AM4: 2.5 | AN4: 17.58427263 | AO4: Attic | AP4: 240 | AQ4: Attic | AR4: 50 | AS4: 1344 | AT4: 10752 | AU4: 0 | AV4: 1184 | AW4: 1344 | AX4: 43.68 | AY4: 43.68 | AZ4: 43.68 | BA4: 43.68 | BB4: 40 | BC4: 2 | BD4: 1344 | BE4: 148 | BF4: 0 | BG4: 0 | BH4: 8 | BI4: 50 | BJ4: 4.5 | BK4: 4.5 | BL4: 1 | BM4: 50 | BN4: 4 | BO4: 0 | BP4: 0 | BQ4: 1 | BR4: 0.65 | BS4: sf home | BT4: sf | BU4: 2.39184953 | BV4: 2.39184953 | BW4: 1 | BX4: 8 | BY4: 1 | BZ4: 8 | CA4: FALSE | CB4: 3 | CC4: 70.32 | CD4: 0.13 | CE4: 32 | CF4: 42 | CG4: 1 | CH4: TRUE | CI4: 1344 | CJ4: 1500 | CK4: 50 | CL4: 50 | CM4: 0 | CN4: 969.28 | CO4: 0 | CP4: 174.72 | CQ4: 1344 | CR4: 0.880952381 | CS4: 290
D5: 2100 sq. ft. single family medium dwelling unit | G5: =IF(AND(K4="Pass",Menu_UseOfCalculator=Item_Use_CompleteForms),"Credit requirements are met",IF(Menu_UseOfCalculator=MenuItem_NonDwellingUnit,"-",IF(OR(AND(H39>0,N39>0,H66>0),Menu_UseOfCalculator=Item_Use_CompleteForms),IF(N40<H40,"Credit requirements are not met. Select energy credits from Tables 406.2 and 406.3 below",""),""))) ->  | AK5: 3 | AL5: c2200 | AM5: 4 | AN5: 23.44569684 | AO5: Crawl | AP5: 300 | AQ5: Attic | AR5: 80 | AS5: 2200 | AT5: 18700 | AU5: 200 | AV5: 2210 | AW5: 1784 | AX5: 91.3 | AY5: 91.3 | AZ5: 91.3 | BA5: 91.3 | BB5: 40 | BC5: 1 | BD5: 1584 | BE5: 160 | BF5: 1 | BG5: 2 | BH5: 17 | BI5: 50 | BJ5: 4.5 | BK5: 4.5 | BL5: 1 | BM5: 50 | BN5: 4 | BO5: 0 | BP5: 0 | BQ5: 1 | BR5: 0.65 | BS5: sf home | BT5: sf | BU5: 2.794416244 | BV5: 2.794416244 | BW5: 1 | BX5: 8.5 | BY5: 2 | BZ5: 17 | CA5: FALSE | CB5: 4 | CC5: 103.5 | CD5: 0.166 | CE5: 36 | CF5: 44 | CG5: 2 | CH5: TRUE | CI5: 2200 | CJ5: 5000 | CK5: 50 | CL5: 50 | CM5: 1784 | CN5: 1804.8 | CO5: 0 | CP5: 365.2 | CQ5: 0 | CR5: 1.004545455 | CS5: 380
G6: =IF(Menu_UseOfCalculator<>Item_Use_CompleteForms,G364,"") ->  | AK6: 4 | AL6: s2200 | AM6: 4 | AN6: 23.44569684 | AO6: Attic | AP6: 300 | AQ6: Attic | AR6: 80 | AS6: 2200 | AT6: 18700 | AU6: 200 | AV6: 2210 | AW6: 1784 | AX6: 91.3 | AY6: 91.3 | AZ6: 91.3 | BA6: 91.3 | BB6: 40 | BC6: 2 | BD6: 1584 | BE6: 160 | BF6: 0 | BG6: 0 | BH6: 17 | BI6: 50 | BJ6: 4.5 | BK6: 4.5 | BL6: 1 | BM6: 50 | BN6: 4 | BO6: 0 | BP6: 0 | BQ6: 1 | BR6: 0.65 | BS6: sf home | BT6: sf | BU6: 2.794416244 | BV6: 2.794416244 | BW6: 1 | BX6: 8.5 | BY6: 2 | BZ6: 17 | CA6: FALSE | CB6: 4 | CC6: 103.5 | CD6: 0.166 | CE6: 36 | CF6: 44 | CG6: 2 | CH6: TRUE | CI6: 2200 | CJ6: 5000 | CK6: 50 | CL6: 50 | CM6: 200 | CN6: 1804.8 | CO6: 0 | CP6: 365.2 | CQ6: 1584 | CR6: 1.004545455 | CS6: 380
G7: =IF(Menu_UseOfCalculator=Item_Use_CompleteForms,"",IFERROR(IF(J18<>"","",CONCATENATE(I335,I334)),"")) -> UA Reduction = 39.78, Proposed UA is better than baseline by 15% | AK7: 5 | AL7: b2688 | AM7: 3.5 | AN7: 17.58427263 | AO7: In | AP7: 0 | AQ7: Attic | AR7: 40 | AS7: 2688 | AT7: 22848 | AU7: 0 | AV7: 1480 | AW7: 1344 | AX7: 94.08 | AY7: 94.08 | AZ7: 94.08 | BA7: 94.08 | BB7: 40 | BC7: 4 | BD7: 1344 | BE7: 148 | BF7: 0.5 | BG7: 6.5 | BH7: 10 | BI7: 50 | BJ7: 4.5 | BK7: 4.5 | BL7: 1 | BM7: 50 | BN7: 4 | BO7: 0 | BP7: 0 | BQ7: 4 | BR7: 0.65 | BS7: sf home | BT7: sf | BU7: 2.946236559 | BV7: 2.946236559 | BW7: 1 | BX7: 10 | BY7: 2 | BZ7: 20 | CA7: FALSE | CB7: 4 | CC7: 118.14 | CD7: 0.14 | CE7: 32 | CF7: 42 | CG7: 3 | CH7: TRUE | CI7: 2688 | CJ7: 5000 | CK7: 50 | CL7: 50 | CM7: 0 | CN7: 1063.68 | CO7: 1036 | CP7: 376.32 | CQ7: 0 | CR7: 0.9360119048 | CS7: 40
G8: =IFERROR(IF(K29="","",IF(Menu_UseOfCalculator=MenuItem_UFactorPath,IF(SUM(J29:J36)>0,"A U-factor exceeds maximum allowed by U-factor Path",""),"")),"") -> 
G9: =IF(AND(Menu_UseOfCalculator=MenuItem_UserDefinedBaseline,Menu_ProjectType="New Construction"),"Check: User-Defined Baseline is not typically used for New Construction. Log homes are an example of new construction requiring User Defined Baseline","") -> 
C10: Contact Information | G10: =IF(Menu_UseOfCalculator=MenuItem_NonDwellingUnit,"No credits required for non-dwelling unit",IF(SUM(AF18:AF20)>0,"Correct input errors below",IF(OR(Menu_Option1="",Menu_Option1="Not Selected"),"",IFERROR(IF(Menu_UseOfCalculator=MenuItem_UserDefinedBaseline,"",IF(Menu_UseOfCalculator<>Item_Use_CompleteForms,IF(G786="","",G786),"")),"")))) -> UA reduction meets percent target of selected Option 1.2 | AK10: 6 | AL10: b5000 | AM10: 6 | AN10: 35.16854525 | AO10: In | AP10: 0 | AQ10: Attic | AR10: 60 | AS10: 5000 | AT10: 40100 | AU10: 200 | AV10: 2788 | AW10: 1800 | AX10: 187.5 | AY10: 187.5 | AZ10: 187.5 | BA10: 187.5 | BB10: 40 | BC10: 4 | BD10: 1600 | BE10: 164 | BF10: 0.5 | BG10: 6.5 | BH10: 17 | BI10: 50 | BJ10: 4.5 | BK10: 4.5 | BL10: 1 | BM10: 50 | BN10: 4 | BO10: 0 | BP10: 0 | BQ10: 4 | BR10: 0.65 | BS10: sf home | BT10: sf | BU10: 3.935566237 | BV10: 3.935566237 | BW10: 1 | BX10: 10 | BY10: 3 | BZ10: 30 | CA10: FALSE | CB10: 4 | CC10: 187.5 | CD10: 0.15 | CE10: 32 | CF10: 50 | CH10: FALSE | CI10: 5000 | CJ10: 9999 | CK10: 50 | CL10: 50 | CM10: 200 | CN10: 1998 | CO10: 1148 | CP10: 750 | CQ10: 0 | CR10: 0.7872 | CS10: 60
G11: =IF(OR(Menu_UseOfCalculator=Item_Use_CompleteForms,Menu_ProjectType=Item_ProjectType_RemodelAlteration),"",IF(AND(M31>0.15*H66,F377="Yes"),"Vertical glazing area of proposed design exceeds 15% of floor area. Baseline window area set to 15% of floor area",CONCATENATE("Window area is ",ROUND(M31/H66*100,0),"% of floor area"))) -> Window area is 6% of floor area | AK11: 7 | AL11: c2460 | AM11: 6 | AN11: 23.44569684 | AO11: In | AP11: 280 | AQ11: In | AR11: 70 | AS11: 2460 | AT11: 20910 | AU11: 0 | AV11: 2193 | AW11: 820 | AX11: 92.25 | AY11: 92.25 | AZ11: 92.25 | BA11: 92.25 | BB11: 60 | BC11: 1 | BD11: 821.5 | BE11: 86 | BF11: 1 | BG11: 2 | BH11: 25.5 | BI11: 150 | BJ11: 4.5 | BK11: 4.5 | BL11: 1 | BM11: 150 | BN11: 4 | BO11: 0 | BP11: 0 | BQ11: 1 | BR11: 0.65 | BS11: garden style | BT11: mf | BU11: 2.25 | BV11: 6.75 | BW11: 3 | BX11: 8.5 | BY11: 3 | BZ11: 25.5 | CA11: TRUE | CB11: 2 | CC11: 141.3 | CD11: 0.15 | CE11: 26.5 | CF11: 31 | CH11: FALSE | CI11: 820 | CJ11: 1500 | CK11: 50 | CL11: 50 | CM11: 821.5 | CN11: 1764 | CO11: 0 | CP11: 369 | CQ11: 0 | CR11: 0.8914634146 | CS11: 350
G12: =G908 -> -
G13: =IF(Switch_ShowVentilationCalculator="Hide","--",IF(Menu_UseOfCalculator=Item_Use_CompleteForms,"",IF(F249<>"Error",IF(F249<>"",CONCATENATE(E249,": ",F249," ",G249," with Run Time Percent of ",F245*100,"%, ",F246, ", ",F247),""),CONCATENATE(E249,": incomplete ventilation inputs")))) -> Whole House Mechanical Ventilation Airflow Rate: 68.75 CFM with Run Time Percent of 100%, Balanced, Not Distributed | AK13: vvvvvvvv Not used in 2018 WSREC Analysis | AS13: Not used in 2018 WSREC Analysis | AW13: Not used in 2018 WSREC Analysis | BA13: Not used in 2018 WSREC Analysis | BE13: Not used in 2018 WSREC Analysis | BI13: Not used in 2018 WSREC Analysis | BM13: Not used in 2018 WSREC Analysis
G14: =IF(Switch_ShowDistributionCalculator="Hide","--",IF(Menu_UseOfCalculator=Item_Use_CompleteForms,"",IF(Switch_DuctTestingRequired="Yes",CONCATENATE(F268,": ",ROUND(G268,0)," ",H268),""))) -> Maximum allowable total measured duct leakage: 84 CFM25 | AK14: 10 | AL14: c1500 | AM14: 6 | AN14: 35.16854525 | AO14: Crawl | AP14: 100 | AQ14: Attic | AR14: 50 | AS14: 1500 | AT14: 14250 | AU14: 0 | AV14: 1259 | AW14: 500 | AX14: 48.75 | AY14: 48.75 | AZ14: 48.75 | BA14: 48.75 | BB14: 40 | BC14: 1 | BD14: 500 | BE14: 90 | BF14: 1 | BG14: 2 | BH14: 28.5 | BI14: 50 | BJ14: 4.5 | BK14: 4.5 | BL14: 1 | BM14: 50 | BN14: 4 | BO14: 0 | BP14: 0 | BQ14: 1 | BR14: 0.65 | BS14: townhome | BT14: sf | BU14: 1.69 | BV14: 1.69 | BW14: 1 | BX14: 9.5 | BY14: 3 | BZ14: 28.5 | CA14: FALSE | CB14: 3 | CC14: 75 | CD14: 0.13 | CE14: 20 | CF14: 25 | CG14: 4 | CH14: TRUE | CI14: 1500 | CJ14: 5000 | CK14: 50 | CL14: 50 | CM14: 500 | CN14: 1024 | CO14: 0 | CP14: 195 | CQ14: 0 | CR14: 0.8393333333 | CS14: 150
G15: * Results assume your inputs are complete and correct. Results do not constitute an approval. Analysis should be reviewed by your AHJ. | AK15: =AK14+1 -> 11 | AL15: s1500 | AM15: 6 | AN15: 35.16854525 | AO15: Attic | AP15: 20 | AQ15: Attic | AR15: 50 | AS15: 1500 | AT15: 14250 | AU15: 0 | AV15: 1259 | AW15: 500 | AX15: 48.75 | AY15: 48.75 | AZ15: 48.75 | BA15: 48.75 | BB15: 40 | BC15: 2 | BD15: 500 | BE15: 90 | BF15: 0 | BG15: 0 | BH15: 28.5 | BI15: 50 | BJ15: 4.5 | BK15: 4.5 | BL15: 1 | BM15: 50 | BN15: 4 | BO15: 0 | BP15: 0 | BQ15: 1 | BR15: 0.65 | BS15: townhome | BT15: sf | BU15: 1.69 | BV15: 1.69 | BW15: 1 | BX15: 9.5 | BY15: 3 | BZ15: 28.5 | CA15: FALSE | CB15: 3 | CC15: 75 | CD15: 0.13 | CE15: 20 | CF15: 25 | CG15: 5 | CH15: TRUE | CI15: 1500 | CJ15: 5000 | CK15: 50 | CL15: 50 | CM15: 0 | CN15: 1024 | CO15: 0 | CP15: 195 | CQ15: 500 | CR15: 0.8393333333 | CS15: 70
C16: ANALYSIS SET UP | AJ16: Add view tables only | AK16: =AK15+1 -> 12 | AL16: s1000 | AM16: 6 | AN16: 35.16854525 | AO16: In | AP16: 0 | AQ16: In | AR16: 0 | AS16: 26400 | AT16: 237600 | AU16: 0 | AV16: 10152 | AW16: 8800 | AX16: 990 | AY16: 990 | AZ16: 990 | BA16: 990 | BB16: 84 | BC16: 2 | BD16: 8800 | BE16: 376 | BF16: 0 | BG16: 0 | BH16: 27 | BI16: 1200 | BJ16: 4.5 | BK16: 4.5 | BL16: 1 | BM16: 1200 | BN16: 4 | BO16: 0 | BP16: 0 | BQ16: 1 | BR16: 0.65 | BS16: double loaded corridor | BT16: mf | BU16: 1.69 | BV16: 40.56 | BW16: 24 | BX16: 9 | BY16: 3 | BZ16: 27 | CA16: TRUE | CB16: 2 | CC16: 1332 | CD16: 0.15 | CE16: 88 | CF16: 100 | CG16: 6 | CH16: TRUE | CI16: 1100 | CJ16: 1500 | CK16: 50 | CL16: 50 | CM16: 0 | CN16: 6108 | CO16: 0 | CP16: 3960 | CQ16: 8800 | CR16: 0.3845454545 | CS16: 0
E17: What code compliance pathway are you using? | F17: Total UA Alternative, Whole Building Trade Off Analysis | M17: =IF(Menu_ProjectType="","Error: Select from drop down",(IF(AND(Menu_ProjectType=Item_ProjectType_RemodelAlteration,Menu_UseOfCalculator=MenuItem_UFactorPath),"Error: For Remodels, select User-Defined Baseline.",""))) ->  | AK17: 13 | AL17: c1904 | AM17: 4 | AN17: 17.58427263 | AO17: In | AP17: 280 | AQ17: In | AR17: 70 | AS17: 1904 | AT17: 16184 | AU17: 0 | AV17: 1632 | AW17: 952 | AX17: 71.4 | AY17: 71.4 | AZ17: 71.4 | BA17: 71.4 | BB17: 40 | BC17: 1 | BD17: 952 | BE17: 96 | BF17: 1 | BG17: 2 | BH17: 17 | BI17: 100 | BJ17: 4.5 | BK17: 4.5 | BL17: 1 | BM17: 100 | BN17: 4 | BO17: 0 | BP17: 0 | BQ17: 1 | BR17: 0.65 | BS17: garden style | BT17: mf | BU17: 1.69 | BV17: 3.38 | BW17: 2 | BX17: 8.5 | BY17: 2 | BZ17: 17 | CA17: TRUE | CB17: 2 | CC17: 102.12 | CD17: 0.15 | CE17: 28 | CF17: 34 | CG17: 7 | CH17: FALSE | CI17: 952 | CJ17: 1500 | CK17: 50 | CL17: 50 | CM17: 952 | CN17: 1306.4 | CO17: 0 | CP17: 285.6 | CQ17: 0 | CR17: 0.8571428571 | CS17: 350
E18: Project Building Type? | F18: New Construction | J18: =IF(Menu_ProjectType="","Error: Select from drop down",(IF(AND(Menu_ProjectType=Item_ProjectType_RemodelAlteration,Menu_UseOfCalculator=MenuItem_UFactorPath),"Or, select either New Construction or Addition with this compliance path.",IF(AND(Menu_UseOfCalculator=MenuItem_UserDefinedBaseline,Menu_ProjectType<>Item_ProjectType_RemodelAlteration),"Select Addition / Remodel / Alteration with this Path","")))) ->  | AF18: =IF(J18<>"",1,0) -> 0 | AK18: 14 | AL18: c2856 | AM18: 6 | AN18: 23.44569684 | AO18: In | AP18: 280 | AQ18: In | AR18: 70 | AS18: 2856 | AT18: 24276 | AU18: 0 | AV18: 2448 | AW18: 952 | AX18: 107.1 | AY18: 107.1 | AZ18: 107.1 | BA18: 107.1 | BB18: 60 | BC18: 1 | BD18: 952 | BE18: 96 | BF18: 1 | BG18: 2 | BH18: 25.5 | BI18: 150 | BJ18: 4.5 | BK18: 4.5 | BL18: 1 | BM18: 150 | BN18: 4 | BO18: 0 | BP18: 0 | BQ18: 1 | BR18: 0.65 | BS18: garden style | BT18: mf | BU18: 1.69 | BV18: 5.07 | BW18: 3 | BX18: 8.5 | BY18: 3 | BZ18: 25.5 | CA18: TRUE | CB18: 2 | CC18: 153.18 | CD18: 0.15 | CE18: 28 | CF18: 34 | CG18: 7 | CH18: FALSE | CI18: 952 | CJ18: 1500 | CK18: 50 | CL18: 50 | CM18: 952 | CN18: 1959.6 | CO18: 0 | CP18: 428.4 | CQ18: 0 | CR18: 0.8571428571 | CS18: 350
E19: Occupancy Type? | F19: R3 Single family dwellings and townhouses | J19: =IF(ISERROR(VLOOKUP(F19,N400:N401,1,FALSE)),"Error: Select option from drop down","") ->  | AF19: =IF(J19<>"",1,0) -> 0 | AK19: 15 | AL19: s1904 | AM19: 4 | AN19: 17.58427263 | AO19: In | AP19: 280 | AQ19: In | AR19: 70 | AS19: 1904 | AT19: 16184 | AU19: 0 | AV19: 1632 | AW19: 952 | AX19: 71.4 | AY19: 71.4 | AZ19: 71.4 | BA19: 71.4 | BB19: 40 | BC19: 2 | BD19: 952 | BE19: 96 | BF19: 0 | BG19: 0 | BH19: 17 | BI19: 100 | BJ19: 4.5 | BK19: 4.5 | BL19: 1 | BM19: 100 | BN19: 4 | BO19: 0 | BP19: 0 | BQ19: 1 | BR19: 0.65 | BS19: garden style | BT19: mf | BU19: 1.69 | BV19: 3.38 | BW19: 2 | BX19: 8.5 | BY19: 2 | BZ19: 17 | CA19: TRUE | CB19: 2 | CC19: 102.12 | CD19: 0.15 | CE19: 28 | CF19: 34 | CG19: 7 | CH19: FALSE | CI19: 952 | CJ19: 1500 | CK19: 50 | CL19: 50 | CM19: 0 | CN19: 1306.4 | CO19: 0 | CP19: 285.6 | CQ19: 952 | CR19: 0.8571428571 | CS19: 350
E20: Code Version? | F20: WSEC 2021 | J20: =IF(ISERROR(VLOOKUP(F20,K400:K401,1,FALSE)),"Error: Select option from drop down","") ->  | AF20: =IF(Menu_CodeVersion="WSEC 2021",0,IF(J20<>"",1,0)) -> 0 | AK20: 16 | AL20: s2856 | AM20: 6 | AN20: 23.44569684 | AO20: In | AP20: 280 | AQ20: In | AR20: 70 | AS20: 2856 | AT20: 24276 | AU20: 0 | AV20: 2448 | AW20: 952 | AX20: 107.1 | AY20: 107.1 | AZ20: 107.1 | BA20: 107.1 | BB20: 60 | BC20: 2 | BD20: 952 | BE20: 96 | BF20: 0 | BG20: 0 | BH20: 25.5 | BI20: 150 | BJ20: 4.5 | BK20: 4.5 | BL20: 1 | BM20: 150 | BN20: 4 | BO20: 0 | BP20: 0 | BQ20: 1 | BR20: 0.65 | BS20: garden style | BT20: mf | BU20: 1.69 | BV20: 5.07 | BW20: 3 | BX20: 8.5 | BY20: 3 | BZ20: 25.5 | CA20: TRUE | CB20: 2 | CC20: 153.18 | CD20: 0.15 | CE20: 28 | CF20: 34 | CG20: 7 | CH20: FALSE | CI20: 952 | CJ20: 1500 | CK20: 50 | CL20: 50 | CM20: 0 | CN20: 1959.6 | CO20: 0 | CP20: 428.4 | CQ20: 952 | CR20: 0.8571428571 | CS20: 350
E21: Classification: | F21: =IF($H$66>0,CONCATENATE($F$400," -- ",ROUND(H66,0)," sq. ft."),"Enter floor area below to determine classification") -> Medium Dwelling Unit -- 2100 sq. ft. | AK21: 17 | AL21: s952 | AM21: 6 | AN21: 35.16854525 | AO21: In | AP21: 280 | AQ21: In | AR21: 70 | AS21: 7616 | AT21: 64736 | AU21: 0 | AV21: 6528 | AW21: 3808 | AX21: 285.6 | AY21: 285.6 | AZ21: 285.6 | BA21: 285.6 | BB21: 160 | BC21: 2 | BD21: 3808 | BE21: 328 | BF21: 0 | BG21: 0 | BH21: 17 | BI21: 400 | BJ21: 4.5 | BK21: 4.5 | BL21: 1 | BM21: 400 | BN21: 4 | BO21: 0 | BP21: 0 | BQ21: 1 | BR21: 0.65 | BS21: garden style | BT21: sf | BU21: 1.69 | BV21: 13.52 | BW21: 8 | BX21: 8.5 | BY21: 2 | BZ21: 17 | CA21: TRUE | CB21: 2 | CC21: 408.48 | CD21: 0.15 | CE21: 28 | CF21: 136 | CG21: 7 | CH21: TRUE | CI21: 952 | CJ21: 1500 | CK21: 50 | CL21: 50 | CM21: 0 | CN21: 5225.6 | CO21: 0 | CP21: 1142.4 | CQ21: 3808 | CR21: 0.8571428571 | CS21: 350
E22: Baseline Description: | F22: =IFERROR(IF(Menu_UseOfCalculator=MenuItem_NonDwellingUnit,"U-factor Table",IF(F629=0,"",CONCATENATE(F629," - ",VLOOKUP(Menu_UseOfCalculator,Table_UseOfCalculator,F326, FALSE)))),"ERROR: Select from drop downs above") -> Code Baseline - Maximum baseline window area is 15% of floor area.
E23: About Your Selection: | F23: =IFERROR(VLOOKUP(Menu_UseOfCalculator,Table_UseOfCalculator,K326,FALSE),"") -> No exempt window or door areas
F24: =F404 -> -
C26: RESULTS - Comparison of Baseline and Proposed Design **
E27: Component Performance, R occupancies | F27: Baseline Design | K27: Proposed Design
F28: U * | G28: Area | H28: UA | K28: U | M28: Area | N28: UA | AK28: drop down autoload of prototypes
E29: Doors U = | F29: =IFERROR(HLOOKUP($F$629,Table_Uvalue_Options,U636,FALSE),"") -> 0.3 | G29: =IFERROR(M653,"") -> 91.11111111 | H29: =J616 -> 27.33333333 | J29: =IF(Menu_UseOfCalculator=MenuItem_UFactorPath,IF(O29<>"",1,0),"") ->  | K29: =IFERROR(N29/M29,"") -> 0.3 | M29: =M85 -> 91.11111111 | N29: =N85 -> 27.33333333 | O29: =IFERROR(IF(K29="","",IF(Menu_UseOfCalculator=MenuItem_UFactorPath,IF(K29>F29,"U-factor exceeds max allowed",""),"")),"") ->  | AK29: exempt doors for prescriptive method
E30: Overhead Glazing U = | F30: =IFERROR(HLOOKUP($F$629,Table_Uvalue_Options,U637,FALSE),"") -> 0.5 | G30: =IFERROR(M654,"") -> 0 | H30: 0 | M30: =M97 -> 0 | N30: =N97 -> 0
E31: Vertical Glazing U = | F31: 0.3 | G31: =IFERROR(M655,"Error") -> 132.25 | H31: 39.675 | K31: 0.28 | M31: =M165 -> 132.25 | N31: =N165 -> 37.03
E32: Flat/Vaulted Ceilings U = | F32: 0.024 | G32: =IFERROR(M656,"") -> 1578 | H32: 37.872 | K32: 0.025 | M32: =M177 -> 1578 | N32: =N177 -> 39.45 | AK32: To do:
E33: Wall (above grade) U = | F33: 0.056 | G33: =IFERROR(M657,"") -> 2201.68 | H33: 123.29408 | K33: 0.042 | M33: =M192 -> 2201.68 | N33: =N192 -> 92.47056 | AK33: Hide calc areas
E34: Floors over Crawlspace U = | F34: 0.029 | G34: 1578 | H34: 45.762 | K34: 0.024 | M34: =M204 -> 1578 | N34: =N204 -> 37.872 | AK34: Check unlocked areas
E35: Slab on Grade F = | F35: 0.54 | G35: 0 | H35: 0 | M35: =M215 -> 0 | N35: =N215 -> 0 | AK35: Update instructions
E36: Below Grade Wall U = | F36: N/A | G36: 0 | J36: =IF(Menu_UseOfCalculator=MenuItem_UFactorPath,IF(O36<>"",1,0),"") ->  | M36: =I226 -> 0 | N36: =J226 -> 0 | O36: =IFERROR(IF(K36="","",IF(Menu_UseOfCalculator=MenuItem_UFactorPath,IF(O37>I37,"Effective F-factor exceeds max allowed",""),"")),"") ->  | AK36: Option 1 percentage baseline - Message in message area
E37: Below Grade Slab F = | F37: N/A | G37: 0 | I37: =IFERROR(IF(F36="N/A","",(F36*G36+F37*G37)/G37),"") ->  | J37: =IF(OR(F36="N/A",F36=0),"","=eff F max") ->  | M37: =M226 -> 0 | N37: =N226 -> 0 | O37: =IFERROR(IF(F36="N/A","",I228),"") ->  | P37: =IFERROR(IF(OR(F36="N/A",M37=0),"","=eff F of below grade wall and slab"),"") ->  | AK37: Ctrl-Z doesn't work
F38: =IF(Menu_UseOfCalculator=MenuItem_UserDefinedBaseline,"* Values from user-defined baseline",IF(Menu_CodeVersion=K400,"* Values from Table R402.1.2 (Oct 2023)","* Values from Table R402.1.3")) -> * Values from Table R402.1.2 (Oct 2023) | AK38: WSU logo - formatting
G39: Baseline UA Total | H39: =IF(SUBTOTAL(109,O75:O226)=0,SUM(H29:H37),"Check Missing Inputs or Errors") -> 273.9364133 | M39: Proposed UA Total | N39: =IF(SUBTOTAL(109,O75:O226)=0,SUM(N29:N37),"Check Missing Inputs or Errors") -> 234.1558933 | AK39: Change password
G40: Required Credits | H40: =IFERROR(IF(Menu_UseOfCalculator=MenuItem_UserDefinedBaseline,H41,IF(Menu_UseOfCalculator=MenuItem_NonDwellingUnit,"None",F403)),"Select occupancy type") -> 8 | M40: Proposed Credits | N40: =IF(Menu_UseOfCalculator=MenuItem_NonDwellingUnit,"NA",P682) -> 8 | O40: =IF(Menu_CodeVersion="WSEC 2015","from Table 406.2","from Tables 406.2 and 406.3") -> from Tables 406.2 and 406.3 | AK40: Baylon Review: For 2018, Appendices were not updated
G41: Required Credits | H41: 0 | I41: =IF(AND(Menu_UseOfCalculator=MenuItem_UserDefinedBaseline,RequiredCredits_UserDefined=""),"Error: Enter required credits","") ->  | M41: Proposed Credits | N41: =N40 -> 8
M42: UA Percent Reduction | N42: =IFERROR(IF(AND(Menu_UseOfCalculator=MenuItem_UserDefinedBaseline,Menu_ProjectType<>"New Construction"),"Calculate %UA reduction based on Addition UA",IF(H39+N39=0,"",IFERROR((H39-N39)/H39,"Check Errors"))),"") -> 0.14521808 | AK42: Baylon: Still need U and F for R20 perimeter +R20 underslab for below-grade slabs - Estimated as R20 perimeter + R10 underslab
M43: UA Reduction | N43: =IFERROR(H39-N39,"") -> 39.78052 | AK43: User registration
D44: =IF(Menu_UseOfCalculator=E329,"If the Proposed UA ≤ the Target UA, and the Proposed Credits from Table 406 are ≥ those required in Section R406, then the home meets the WSEC.","") -> 
C45: ** Results assume your inputs are complete and correct. Results do not constitute an approval. Analysis should be reviewed by your AHJ. | AK45: Exception R502.1.1 requires calculation of UA of existing building
D46: =IF(Menu_CodeVersion="WSEC 2018","Table R406.2 Fuel Normalization Credits","Table R406.2 Energy Equalization Credits") -> Table R406.2 Energy Equalization Credits
C47: System No. | E47: Full Description | H47: Select System Type | L47: Fuel Normalization Credits (406.2) | N47: Energy Credits (406.3) | P47: Total Credits (406.2 & 406.3)
C48: =IFERROR(VLOOKUP(H48,Table_FuelNormalization,3,FALSE),"") -> 4 | E48: =IFERROR(VLOOKUP(H48,Table_FuelNormalization,2,FALSE),"Error: Reselect System Type") -> For heating system using a heat pump that meets federal standards for the equipment listed in Table C403.3.2(2) or Table C403.3.2(9) OR Air to Water heat pump units that are configured to provide both heating and cooling and are rated in accordance with AHRI 550/590 | H48: Variable Refrigerant Heat Pump or Air-to-Water Heat Pump | L48: =IFERROR(IF(Menu_CodeVersion="WSEC 2015",0,VLOOKUP(H48,Table_FuelNormalization,H686,FALSE)),"NA") -> 3 | N48: =J62 -> 5 | P48: =IF(ISNUMBER(L48)=TRUE,L48+J62,N48) -> 8
D50: Table R406.3 Energy Credits | AK50: Remodel changes use
C51: Option No. | E51: Category | H51: Select Options | J51: Energy Credits | L51: Brief Description of Selected Options*
C52: 1 | E52: Efficient Building Envelope | H52: Option 1.2 | J52: =IFERROR(VLOOKUP(H52,Table_Option_1_Selected,2,FALSE),0) -> 1 | L52: =IFERROR(VLOOKUP(H52,Table_Option_1_Selected,3,FALSE)," ") -> Perscriptive compliance per Table 402.1.3 / U-0.25 vertical fenestration / R-38 floors or R-10 perimeter & fully insulated slab. Or 15% reduction in UA per section R402.1.5 | AF52: =IFERROR(G787,"") ->  | AK52: Addition less than 500 sf not included in Target Credit calc
C53: 2 | E53: Air Leakage Control and Efficient Ventilation | H53: Option 2.1 | J53: =IFERROR(VLOOKUP(H53,Table_Option_2_Selected,2,FALSE),0) -> 1 | L53: =IFERROR(VLOOKUP(H53,Table_Option_2_Selected,3,FALSE)," ") -> Per Section R402.4.1.2 / 2.0 ACH50 / For R-2, 0.25 cfm per ft2 at 50 Pa. / HRV with min SHR eff of 0.65 per IRC Section M1505.3 or IMC Section 403.8 | AK53: Unite forms into one
C54: =IF(Menu_CodeVersion="WSEC 2021","3.1 -3.10","3") -> 3.1 -3.10 | E54: High Efficiency HVAC | H54: Option 3.7 | J54: =IFERROR(VLOOKUP(H54,Table_Option_3_Selected,2,FALSE),0) -> 2 | L54: =IFERROR(IF(J54<>"NA",VLOOKUP(H54,Table_Option_3_Selected,3,FALSE),CONCATENATE(VLOOKUP(H54,Table_Option_3_Selected,3,FALSE)," -- Not applicable to R2 Multifamily")),"") -> Ductless Split System with no electric resistance in primary living areas. HSPF2, of 9 (HSPF of 10), except HSPF2 of 8.1 (HSPF of 9) if heating load is 24000 BTUs or less. | AF54: =IF(AND(MenuSelection_Option3<>"Option 3.10",Menu_CodeVersion="WSEC 2021",MenuSelection_Option5="Option 5.8"),"Select Option 3.10 with Option 5.8","") ->  | AK54: 1. Existing baseline --> Add toggle
C55: 3.11 | E55: High Efficiency HVAC: Smart Thermostat | H55: Not Selected | J55: =IF(OR(MenuSelection_Option3="Option 3.1",MenuSelection_Option3="Option 3.2",MenuSelection_Option3="Not Selected",MenuSelection_Option3=""),IFERROR(VLOOKUP(H55,Table_Option_39_Selected,2,FALSE),0),"NA") -> NA | L55: =IF(OR(H55="",H55="Not Selected"),"",IF(AND(J55="NA",H55="Option 3.11"),"Option 3.11 can only be taken with Option 3.1 or 3.2",IFERROR(IF(J55<>"NA",VLOOKUP(H55,Table_Option_39_Selected,3,FALSE),CONCATENATE(VLOOKUP(H55,Table_Option_3_Selected,3,FALSE)," -- Not applicable to R2 Multifamily")),""))) -> 
C56: 4 | E56: High Efficiency HVAC Distribution System | J56: =IF(Menu_Option4="",0,IF(Flag_IsDuctless=1,"NA",IFERROR(VLOOKUP(H56,Table_Option_4_Selected,2,FALSE),0))) -> 0 | L56: =IFERROR(IF(J56<>"NA",VLOOKUP(H56,Table_Option_4_Selected,3,FALSE),CONCATENATE(VLOOKUP(H56,Table_Option_4_Selected,3,FALSE)," - Not applicable to ductless system selected in Option 3")),"") ->  | AK56: 2. Double counting energy credits
C57: =IF(Menu_CodeVersion="WSEC 2015","5a","5.1") -> 5.1 | E57: Efficient Water Heating: Drain Heat Recovery | J57: =IFERROR(VLOOKUP(H57,Table_Option_51_Selected,2,FALSE),0) -> 0 | L57: =IFERROR(VLOOKUP(H57,Table_Option_51_Selected,3,FALSE)," ") ->  | AK57: 5. Most frequently used section on all drop downs
C58: 5.2 | E58: Efficient Water Heating: Compact Hot Water Distribution | J58: =IFERROR(VLOOKUP(H58,Table_Option_52_Selected,2,TRUE),0) -> 0 | L58: =IFERROR(VLOOKUP(H58,Table_Option_52_Selected,3,TRUE)," ") -> 
C59: =IF(Menu_CodeVersion="WSEC 2021","5.3-5.8","5.2-5.6") -> 5.3-5.8 | E59: Efficient Water Heating | H59: Option 5.4 | J59: =IFERROR(VLOOKUP(H59,Table_Option_5_Selected,2,FALSE),0) -> 1 | L59: =IFERROR(VLOOKUP(H59,Table_Option_5_Selected,3,FALSE)," ") -> Energy star gas or propane water heater with min UEF of 0.91 OR Solar supplemental water heating OR GSHP meeting requirements of Option 3.4 | Q59: =IF(AND(MenuSelection_Option3="Option 3.10",Menu_CodeVersion="WSEC 2021",H59<>"Option 5.8"),"Select Option 5.8 with Option 3.10","") ->  | AF59: =IF(Menu_UseOfCalculator=MenuItem_UserDefinedBaseline,"---",IF(AND(MenuSelection_Option3="Option 3.10",Menu_CodeVersion="WSEC 2021",H59<>"Option 5.8"),"Select Option 5.8 with Option 3.10","")) ->  | AK59: Existing building as baseline
C60: 6 | E60: Renewable Electric Energy | F60: 3000 | G60: kWh | J60: =IFERROR(VLOOKUP(H60,Table_Option_6_Selected,2,FALSE),0) -> 0 | L60: =IF(OR(H60="Not Selected",H60=""),"",IFERROR(IF(AND(F60<>0,F60<>" "),VLOOKUP(H60,Table_Option_6_Selected,3,FALSE),"Error: Enter annual electrical generation per housing unit in kWh"),"")) ->  | AK60: Strip out blank rows in menus
C61: 7 | E61: Appliance Package | J61: =IFERROR(VLOOKUP(H61,Table_Option_7_Selected,2,FALSE),0) -> 0 | L61: =IFERROR(VLOOKUP(H61,Table_Option_7_Selected,3,FALSE)," ") ->  | AK61: warnings about missing data if prescriptive path
I62: Energy Credits | J62: =SUBTOTAL(109,J52:J61) -> 5 | AK62: warings about custom data
E63: =IF(Menu_CodeVersion=K400,"*Refer to WSEC 2021 Table R406.3 for complete option descriptions and requirements","*Refer to WSEC 2018 Table R406.3 for complete option descriptions and requirements") -> *Refer to WSEC 2021 Table R406.3 for complete option descriptions and requirements | I63: https://sbcc.wa.gov/state-codes-regulations-guidelines/state-building-code/energy-code | AK63: Update front matter - copyright
C65: THERMAL ENVELOPE DETAILS - Proposed Design | R65: THERMAL ENVELOPE DETAILS - Baseline Design
G66: =IFERROR(CONCATENATE(Message_FloorArea,", Proposed Design"),"Conditioned Floor Area, Proposed Design") -> Conditioned Floor Area, Proposed Design | H66: 2100 | I66: sq. ft | T66: Conditioned Floor Area, Baseline Design | U66: 2216 | V66: sq. ft
G67: Classification | H67: =IF($H$66>0,$F$400,"Enter floor area to determine classification") -> Medium Dwelling Unit
E68: Notes | T68: =E68 -> Notes
AK69: Tier 2/3
AK70: correct message about window area
D71: Exterior Doors | S71: Exterior Doors | AK71: baseline - code target - Not selected
D72: Plan | E72: Component | G72: Door | I72: Width | K72: Height | S72: Plan | T72: Component | V72: Door | X72: Width | Z72: Height | AK72: drop down on Project type
D73: ID | E73: Description | F73: Ref. | G73: U | H73: Qt. | I73: Feet | J73: Inch | K73: Feet | L73: Inch | M73: Area | N73: UA | S73: ID | T73: Description | U73: Ref. | V73: U | W73: Qt. | X73: Feet | Y73: Inch | Z73: Feet | AA73: Inch | AB73: Area | AC73: UA
D74: Exempt | F74: =IFERROR(VLOOKUP($E74,Table_Doors,2,FALSE),"") ->  | G74: =IFERROR(VLOOKUP($E74,Table_Doors,3,FALSE),"") ->  | M74: =IFERROR(H74*(I74+(J74/12))*(K74+(L74/12)),"") -> 0 | N74: =IFERROR(G74*M74,0) -> 0 | O74: =IF(AND(M74>24,F19<>"R2 Multifamily"),1,IF(AND(F74="Custom",G74=0),1,IF(AND(G74="",SUM(H74:L74)=0),0,IF(AND(G74<>"",M74>0),0,1)))) -> 0 | P74: =IF(M74>24,IF(F19="R2 Multifamily","Verify exempt doors are 24sf or less per dwelling unit.","Exempt Door>24 sf"),IF(F74="Custom",IF(G74=0,"U-value missing in Custom Input","Refer to WSEC R402.1.5 U-factor Reference and Calculations"),"")) -> 
D75: S front door | E75: Code Baseline, U=0.30 | F75: 0 | G75: 0.3 | H75: 1 | I75: 3 | J75: 2 | K75: 6 | L75: 10 | M75: 21.63888889 | N75: =IFERROR(G75*M75,0) -> 6.491666667 | O75: =IF(AND(TRIM(E75)="",OR(M75=0,M75="")),0,IF(AND(E75="",M75>0),1,IF(AND(E75<>"",N75=0),1,IF(AND(F75="Custom",G75=0),1,IF(AND(G75="",SUM(H75:L75)=0),0,IF(AND(G75<>"",M75>0),0,1)))))) -> 0 | P75: =IF(F75="Custom",IF(G75=0,"U-value missing in Custom Input","Refer to WSEC R402.1.5 U-factor Reference and Calculations"),"") ->  | T75: Code Baseline, U=0.30 | U75: =IFERROR(VLOOKUP($T75,Table_Doors,2,FALSE),"") -> 0 | V75: =IFERROR(VLOOKUP($T75,Table_Doors,3,FALSE),"") -> 0.3 | W75: 1 | X75: 3 | Z75: 6 | AA75: 8 | AB75: =W75*(X75+(Y75/12))*(Z75+(AA75/12)) -> 20 | AC75: =IFERROR(V75*AB75,0) -> 6 | AD75: =IF(AND(T75="",AB75=0),0,IF(AND(T75="",AB75>0),1,IF(AND(T75<>"",AC75=0),1,IF(AND(U75="Custom",V75=0),1,IF(AND(V75="",SUM(W75:AA75)=0),0,IF(AND(V75<>"",AB75>0),0,1)))))) -> 0 | AE75: =IF(U75="Custom","Refer to WSEC R402.1.5 U-factor Reference and Calculations","") ->  | AK75: flag if U-value=0
D76: N patio door | E76: Code Baseline, U=0.30 | F76: 0 | G76: 0.3 | H76: 1 | I76: 7 | J76: 0 | K76: 6 | L76: 10 | M76: 47.83333333 | N76: =IFERROR(G76*M76,0) -> 14.35 | O76: 0 | P76: =IF(F76="Custom",IF(G76=0,"U-value missing in Custom Input","Refer to WSEC R402.1.5 U-factor Reference and Calculations"),"") ->  | AB76: 0 | AC76: =IFERROR(V76*AB76,0) -> 0 | AD76: =IF(AND(T76="",AB76=0),0,IF(AND(T76="",AB76>0),1,IF(AND(T76<>"",AC76=0),1,IF(AND(U76="Custom",V76=0),1,IF(AND(V76="",SUM(W76:AA76)=0),0,IF(AND(V76<>"",AB76>0),0,1)))))) -> 0 | AE76: =IF(U76="Custom","Refer to WSEC R402.1.5 U-factor Reference and Calculations","") -> 
D77: W garage door | E77: Code Baseline, U=0.30 | F77: 0 | G77: 0.3 | H77: 1 | I77: 3 | J77: 2 | K77: 6 | L77: 10 | M77: 21.63888889 | N77: 6.491666667 | O77: 0 | AB77: 0 | AC77: 0 | AD77: 0 | AK77: Error checking
M78: 0 | N78: =IFERROR(G78*M78,0) -> 0 | O78: =IF(AND(TRIM(E78)="",OR(M78=0,M78="")),0,IF(AND(E78="",M78>0),1,IF(AND(E78<>"",N78=0),1,IF(AND(F78="Custom",G78=0),1,IF(AND(G78="",SUM(H78:L78)=0),0,IF(AND(G78<>"",M78>0),0,1)))))) -> 0 | P78: =IF(F78="Custom",IF(G78=0,"U-value missing in Custom Input","Refer to WSEC R402.1.5 U-factor Reference and Calculations"),"") ->  | AB78: 0 | AC78: 0 | AD78: 0 | AK78: Windows can't be below U0.14
M79: 0 | N79: 0 | O79: =IF(AND(TRIM(E79)="",OR(M79=0,M79="")),0,IF(AND(E79="",M79>0),1,IF(AND(E79<>"",N79=0),1,IF(AND(F79="Custom",G79=0),1,IF(AND(G79="",SUM(H79:L79)=0),0,IF(AND(G79<>"",M79>0),0,1)))))) -> 0
M80: 0 | N80: =IFERROR(G80*M80,0) -> 0 | O80: 0 | P80: =IF(F80="Custom",IF(G80=0,"U-value missing in Custom Input","Refer to WSEC R402.1.5 U-factor Reference and Calculations"),"") -> 
M81: 0 | N81: 0 | O81: 0
M82: 0 | N82: 0 | O82: 0 | AB82: 0 | AC82: 0 | AD82: 0
M83: 0 | N83: 0 | O83: 0 | AB83: 0 | AC83: 0 | AD83: 0
M84: 0 | N84: 0 | O84: 0 | AB84: 0 | AC84: 0 | AD84: 0 | AK84: For 2018 version
L85: =IF(AND(M74>0,Switch_ShowExempt="Show"),"Sum of Area and UA (excluding exempt door)","Sum of Area and UA") -> Sum of Area and UA | M85: =IF(O85>0,"",SUM(M75:M84)) -> 91.11111111 | N85: =IF(O85>0,"Erorr",SUM(N75:N84)) -> 27.33333333 | O85: =SUBTOTAL(109,O74:O84) -> 0 | P85: =ROW(P84)-ROW(P74)+1-COUNTBLANK(P74:P84) -> 0 | W85: Sum of Area and UA | AB85: =IF(AD85>0,"",SUM(AB75:AB84)) -> 20 | AC85: =IF(AD85>0,"Erorr",SUM(AC75:AC84)) -> 6 | AD85: =SUM(AD75:AD84) -> 0 | AE85: =ROW(AE84)-ROW(AE75)+1-COUNTBLANK(AE75:AE84) -> 0 | AK85: Brief description of options in Table R406
L86: Exterior Doors Area Weighted U | N86: =IFERROR(N85/M85,"") -> 0.3 | AA86: =L86 -> Exterior Doors Area Weighted U | AC86: =IFERROR(AC85/AB85,"") -> 0.3
AK87: Code target on most frequently selected
D89: Overhead Glazing | S89: Overhead Glazing:
D90: Plan | E90: Component | F90: Ref. | G90: Glazing | H90: Qt. | I90: Width | K90: Height | M90: Area | N90: UA | S90: Plan | T90: Component | U90: Ref. | V90: Glazing | W90: Qt. | X90: Width | Z90: Height | AB90: Area | AC90: UA
D91: ID | E91: Description | G91: U | I91: Feet | J91: Inch | K91: Feet | L91: Inch | S91: ID | T91: Description | V91: U | X91: Feet | Y91: Inch | Z91: Feet | AA91: Inch
F92: =IFERROR(VLOOKUP($E92,Table_OverheadGlazing,2,FALSE),"") ->  | G92: =IFERROR(VLOOKUP($E92,Table_OverheadGlazing,3,FALSE),"") ->  | M92: =IFERROR(H92*(I92+(J92/12))*(K92+(L92/12)),"") -> 0 | N92: =IFERROR(G92*M92,"") ->  | O92: =IF(AND(TRIM(E92)="",OR(M92=0,M92="")),0,IF(AND(E92="",M92>0),1,IF(AND(E92<>"",N92=0),1,IF(AND(F92="Custom",G92=0),1,IF(AND(G92="",SUM(H92:L92)=0),0,IF(AND(G92<>"",M92>0),0,1)))))) -> 0 | P92: =IF(F92="Custom",IF(G92=0,"U-value missing in Custom Input","Refer to WSEC R402.1.5 U-factor Reference and Calculations"),"") ->  | U92: =IFERROR(VLOOKUP($T92,Table_OverheadGlazing,2,FALSE),"") ->  | V92: =IFERROR(VLOOKUP($T92,Table_OverheadGlazing,3,FALSE),"") ->  | AB92: =W92*(X92+(Y92/12))*(Z92+(AA92/12)) -> 0 | AC92: =IFERROR(V92*AB92,"") ->  | AD92: =IF(AND(T92<>"",V92=""),1,IF(AND(T92="",AB92=0),0,IF(AND(T92="",AB92>0),1,IF(AND(T92<>"",AC92=0),1,IF(AND(U92="Custom",V92=0),1,IF(AND(V92="",SUM(W92:AA92)=0),0,IF(AND(V92<>"",AB92>0),0,1))))))) -> 0 | AE92: =IF(U92="Custom","Refer to WSEC R402.1.5 U-factor Reference and Calculations","") -> 
F93: =IFERROR(VLOOKUP($E93,Table_OverheadGlazing,2,FALSE),"") ->  | G93: =IFERROR(VLOOKUP($E93,Table_OverheadGlazing,3,FALSE),"") ->  | M93: 0 | N93: =IFERROR(G93*M93,"") ->  | O93: 0 | U93: =IFERROR(VLOOKUP($T93,Table_OverheadGlazing,2,FALSE),"") ->  | V93: =IFERROR(VLOOKUP($T93,Table_OverheadGlazing,3,FALSE),"") ->  | AB93: =W93*(X93+(Y93/12))*(Z93+(AA93/12)) -> 0 | AC93: =IFERROR(V93*AB93,"") ->  | AD93: 0 | AE93: =IF(U93="Custom","Refer to WSEC R402.1.5 U-factor Reference and Calculations","") -> 
F94: =IFERROR(VLOOKUP($E94,Table_OverheadGlazing,2,FALSE),"") ->  | G94: =IFERROR(VLOOKUP($E94,Table_OverheadGlazing,3,FALSE),"") ->  | M94: 0 | N94: =IFERROR(G94*M94,"") ->  | O94: 0 | U94: =IFERROR(VLOOKUP($T94,Table_OverheadGlazing,2,FALSE),"") ->  | V94: =IFERROR(VLOOKUP($T94,Table_OverheadGlazing,3,FALSE),"") ->  | AB94: =W94*(X94+(Y94/12))*(Z94+(AA94/12)) -> 0 | AC94: =IFERROR(V94*AB94,"") ->  | AD94: 0 | AE94: =IF(U94="Custom","Refer to WSEC R402.1.5 U-factor Reference and Calculations","") -> 
F95: =IFERROR(VLOOKUP($E95,Table_OverheadGlazing,2,FALSE),"") ->  | G95: =IFERROR(VLOOKUP($E95,Table_OverheadGlazing,3,FALSE),"") ->  | M95: 0 | N95: =IFERROR(G95*M95,"") ->  | O95: 0 | U95: =IFERROR(VLOOKUP($T95,Table_OverheadGlazing,2,FALSE),"") ->  | V95: =IFERROR(VLOOKUP($T95,Table_OverheadGlazing,3,FALSE),"") ->  | AB95: =W95*(X95+(Y95/12))*(Z95+(AA95/12)) -> 0 | AC95: =IFERROR(V95*AB95,"") ->  | AD95: 0 | AE95: =IF(U95="Custom","Refer to WSEC R402.1.5 U-factor Reference and Calculations","") -> 
F96: =IFERROR(VLOOKUP($E96,Table_OverheadGlazing,2,FALSE),"") ->  | G96: =IFERROR(VLOOKUP($E96,Table_OverheadGlazing,3,FALSE),"") ->  | M96: 0 | N96: =IFERROR(G96*M96,"") ->  | O96: 0 | U96: =IFERROR(VLOOKUP($T96,Table_OverheadGlazing,2,FALSE),"") ->  | V96: =IFERROR(VLOOKUP($T96,Table_OverheadGlazing,3,FALSE),"") ->  | AB96: =W96*(X96+(Y96/12))*(Z96+(AA96/12)) -> 0 | AC96: =IFERROR(V96*AB96,"") ->  | AD96: 0 | AE96: =IF(U96="Custom","Refer to WSEC R402.1.5 U-factor Reference and Calculations","") -> 
H97: Sum of Area and UA | M97: =IF(O97>0,"",SUM(M92:M96)) -> 0 | N97: =IF(O97>0,"Error",SUM(N92:N96)) -> 0 | O97: =SUM(O92:O96) -> 0 | P97: =ROW(P96)-ROW(P92)+1-COUNTBLANK(P92:P96) -> 0 | W97: Sum of Area and UA | AB97: =IF(AD97>0,"",SUM(AB92:AB96)) -> 0 | AC97: =IF(AD97>0,"Error",SUM(AC92:AC96)) -> 0 | AD97: =SUM(AD90:AD96) -> 0 | AE97: =ROW(AE96)-ROW(AE92)+1-COUNTBLANK(AE92:AE96) -> 0
L98: Overhead Glazing Area Weighted U | N98: =IFERROR(N97/M97,"") ->  | O98: =IF(AND(N98<>"",N98>0.75),1,0) -> 0 | P98: =IF(O98=1,"Area-weighted average U-factor exceeds max permitted in Section R402.5","") ->  | AA98: =L98 -> Overhead Glazing Area Weighted U | AC98: =IFERROR(AC97/AB97,"") -> 
D101: Vertical Glazing Schedule | M101: Rows to Show | N101: 16 | S101: Vertical Glazing
D102: Plan | E102: Component | F102: Ref. | G102: Glazing | H102: Qt. | I102: Width | K102: Height | M102: Area | N102: UA | S102: Plan | T102: Component | U102: Ref. | V102: Glazing | W102: Qt. | X102: Width | Z102: Height | AB102: Area | AC102: UA
D103: ID | E103: Description | G103: U | I103: Feet | J103: Inch | K103: Feet | L103: Inch | S103: ID | T103: Description | V103: U | X103: Feet | Y103: Inch | Z103: Feet | AA103: Inch
D104: Exempt | F104: =IFERROR(VLOOKUP($E104,Table_VerticalGlazing,2,FALSE),"") ->  | G104: =IFERROR(VLOOKUP($E104,Table_VerticalGlazing,3,FALSE),0) -> 0 | M104: =IFERROR(H104*(I104+(J104/12))*(K104+(L104/12)),"") -> 0 | N104: =IFERROR(G104*M104,0) -> 0 | O104: =IF(AND(M104>15,F19<>"R2 Multifamily"),1,IF(AND(E104="",M104=0),0,IF(AND(E104="",M104>0),1,IF(AND(E104<>"",N104=0),1,IF(AND(F104="Custom",G104=0),1,IF(AND(G104="",SUM(H104:L104)=0),0,IF(AND(G104<>"",M104>0),0,1))))))) -> 0 | P104: =IF(AND(E104<>"",G104>0.48),"U-value exceeds maximum permitted for tradeoffs (Section R402.5)",IF(F104="Custom",IF(G104=0,"U-value missing in Custom Input","Refer to WSEC R402.1.5 U-factor Reference and Calculations"),"")) -> 
C105: 1 | D105: N down | E105: U=0.28 (2018 1.3, 1.7) | F105: Table 406.2 / 406.3 | G105: =IFERROR(VLOOKUP($E105,Table_VerticalGlazing,3,FALSE),"") -> 0.28 | H105: 2 | I105: 5 | J105: 6 | K105: 3 | L105: 6 | M105: =IFERROR(H105*(I105+(J105/12))*(K105+(L105/12)),"") -> 38.5 | N105: =IFERROR(G105*M105,0) -> 10.78 | O105: =IF(AND(TRIM(E105)="",OR(M105=0,M105="")),0,IF(AND(E105="",M105>0),1,IF(AND(E105<>"",N105=0),1,IF(AND(F105="Custom",G105=0),1,IF(AND(G105="",SUM(H105:L105)=0),0,IF(AND(G105<>"",M105>0),0,1)))))) -> 0 | P105: =IF(F105="Custom",IF(G105=0,"U-value missing in Custom Input","Refer to WSEC R402.1.5 U-factor Reference and Calculations"),"") ->  | T105: 3gl Wood/vinyl, Low-e2 ½" + argon (Code Baseline) | U105: =IFERROR(VLOOKUP($T105,Table_VerticalGlazing,2,FALSE),"") -> 10-6B | V105: =IFERROR(VLOOKUP(T105,Table_VerticalGlazing,3,FALSE),0) -> 0.3 | W105: 8 | X105: 5 | Z105: 4 | AB105: =W105*(X105+(Y105/12))*(Z105+(AA105/12)) -> 160 | AC105: =IFERROR(V105*AB105,0) -> 48 | AD105: =IF(AND(T105="",AB105=0),0,IF(AND(T105="",AB105>0),1,IF(AND(T105<>"",AC105=0),1,IF(AND(U105="Custom",V105=0),1,IF(AND(V105="",SUM(W105:AA105)=0),0,IF(AND(V105<>"",AB105>0),0,1)))))) -> 0 | AE105: =IF(U105="Custom","Refer to WSEC R402.1.5 U-factor Reference and Calculations","") -> 
C106: =C105+1 -> 2 | D106: N down | E106: U=0.28 (2018 1.3, 1.7) | F106: Table 406.2 / 406.3 | G106: 0.28 | H106: 1 | I106: 3 | J106: 0 | K106: 3 | L106: 6 | M106: 10.5 | N106: =IFERROR(G106*M106,0) -> 2.94 | O106: 0 | P106: =IF(F106="Custom",IF(G106=0,"U-value missing in Custom Input","Refer to WSEC R402.1.5 U-factor Reference and Calculations"),"") ->  | V106: 0 | AB106: 0 | AC106: =IFERROR(V106*AB106,0) -> 0 | AD106: =IF(AND(T106="",AB106=0),0,IF(AND(T106="",AB106>0),1,IF(AND(T106<>"",AC106=0),1,IF(AND(U106="Custom",V106=0),1,IF(AND(V106="",SUM(W106:AA106)=0),0,IF(AND(V106<>"",AB106>0),0,1)))))) -> 0 | AE106: =IF(U106="Custom","Refer to WSEC R402.1.5 U-factor Reference and Calculations","") -> 
C107: =C106+1 -> 3 | D107: E down | E107: U=0.28 (2018 1.3, 1.7) | F107: Table 406.2 / 406.3 | G107: 0.28 | H107: 1 | I107: 6 | J107: 0 | K107: 4 | L107: 0 | M107: 24 | N107: =IFERROR(G107*M107,0) -> 6.72 | O107: 0 | V107: 0 | AB107: 0 | AC107: 0 | AD107: 0
C108: 4 | D108: S down | E108: U=0.28 (2018 1.3, 1.7) | F108: Table 406.2 / 406.3 | G108: 0.28 | H108: 1 | I108: 5 | J108: 6 | K108: 3 | L108: 6 | M108: 19.25 | N108: 5.39 | O108: 0 | V108: 0 | AB108: 0 | AC108: 0 | AD108: 0
C109: 5 | D109: S down | E109: U=0.28 (2018 1.3, 1.7) | F109: Table 406.2 / 406.3 | G109: 0.28 | H109: 1 | I109: 2 | J109: 0 | K109: 2 | L109: 6 | M109: 5 | N109: 1.4 | O109: 0 | V109: 0 | AB109: 0 | AC109: 0 | AD109: 0
C110: 6 | D110: W up | E110: U=0.28 (2018 1.3, 1.7) | F110: Table 406.2 / 406.3 | G110: 0.28 | H110: 2 | I110: 5 | J110: 0 | K110: 3 | L110: 6 | M110: 35 | N110: 9.8 | O110: 0 | V110: 0 | AB110: 0 | AC110: 0 | AD110: 0
C111: 7 | M111: 0 | N111: 0 | O111: 0 | V111: 0 | AB111: 0 | AC111: 0 | AD111: 0
C112: 8 | M112: 0 | N112: 0 | O112: 0 | V112: 0 | AB112: 0 | AC112: 0 | AD112: 0
C113: 9 | M113: 0 | N113: 0 | O113: 0 | V113: 0 | AB113: 0 | AC113: 0 | AD113: 0
C114: 10 | M114: 0 | N114: 0 | O114: 0 | V114: 0 | AB114: 0 | AC114: 0 | AD114: 0
C115: 11 | M115: 0 | N115: 0 | O115: 0 | V115: 0 | AB115: 0 | AC115: 0 | AD115: 0
C116: 12 | M116: 0 | N116: 0 | O116: 0 | V116: 0 | AB116: 0 | AC116: 0 | AD116: 0
C117: 13 | M117: 0 | N117: 0 | O117: 0 | V117: 0 | AB117: 0 | AC117: 0 | AD117: 0
C118: 14 | M118: 0 | N118: 0 | O118: 0 | V118: 0 | AB118: 0 | AC118: 0 | AD118: 0
C119: 15 | M119: 0 | N119: 0 | O119: 0 | V119: 0 | AB119: 0 | AC119: 0 | AD119: 0
C120: 16 | M120: 0 | N120: 0 | O120: 0 | V120: 0 | AB120: 0 | AC120: 0 | AD120: 0
C121: 17 | M121: 0 | N121: 0 | O121: 0 | V121: 0 | AB121: 0 | AC121: 0 | AD121: 0
C122: 18 | M122: 0 | N122: 0 | O122: 0 | V122: 0 | AB122: 0 | AC122: 0 | AD122: 0
C123: 19 | M123: 0 | N123: 0 | O123: 0 | V123: 0 | AB123: 0 | AC123: 0 | AD123: 0
C124: 20 | M124: 0 | N124: 0 | O124: 0 | V124: 0 | AB124: 0 | AC124: 0 | AD124: 0
C125: 21 | M125: 0 | N125: 0 | O125: 0 | V125: 0 | AB125: 0 | AC125: 0 | AD125: 0
C126: 22 | M126: 0 | N126: 0 | O126: 0 | V126: 0 | AB126: 0 | AC126: 0 | AD126: 0
C127: 23 | M127: 0 | N127: 0 | O127: 0 | V127: 0 | AB127: 0 | AC127: 0 | AD127: 0
C128: 24 | M128: 0 | N128: 0 | O128: 0 | V128: 0 | AB128: 0 | AC128: 0 | AD128: 0
C129: 25 | M129: 0 | N129: 0 | O129: 0 | V129: 0 | AB129: 0 | AC129: 0 | AD129: 0
C130: 26 | M130: 0 | N130: 0 | O130: 0 | V130: 0 | AB130: 0 | AC130: 0 | AD130: 0
C131: 27 | M131: 0 | N131: 0 | O131: 0 | V131: 0 | AB131: 0 | AC131: 0 | AD131: 0
C132: 28 | M132: 0 | N132: 0 | O132: 0 | V132: 0 | AB132: 0 | AC132: 0 | AD132: 0
C133: 29 | M133: 0 | N133: 0 | O133: 0 | V133: 0 | AB133: 0 | AC133: 0 | AD133: 0
C134: 30 | M134: 0 | N134: 0 | O134: 0 | V134: 0 | AB134: 0 | AC134: 0 | AD134: 0
C135: 31 | M135: 0 | N135: 0 | O135: 0 | V135: 0 | AB135: 0 | AC135: 0 | AD135: 0
C136: 32 | M136: 0 | N136: 0 | O136: 0 | V136: 0 | AB136: 0 | AC136: 0 | AD136: 0
C137: 33 | G137: =IFERROR(VLOOKUP($E137,Table_VerticalGlazing,3,FALSE),"") ->  | M137: 0 | N137: 0 | O137: 0 | U137: =IFERROR(VLOOKUP($T137,Table_VerticalGlazing,2,FALSE),"") ->  | V137: =IFERROR(VLOOKUP(T137,Table_VerticalGlazing,3,FALSE),0) -> 0 | AB137: 0 | AC137: 0 | AD137: 0
C138: 34 | M138: 0 | N138: 0 | O138: 0 | V138: 0 | AB138: 0 | AC138: 0 | AD138: 0
C139: 35 | M139: 0 | N139: 0 | O139: 0 | V139: 0 | AB139: 0 | AC139: 0 | AD139: 0
C140: 36 | M140: 0 | N140: 0 | O140: 0 | V140: 0 | AB140: 0 | AC140: 0 | AD140: 0
C141: 37 | M141: 0 | N141: =IFERROR(G141*M141,0) -> 0 | O141: 0 | V141: 0 | AB141: 0 | AC141: 0 | AD141: 0
C142: 38 | M142: 0 | N142: 0 | O142: 0 | V142: 0 | AB142: 0 | AC142: 0 | AD142: 0
C143: 39 | M143: 0 | N143: 0 | O143: 0 | V143: 0 | AB143: 0 | AC143: 0 | AD143: 0
C144: 40 | M144: 0 | N144: 0 | O144: 0 | V144: 0 | AB144: 0 | AC144: 0 | AD144: 0
C145: 41 | M145: 0 | N145: 0 | O145: 0 | V145: 0 | AB145: 0 | AC145: 0 | AD145: 0
C146: 42 | M146: =IFERROR(H146*(I146+(J146/12))*(K146+(L146/12)),"") -> 0 | N146: =IFERROR(G146*M146,0) -> 0 | O146: 0 | V146: 0 | AB146: 0 | AC146: 0 | AD146: 0
C147: 43 | M147: 0 | N147: 0 | O147: 0
C148: 44 | M148: 0 | N148: 0 | O148: 0
C149: 45 | M149: 0 | N149: 0 | O149: 0
C150: 46 | M150: 0 | N150: 0 | O150: 0
C151: 47 | M151: 0 | N151: 0 | O151: 0
C152: 48 | M152: 0 | N152: 0 | O152: 0 | V152: 0 | AB152: 0 | AC152: 0 | AD152: 0
C153: 49 | M153: 0 | N153: 0 | O153: 0 | V153: 0 | AB153: 0 | AC153: 0 | AD153: 0
C154: 50 | M154: 0 | N154: 0 | O154: 0 | V154: 0 | AB154: 0 | AC154: 0 | AD154: 0
C155: 51 | M155: 0 | N155: 0 | O155: 0 | V155: 0 | AB155: 0 | AC155: 0 | AD155: 0
C156: 52 | M156: 0 | N156: 0 | O156: 0 | V156: 0 | AB156: 0 | AC156: 0 | AD156: 0
C157: 53 | M157: 0 | N157: 0 | O157: 0 | V157: 0 | AB157: 0 | AC157: 0 | AD157: 0
C158: 54 | M158: 0 | N158: 0 | O158: 0 | V158: 0 | AB158: 0 | AC158: 0 | AD158: 0
C159: 55 | M159: 0 | N159: 0 | O159: 0 | V159: 0 | AB159: 0 | AC159: 0 | AD159: 0
C160: 56 | M160: 0 | N160: 0 | O160: 0 | V160: 0 | AB160: 0 | AC160: 0 | AD160: 0
C161: 57 | M161: 0 | N161: 0 | O161: 0 | V161: 0 | AB161: 0 | AC161: 0 | AD161: 0
C162: 58 | M162: 0 | N162: 0 | O162: 0 | V162: 0 | AB162: 0 | AC162: 0 | AD162: 0
C163: 59 | M163: 0 | N163: 0 | O163: 0 | V163: 0 | AB163: 0 | AC163: 0 | AD163: 0
C164: 60 | M164: 0 | N164: 0 | O164: 0 | V164: 0 | AB164: 0 | AC164: 0 | AD164: 0
L165: =IF(AND(M104>0,Switch_ShowExempt="Show"),"Sum of Area and UA (excluding exempt window)","Sum of Area and UA") -> Sum of Area and UA | M165: =IF(O165>0,"",SUBTOTAL(109,M105:M164)) -> 132.25 | N165: =IF(O165>0,"Error",SUBTOTAL(109,N105:N164)) -> 37.03 | O165: =SUBTOTAL(109,O104:O164) -> 0 | P165: =ROW(P164)-ROW(P104)+1-COUNTBLANK(P104:P164) -> 0 | AA165: Sum of Area and UA | AB165: =IF(AD165>0,"",SUBTOTAL(109,AB105:AB164)) -> 160 | AC165: =IF(AD165>0,"Error",SUBTOTAL(109,AC105:AC164)) -> 48 | AD165: =SUBTOTAL(109,AD105:AD164) -> 0 | AE165: =ROW(AE164)-ROW(AE105)+1-COUNTBLANK(AE105:AE164) -> 0
L166: Vertical Glazing Area Weighted U | N166: =IFERROR(N165/M165,"") -> 0.28 | O166: =IF(AND(N166<>"",N166>0.48,Menu_ProjectType<>Item_ProjectType_RemodelAlteration),1,0) -> 0 | P166: =IF(AND(N166<>"",N166>0.48,Menu_ProjectType<>Item_ProjectType_RemodelAlteration),"Area-weighted average U-factor exceeds max permitted in Section R402.5","") ->  | AA166: =L166 -> Vertical Glazing Area Weighted U | AC166: =IFERROR(AC165/AB165,"") -> 0.3
L167: Vertical Glazing and Doors Area Weighted U | N167: =IFERROR((N165+N85)/(M165+M85),"Error") -> 0.2881581893 | AA167: Vertical Glazing and Doors Area Weighted U | AC167: =IFERROR((AC165+AC85)/(AB165+AB85),"Error") -> 0.3
D170: Flat/Vaulted Ceilings | S170: Flat/Vaulted Ceilings
D171: Plan | E171: Component | F171: Ref. | G171: Attic | M171: Area | N171: UA | S171: Plan | T171: Component | U171: Ref. | V171: Attic | AB171: Area | AC171: UA
D172: ID | E172: Description | G172: U | S172: ID | T172: Description | V172: U
D173: Flat | E173: R60 blown Attic STD baffled | F173: =IFERROR(VLOOKUP($E173,Table_FlatVaultedCeilings,2,FALSE),"") -> 10-7 | G173: =IFERROR(VLOOKUP($E173,Table_FlatVaultedCeilings,3,FALSE),+"") -> 0.025 | L173: =IF(AND(F173="NA",M173<>""), "Leave area blank","") ->  | M173: 1578 | N173: =IFERROR(G173*M173,"") -> 39.45 | O173: =IF(L173<>"",1,IF(F173="NA",0,IF(AND(TRIM(E173)<>"",OR(ISNUMBER(M173)=FALSE,G173="")),1,IF(AND(TRIM(E173)="",G173="",TRIM(M173)=""),0,IF(AND(F173="Custom",G173=0),1,IF(AND(G173<>"",N173=0),1,IF(AND(G173="",M173>0),1,0))))))) -> 0 | P173: =IF(F173="Custom",IF(G173=0,"U-value missing in Custom Input","Refer to WSEC R402.1.5 U-factor Reference and Calculations"),"") ->  | T173: R49 blown Attic ADV baffled (2018 1.5, 1.7, 2021 Code Baseline) | U173: =IFERROR(VLOOKUP(T173,Table_FlatVaultedCeilings,2,FALSE),"") -> 10-7 | V173: =IFERROR(VLOOKUP(T173,Table_FlatVaultedCeilings,3,FALSE),+"") -> 0.02 | AB173: 491 | AC173: =IFERROR(V173*AB173,"") -> 9.82 | AD173: =IF(AND(T173<>"",OR(ISNUMBER(AB173)=FALSE,V173="")),1,IF(AND(T173="",V173="",AB173=""),0,IF(AND(U173="Custom",V173=0),1,IF(AND(V173<>"",AC173=0),1,IF(AND(V173="",AB173>0),1,0))))) -> 0 | AE173: =IF(U173="Custom","Refer to WSEC R402.1.5 U-factor Reference and Calculations","") -> 
F174: =IFERROR(VLOOKUP($E174,Table_FlatVaultedCeilings,2,FALSE),"") ->  | G174: =IFERROR(VLOOKUP($E174,Table_FlatVaultedCeilings,3,FALSE),+"") ->  | L174: =IF(AND(F174="NA",M174<>""), "Error: Leave area blank","") ->  | N174: =IFERROR(G174*M174,"") ->  | O174: =IF(L174<>"",1,IF(F174="NA",0,IF(AND(TRIM(E174)<>"",OR(ISNUMBER(M174)=FALSE,G174="")),1,IF(AND(TRIM(E174)="",G174="",TRIM(M174)=""),0,IF(AND(F174="Custom",G174=0),1,IF(AND(G174<>"",N174=0),1,IF(AND(G174="",M174>0),1,0))))))) -> 0 | P174: =IF(F174="Custom",IF(G174=0,"U-value missing in Custom Input","Refer to WSEC R402.1.5 U-factor Reference and Calculations"),"") ->  | U174: =IFERROR(VLOOKUP(T174,Table_FlatVaultedCeilings,2,FALSE),"") ->  | V174: =IFERROR(VLOOKUP(T174,Table_FlatVaultedCeilings,3,FALSE),+"") ->  | AC174: =IFERROR(V174*AB174,"") ->  | AD174: 0 | AE174: =IF(U174="Custom","Refer to WSEC R402.1.5 U-factor Reference and Calculations","") -> 
F175: =IFERROR(VLOOKUP($E175,Table_FlatVaultedCeilings,2,FALSE),"") ->  | G175: =IFERROR(VLOOKUP($E175,Table_FlatVaultedCeilings,3,FALSE),+"") ->  | L175: =IF(AND(F175="NA",M175<>""), "Leave area blank","") ->  | N175: =IFERROR(G175*M175,"") ->  | O175: =IF(L175<>"",1,IF(F175="NA",0,IF(AND(TRIM(E175)<>"",OR(ISNUMBER(M175)=FALSE,G175="")),1,IF(AND(TRIM(E175)="",G175="",TRIM(M175)=""),0,IF(AND(F175="Custom",G175=0),1,IF(AND(G175<>"",N175=0),1,IF(AND(G175="",M175>0),1,0))))))) -> 0 | P175: =IF(F175="Custom",IF(G175=0,"U-value missing in Custom Input","Refer to WSEC R402.1.5 U-factor Reference and Calculations"),"") ->  | U175: =IFERROR(VLOOKUP(T175,Table_FlatVaultedCeilings,2,FALSE),"") ->  | V175: =IFERROR(VLOOKUP(T175,Table_FlatVaultedCeilings,3,FALSE),+"") ->  | AC175: =IFERROR(V175*AB175,"") ->  | AD175: 0 | AE175: =IF(U175="Custom","Refer to WSEC R402.1.5 U-factor Reference and Calculations","") -> 
F176: =IFERROR(VLOOKUP($E176,Table_FlatVaultedCeilings,2,FALSE),"") ->  | G176: =IFERROR(VLOOKUP($E176,Table_FlatVaultedCeilings,3,FALSE),+"") ->  | N176: =IFERROR(G176*M176,"") ->  | O176: 0 | P176: =IF(F176="Custom",IF(G176=0,"U-value missing in Custom Input","Refer to WSEC R402.1.5 U-factor Reference and Calculations"),"") ->  | U176: =IFERROR(VLOOKUP(T176,Table_FlatVaultedCeilings,2,FALSE),"") ->  | V176: =IFERROR(VLOOKUP(T176,Table_FlatVaultedCeilings,3,FALSE),+"") ->  | AC176: =IFERROR(V176*AB176,"") ->  | AD176: 0 | AE176: =IF(U176="Custom","Refer to WSEC R402.1.5 U-factor Reference and Calculations","") -> 
H177: Sum of Area and UA | M177: =IF(O177>0,"",SUM(M173:M176)) -> 1578 | N177: =IF(O177>0,"Error",SUM(N173:N176)) -> 39.45 | O177: =SUM(O173:O176) -> 0 | P177: =ROW(P176)-ROW(P173)+1-COUNTBLANK(P173:P176) -> 0 | W177: Sum of Area and UA | AB177: =IF(AD177>0,"",SUM(AB173:AB176)) -> 491 | AC177: =IF(AD177>0,"Error",SUM(AC173:AC176)) -> 9.82 | AD177: =SUM(AD173:AD176) -> 0 | AE177: =ROW(AE176)-ROW(AE173)+1-COUNTBLANK(AE173:AE176) -> 0
L178: Area Weighted U-Value | N178: =IFERROR(N177/M177,"") -> 0.025 | AA178: Area Weighted U-Value | AC178: =IFERROR(AC177/AB177,"") -> 0.02
D181: Walls (Above Grade) | S181: Walls (Above Grade)
D182: Plan | E182: Component | G182: Wall | M182: Net Area | S182: Plan | T182: Component | V182: Wall | AB182: Net Area
D183: ID | E183: Description | F183: Ref. | G183: U | N183: UA | S183: ID | T183: Description | U183: Ref. | V183: U | AC183: UA
D184: Down 8.5 ceiling | E184: R21 cavity+R5 foam INT 2X6W T111 | F184: =IFERROR(VLOOKUP($E184,Table_AboveGradeWalls,2,FALSE),"") -> 10-5 | G184: =IFERROR(VLOOKUP($E184,Table_AboveGradeWalls,3,FALSE),+"") -> 0.042 | L184: =IF(AND(F184="NA",M184<>""), "Error: Leave area blank","") ->  | M184: =48.5*8.5*2+40.89*8.5*2-SUM(M105:M109) -> 1422.38 | N184: =IFERROR(G184*M184,"") -> 59.73996 | O184: =IF(L184<>"",1,IF(F184="NA",0,IF(AND(TRIM(E184)<>"",OR(ISNUMBER(M184)=FALSE,G184="")),1,IF(AND(TRIM(E184)="",G184="",TRIM(M184)=""),0,IF(AND(F184="Custom",G184=0),1,IF(AND(G184<>"",N184=0),1,IF(AND(G184="",M184>0),1,0))))))) -> 0 | P184: =IF(F184="Custom","Refer to WSEC R402.1.5 U-factor Reference and Calculations","") ->  | T184: R21 cavity+R0 foam INT 2X6W T111 (Code Baseline) | U184: =IFERROR(VLOOKUP(T184,Table_AboveGradeWalls,2,FALSE),"") -> 10-5 | V184: =IFERROR(VLOOKUP(T184,Table_AboveGradeWalls,3,FALSE),+"") -> 0.056 | AB184: 1134 | AC184: =IFERROR(V184*AB184,"") -> 63.504 | AD184: =IF(AND(T184<>"",OR(ISNUMBER(AB184)=FALSE,V184="")),1,IF(AND(T184="",V184="",AB184=""),0,IF(AND(U184="Custom",V184=0),1,IF(AND(V184<>"",AC184=0),1,IF(AND(V184="",AB184>0),1,0))))) -> 0 | AE184: =IF(U184="Custom","Refer to WSEC R402.1.5 U-factor Reference and Calculations","") -> 
D185: Up 8.5' ceiling | E185: R21 cavity+R5 foam INT 2X6W T111 | F185: 10-5 | G185: 0.042 | M185: =23.95*8.5*4-M110 -> 779.3 | N185: =IFERROR(G185*M185,"") -> 32.7306 | O185: 0 | P185: =IF(F185="Custom","Refer to WSEC R402.1.5 U-factor Reference and Calculations","") ->  | AC185: =IFERROR(V185*AB185,"") ->  | AD185: =IF(AND(T185<>"",OR(ISNUMBER(AB185)=FALSE,V185="")),1,IF(AND(T185="",V185="",AB185=""),0,IF(AND(U185="Custom",V185=0),1,IF(AND(V185<>"",AC185=0),1,IF(AND(V185="",AB185>0),1,0))))) -> 0 | AE185: =IF(U185="Custom","Refer to WSEC R402.1.5 U-factor Reference and Calculations","") -> 
O186: 0 | AD186: 0
O187: 0 | AD187: 0
O188: 0 | AD188: 0
O189: 0 | AD189: 0
O190: 0 | AD190: 0
O191: 0 | AD191: 0
H192: Sum of Net Area and UA | M192: =IF(O192>0,"",SUM(M184:M191)) -> 2201.68 | N192: =IF(O192>0,"Error",SUM(N184:N191)) -> 92.47056 | O192: =SUM(O184:O191) -> 0 | P192: =ROW(P191)-ROW(P184)+1-COUNTBLANK(P184:P191) -> 0 | W192: Sum of Area and UA | AB192: =IF(AD192>0,"",SUM(AB184:AB191)) -> 1134 | AC192: =IF(AD192>0,"Error",SUM(AC184:AC191)) -> 63.504 | AD192: =SUM(AD184:AD191) -> 0 | AE192: =ROW(AE191)-ROW(AE184)+1-COUNTBLANK(AE184:AE191) -> 0
L193: Gross Wall Area | M193: =M192+M85+M165 -> 2425.041111 | N193: ft2 | AA193: Gross Wall Area | AB193: =AB192+AB85+AB165 -> 1314 | AC193: ft2
L194: Area Weighted U-Value | N194: =IFERROR(N192/M192,"") -> 0.042 | AA194: Area Weighted U-Value | AC194: =IFERROR(AC192/AB192,"") -> 0.056
D197: Floor (over crawl or exterior) | S197: Floor (over crawl or exterior)
D198: Plan | E198: Component | G198: Floor | M198: Area | N198: UA | S198: Plan | T198: Component | V198: Floor | AB198: Area | AC198: UA
D199: ID | E199: Description | F199: Ref. | G199: U | S199: ID | T199: Description | U199: Ref. | V199: U
E200: R38 vented Post/Beam (2021 1.2, 1.3; 2018 1.3-1.5) | F200: =IFERROR(VLOOKUP($E200,Table_FloorOverCrawlspace,2,FALSE),"") -> 10-3 | G200: =IFERROR(VLOOKUP($E200,Table_FloorOverCrawlspace,3,FALSE),"") -> 0.024 | L200: =IF(AND(F200="NA",M200<>""), "Error: Leave area blank","") ->  | M200: =M173 -> 1578 | N200: =IFERROR(G200*M200,"") -> 37.872 | O200: =IF(L200<>"",1,IF(F200="NA",0,IF(AND(TRIM(E200)<>"",OR(ISNUMBER(M200)=FALSE,G200="")),1,IF(AND(TRIM(E200)="",G200="",TRIM(M200)=""),0,IF(AND(F200="Custom",G200=0),1,IF(AND(G200<>"",N200=0),1,IF(AND(G200="",M200>0),1,0))))))) -> 0 | P200: =IF(F200="Custom",IF(G200=0,"U-value missing in Custom Input","Refer to WSEC R402.1.5 U-factor Reference and Calculations"),"") ->  | U200: =IFERROR(VLOOKUP(T200,Table_FloorOverCrawlspace,2,FALSE),"") ->  | V200: =IFERROR(VLOOKUP(T200,Table_FloorOverCrawlspace,3,FALSE),+"") ->  | AC200: =IFERROR(V200*AB200,"") ->  | AD200: =IF(AND(T200<>"",OR(ISNUMBER(AB200)=FALSE,V200="")),1,IF(AND(T200="",V200="",AB200=""),0,IF(AND(U200="Custom",V200=0),1,IF(AND(V200<>"",AC200=0),1,IF(AND(V200="",AB200>0),1,0))))) -> 0 | AE200: =IF(U200="Custom","Refer to WSEC R402.1.5 U-factor Reference and Calculations","") -> 
F201: =IFERROR(VLOOKUP($E201,Table_FloorOverCrawlspace,2,FALSE),"") ->  | G201: =IFERROR(VLOOKUP($E201,Table_FloorOverCrawlspace,3,FALSE),"") ->  | N201: =IFERROR(G201*M201,"") ->  | O201: 0 | P201: =IF(F201="Custom",IF(G201=0,"U-value missing in Custom Input","Refer to WSEC R402.1.5 U-factor Reference and Calculations"),"") ->  | U201: =IFERROR(VLOOKUP(T201,Table_FloorOverCrawlspace,2,FALSE),"") ->  | V201: =IFERROR(VLOOKUP(T201,Table_FloorOverCrawlspace,3,FALSE),+"") ->  | AC201: =IFERROR(V201*AB201,"") ->  | AD201: 0 | AE201: =IF(U201="Custom","Refer to WSEC R402.1.5 U-factor Reference and Calculations","") -> 
F202: =IFERROR(VLOOKUP($E202,Table_FloorOverCrawlspace,2,FALSE),"") ->  | G202: =IFERROR(VLOOKUP($E202,Table_FloorOverCrawlspace,3,FALSE),"") ->  | N202: =IFERROR(G202*M202,"") ->  | O202: 0 | P202: =IF(F202="Custom",IF(G202=0,"U-value missing in Custom Input","Refer to WSEC R402.1.5 U-factor Reference and Calculations"),"") ->  | U202: =IFERROR(VLOOKUP(T202,Table_FloorOverCrawlspace,2,FALSE),"") ->  | V202: =IFERROR(VLOOKUP(T202,Table_FloorOverCrawlspace,3,FALSE),+"") ->  | AC202: =IFERROR(V202*AB202,"") ->  | AD202: 0 | AE202: =IF(U202="Custom","Refer to WSEC R402.1.5 U-factor Reference and Calculations","") -> 
F203: =IFERROR(VLOOKUP($E203,Table_FloorOverCrawlspace,2,FALSE),"") ->  | G203: =IFERROR(VLOOKUP($E203,Table_FloorOverCrawlspace,3,FALSE),"") ->  | N203: =IFERROR(G203*M203,"") ->  | O203: 0 | P203: =IF(F203="Custom",IF(G203=0,"U-value missing in Custom Input","Refer to WSEC R402.1.5 U-factor Reference and Calculations"),"") ->  | U203: =IFERROR(VLOOKUP(T203,Table_FloorOverCrawlspace,2,FALSE),"") ->  | V203: =IFERROR(VLOOKUP(T203,Table_FloorOverCrawlspace,3,FALSE),+"") ->  | AC203: =IFERROR(V203*AB203,"") ->  | AD203: 0 | AE203: =IF(U203="Custom","Refer to WSEC R402.1.5 U-factor Reference and Calculations","") -> 
H204: Sum of Area and UA | M204: =IF(O204>0,"",SUM(M200:M203)) -> 1578 | N204: =IF(O204>0,"Error",SUM(N200:N203)) -> 37.872 | O204: =SUM(O200:O203) -> 0 | P204: =ROW(P203)-ROW(P200)+1-COUNTBLANK(P200:P203) -> 0 | W204: Sum of Area and UA | AB204: =IF(AD204>0,"",SUM(AB200:AB203)) -> 0 | AC204: =IF(AD204>0,"Error",SUM(AC200:AC203)) -> 0 | AD204: =SUM(AD200:AD203) -> 0 | AE204: =ROW(AE203)-ROW(AE200)+1-COUNTBLANK(AE200:AE203) -> 0
L205: Area Weighted U-Value | N205: =IFERROR(N204/M204,"") -> 0.024 | AA205: Area Weighted U-Value | AC205: =IFERROR(AC204/AB204,"") -> 
D208: Slab on Grade (less than 2 feet below grade) | S208: Slab on Grade (less than 2 feet below grade)
D209: Plan | E209: Component | G209: Slab | M209: Slab Perim | S209: Plan | T209: Component | V209: Slab | AB209: Slab Perim
D210: ID | E210: Description | F210: Ref. | G210: F | M210: Perimeter | N210: FP | S210: ID | T210: Description | U210: Ref. | V210: F | AB210: Perimeter | AC210: FP
F211: =IFERROR(VLOOKUP($E211,Table_SlabOnGrade,2,FALSE),"") ->  | G211: =IFERROR(VLOOKUP($E211,Table_SlabOnGrade,3,FALSE),+"") ->  | L211: =IF(AND(F211="NA",M211<>""), "Error: Leave area blank","") ->  | N211: =IFERROR(G211*M211,"") ->  | O211: =IF(L211<>"",1,IF(F211="NA",0,IF(AND(TRIM(E211)<>"",OR(ISNUMBER(M211)=FALSE,G211="")),1,IF(AND(TRIM(E211)="",G211="",TRIM(M211)=""),0,IF(AND(F211="Custom",G211=0),1,IF(AND(G211<>"",N211=0),1,IF(AND(G211="",M211>0),1,0))))))) -> 0 | P211: =IF(F211="Custom",IF(G211=0,"U-value missing in Custom Input","Refer to WSEC R402.1.5 U-factor Reference and Calculations"),"") ->  | T211: R10 2' horizontal w/TB (Code Baseline) | U211: =IFERROR(VLOOKUP(T211,Table_SlabOnGrade,2,FALSE),"") -> WSU | V211: =IFERROR(VLOOKUP(T211,Table_SlabOnGrade,3,FALSE),+"") -> 0.54 | AB211: 139 | AC211: =IFERROR(V211*AB211,"") -> 75.06 | AD211: =IF(AND(T211<>"",OR(ISNUMBER(AB211)=FALSE,V211="")),1,IF(AND(T211="",V211="",AB211=""),0,IF(AND(U211="Custom",V211=0),1,IF(AND(V211<>"",AC211=0),1,IF(AND(V211="",AB211>0),1,0))))) -> 0 | AE211: =IF(U211="Custom","Refer to WSEC R402.1.5 U-factor Reference and Calculations","") -> 
F212: =IFERROR(VLOOKUP($E212,Table_SlabOnGrade,2,FALSE),"") ->  | G212: =IFERROR(VLOOKUP($E212,Table_SlabOnGrade,3,FALSE),"") ->  | N212: =IFERROR(G212*M212,"") ->  | O212: 0 | U212: =IFERROR(VLOOKUP(T212,Table_SlabOnGrade,2,FALSE),"") ->  | V212: =IFERROR(VLOOKUP(T212,Table_SlabOnGrade,3,FALSE),+"") ->  | AC212: =IFERROR(V212*AB212,"") ->  | AD212: 0 | AE212: =IF(U212="Custom","Refer to WSEC R402.1.5 U-factor Reference and Calculations","") -> 
F213: =IFERROR(VLOOKUP($E213,Table_SlabOnGrade,2,FALSE),"") ->  | G213: =IFERROR(VLOOKUP($E213,Table_SlabOnGrade,3,FALSE),+"") ->  | N213: =IFERROR(G213*M213,"") ->  | O213: 0 | U213: =IFERROR(VLOOKUP(T213,Table_SlabOnGrade,2,FALSE),"") ->  | V213: =IFERROR(VLOOKUP(T213,Table_SlabOnGrade,3,FALSE),+"") ->  | AC213: =IFERROR(V213*AB213,"") ->  | AD213: 0 | AE213: =IF(U213="Custom","Refer to WSEC R402.1.5 U-factor Reference and Calculations","") -> 
F214: =IFERROR(VLOOKUP($E214,Table_SlabOnGrade,2,FALSE),"") ->  | G214: =IFERROR(VLOOKUP($E214,Table_SlabOnGrade,3,FALSE),+"") ->  | N214: =IFERROR(G214*M214,"") ->  | O214: 0 | U214: =IFERROR(VLOOKUP(T214,Table_SlabOnGrade,2,FALSE),"") ->  | V214: =IFERROR(VLOOKUP(T214,Table_SlabOnGrade,3,FALSE),+"") ->  | AC214: =IFERROR(V214*AB214,"") ->  | AD214: 0 | AE214: =IF(U214="Custom","Refer to WSEC R402.1.5 U-factor Reference and Calculations","") -> 
... 583 more rows

Sheet Vertical Glazing (hidden)
A1: WSU Code Compliance Calculator - WSEC 2015 &2018 | F1: (C) 2020
A2: Vertical Glazing Database
A3: Index | B3: Component Description | C3: Reference | D3: Glazing U
A5: 1
A6: =A5+1 -> 2 | B6: === Most Frequently Used =========
A7: 3 | B7: 1gl Wood/Vinyl Clear | C7: 10-6A | D7: 1.2
A8: 4 | B8: 2gl Wood/vinyl, Low-e2 ½" | C8: 10-6B | D8: 0.4
A9: 5 | B9: 3gl Wood/vinyl, Low-e2 ½" + argon (Code Baseline) | C9: 10-6B | D9: 0.3
A10: 6 | B10: 3gl Wood/vinyl, Low-e1 ½" + argon | C10: 10-6B | D10: 0.29
A11: 7 | B11: U=0.30 (Code Baseline) | C11: Table 406.2 / 406.3 | D11: 0.3
A12: 8 | B12: U=0.29 | D12: 0.29
A13: 9 | B13: U=0.28 (2018 1.3, 1.7) | C13: Table 406.2 / 406.3 | D13: 0.28
A14: 10 | B14: U=0.27 | D14: 0.27 | E14: Added Dec 2021
A15: 11 | B15: U=0.25 (2021 1.2; 2018 1.4) | C15: Table 406.2 / 406.3 | D15: 0.25
A16: 12 | B16: U=0.24 (2018 1.1) | C16: Table 406.2 / 406.3 | D16: 0.24
A17: 13 | B17: U=0.22 (2021 1.1; 2018 1.5) | C17: Table 406.2 / 406.3 | D17: 0.22
A18: 14 | B18: U=0.20 (2018 1.2) | C18: Table 406.2 / 406.3 | D18: 0.2 | E18: Corrected Dec 2021
A19: 15 | B19: U=0.18 (2021 1.3, 1.4; 2018 1.6) | C19: Table 406.2 / 406.3 | D19: 0.18
A20: 16 | B20: Default Metal, Single Pane | C20: Table R303.1.3(1) | D20: 1.2
A21: 17 | B21: Default Metal, Double Pane | C21: Table R303.1.3(1) | D21: 0.8
A22: 18 | B22: Default Metal w/TB, Single Pane | C22: Table R303.1.3(1) | D22: 2.2
A23: 19 | B23: Default Metal w/TB, Double Pane | C23: Table R303.1.3(1) | D23: 0.65
A24: 20 | B24: Default Nonmetal or Metal Clad, Single Pane | C24: Table R303.1.3(1) | D24: 0.95
A25: 21 | B25: Default Nonmetal or Metal Clad, Double Pane | C25: Table R303.1.3(1) | D25: 0.55
A26: 22 | B26: Default Glazed Block | C26: Table R303.1.3(1) | D26: 0.6
A27: 23 | B27: 2021 U-factor Baseline (Table R402.1.2) | C27: Table R402.1.2 | D27: 0.3
A28: 24 | B28: =============================
A29: 25 | B29: 1gl Wood/Vinyl Clear | C29: 10-6A | D29: 1.2
A30: 26 | B30: 2gl Wood/Vinyl Clear <1/2" spacer | C30: 10-6A | D30: 0.63
A31: 27 | B31: 2gl Wood/Vinyl Clear+Argon <1/2"spacer | C31: 10-6A | D31: 0.6
A32: 28 | B32: 2gl Wood/Vinyl LowE <1/2"spacer | C32: 10-6A | D32: 0.58
A33: 29 | B33: 2gl Wood/Vinyl LowE+Argon <1/2"spacer | C33: 10-6A | D33: 0.53
A34: 30 | B34: 2gl Wood/Vinyl Clear ≥1/2"spacer | C34: 10-6A | D34: 0.58
A35: =A34+1 -> 31 | B35: 2gl Wood/Vinyl Clear+Argon ≥1/2"spacer | C35: 10-6A | D35: 0.55
A36: 32 | B36: 2gl Wood/Vinyl LowE ≥1/2"spacer | C36: 10-6A | D36: 0.51
A37: 33 | B37: 2gl Wood/Vinyl LowE+Argon ≥1/2"spacer | C37: 10-6A | D37: 0.48
A38: 34 | B38: 3gl Wood/Vinyl Clear | C38: 10-6A | D38: 0.43
A39: 35 | B39: 3gl Wood/Vinyl Clear+Argon | C39: 10-6A | D39: 0.41
A40: 36 | B40: 3gl Wood/Vinyl LowE | C40: 10-6A | D40: 0.4
A41: 37 | B41: 3gl Wood/Vinyl LowE+Argon | C41: 10-6A | D41: 0.37
A42: 38 | B42: 1gl Garden Wood/Vinyl Clear | C42: 10-6A | D42: 2.31
A43: 39 | B43: 2gl Garden Wood/Vinyl Clear | C43: 10-6A | D43: 1.61
A44: 40 | B44: 2gl Garden Wood/Vinyl Clear+Argon | C44: 10-6A | D44: 1.56
A45: 41 | B45: 2gl Garden Wood/Vinyl LowE+Argon | C45: 10-6A | D45: 1.54
A46: 42 | B46: 2gl Garden Wood/Vinyl LowE+Argon | C46: 10-6A | D46: 1.47
A47: 43 | B47: 1gl Alum with TB Clear | C47: 10-6A | D47: 1.2
A48: 44 | B48: 2gl Alum with TB Clear <1/2" spacer | C48: 10-6A | D48: 0.75
A49: 45 | B49: 2gl Alum with TB Clear+Argon <1/2"spacer | C49: 10-6A | D49: 0.71
A50: 46 | B50: 2gl Alum with TB LowE <1/2"spacer | C50: 10-6A | D50: 0.69
A51: 47 | B51: 2gl Alum with TB LowE+Argon <1/2"spacer | C51: 10-6A | D51: 0.62
A52: 48 | B52: 2gl Alum with TB Clear ≥1/2"spacer | C52: 10-6A | D52: 0.69
A53: 49 | B53: 2gl Alum with TB Clear+Argon ≥1/2"spacer | C53: 10-6A | D53: 0.67
A54: 50 | B54: 2gl Alum with TB LowE ≥1/2"spacer | C54: 10-6A | D54: 0.61
A55: 51 | B55: 2gl Alum with TB LowE+Argon ≥1/2"spacer | C55: 10-6A | D55: 0.58
A56: 52 | B56: 3gl Alum with TB Clear | C56: 10-6A | D56: 0.53
A57: 53 | B57: 3gl Alum with TB Clear+Argon | C57: 10-6A | D57: 0.52
A58: 54 | B58: 3gl Alum with TB LowE | C58: 10-6A | D58: 0.49
A59: 55 | B59: 3gl Alum with TB LowE+Argon | C59: 10-6A | D59: 0.47
A60: 56 | B60: 1gl Aluminum Clear | C60: 10-6A | D60: 1.2
A61: 57 | B61: 2gl Aluminum Clear <1/2" spacer | C61: 10-6A | D61: 0.92
A62: 58 | B62: 2gl Aluminum Clear+Argon <1/2"spacer | C62: 10-6A | D62: 0.87
A63: 59 | B63: 2gl Aluminum LowE <1/2"spacer | C63: 10-6A | D63: 0.85
A64: 60 | B64: 2gl Aluminum LowE+Argon <1/2"spacer | C64: 10-6A | D64: 0.79
A65: 61 | B65: 2gl Aluminum Clear ≥1/2"spacer | C65: 10-6A | D65: 0.86
A66: 62 | B66: 2gl Aluminum Clear+Argon ≥1/2"spacer | C66: 10-6A | D66: 0.83
A67: 63 | B67: 2gl Aluminum LowE ≥1/2"spacer | C67: 10-6A | D67: 0.78
A68: 64 | B68: 2gl Aluminum LowE+Argon ≥1/2"spacer | C68: 10-6A | D68: 0.75
A69: 65 | B69: 3gl Aluminum Clear | C69: 10-6A | D69: 0.7
A70: 66 | B70: 3gl Aluminum Clear+Argon | C70: 10-6A | D70: 0.69
A71: 67 | B71: 3gl Aluminum LowE | C71: 10-6A | D71: 0.67
A72: 68 | B72: 3gl Aluminum LowE+Argon | C72: 10-6A | D72: 0.63
A73: 69 | B73: 1gl Garden Aluminum Clear | C73: 10-6A | D73: 2.6
A74: 70 | B74: 2gl Garden Aluminum Clear | C74: 10-6A | D74: 1.81
A75: 71 | B75: 2gl Garden Aluminum Clear+Argon | C75: 10-6A | D75: 1.76
A76: 72 | B76: 2gl Garden Aluminum LowE+Argon | C76: 10-6A | D76: 1.73
A77: 73 | B77: 2gl Garden Aluminum LowE+Argon | C77: 10-6A | D77: 1.64
A78: 74 | B78: Glass Block | C78: 10-6A | D78: 0.51
A79: 75 | B79: 2gl Alum clad wood, Clear ¼" | C79: 10-6B | D79: 0.59
A80: 76 | B80: 2gl Alum clad wood, Clear ¼" + argon | C80: 10-6B | D80: 0.56
A81: 77 | B81: 2gl Alum clad wood, Low-e4 ¼" | C81: 10-6B | D81: 0.54
A82: 78 | B82: 2gl Alum clad wood, Low-e2 ¼" | C82: 10-6B | D82: 0.51
A83: 79 | B83: 2gl Alum clad wood, Low-e1 ¼" | C83: 10-6B | D83: 0.49
A84: 80 | B84: 2gl Alum clad wood, Low-e4 ¼" + argon | C84: 10-6B | D84: 0.49
A85: 81 | B85: 2gl Alum clad wood, Low-e2 ¼" + argon | C85: 10-6B | D85: 0.46
A86: 82 | B86: 2gl Alum clad wood, Low-e1 ¼" + argon | C86: 10-6B | D86: 0.43
A87: 83 | B87: 2gl Alum clad wood, Clear 3/8" | C87: 10-6B | D87: 0.57
A88: 84 | B88: 2gl Alum clad wood, Clear 3/8" + argon | C88: 10-6B | D88: 0.54
A89: 85 | B89: 2gl Alum clad wood, Low-e4 3/8" | C89: 10-6B | D89: 0.51
A90: 86 | B90: 2gl Alum clad wood, Low-e2 3/8" | C90: 10-6B | D90: 0.48
A91: 87 | B91: 2gl Alum clad wood, Low-e1 3/8" | C91: 10-6B | D91: 0.46
A92: 88 | B92: 2gl Alum clad wood, Low-e4 3/8" + argon | C92: 10-6B | D92: 0.47
A93: 89 | B93: 2gl Alum clad wood, Low-e2 3/8" + argon | C93: 10-6B | D93: 0.44
A94: =A93+1 -> 90 | B94: 2gl Alum clad wood, Low-e1 3/8" + argon | C94: 10-6B | D94: 0.41
A95: 91 | B95: 2gl Alum clad wood, Clear ½" | C95: 10-6B | D95: 0.54
A96: 92 | B96: 2gl Alum clad wood, Clear ½" + argon | C96: 10-6B | D96: 0.51
A97: 93 | B97: 2gl Alum clad wood, Low-e4 ½" | C97: 10-6B | D97: 0.47
A98: 94 | B98: 2gl Alum clad wood, Low-e2 ½" | C98: 10-6B | D98: 0.44
A99: 95 | B99: 2gl Alum clad wood, Low-e1 ½" | C99: 10-6B | D99: 0.42
A100: 96 | B100: 2gl Alum clad wood, Low-e4 ½" + argon | C100: 10-6B | D100: 0.44
A101: 97 | B101: 2gl Alum clad wood, Low-e2 ½" + argon | C101: 10-6B | D101: 0.4
A102: 98 | B102: 2gl Alum clad wood, Low-e1 ½" + argon | C102: 10-6B | D102: 0.38
A103: 99 | B103: 3gl Alum clad wood, Clear ¼" | C103: 10-6B | D103: 0.44
A104: 100 | B104: 3gl Alum clad wood, Clear ¼" + argon | C104: 10-6B | D104: 0.42
A105: 101 | B105: 3gl Alum clad wood, Low-e4 ¼" | C105: 10-6B | D105: 0.4
A106: 102 | B106: 3gl Alum clad wood, Low-e2 ¼" | C106: 10-6B | D106: 0.41
A107: 103 | B107: 3gl Alum clad wood, Low-e1 ¼" | C107: 10-6B | D107: 0.4
A108: 104 | B108: 3gl Alum clad wood, Low-e4 ¼" + argon | C108: 10-6B | D108: 0.39
A109: 105 | B109: 3gl Alum clad wood, Low-e2 ¼" + argon | C109: 10-6B | D109: 0.37
A110: 106 | B110: 3gl Alum clad wood, Low-e1 ¼" + argon | C110: 10-6B | D110: 0.36
A111: 107 | B111: 3gl Alum clad wood, Clear ½" | C111: 10-6B | D111: 0.4
A112: 108 | B112: 3gl Alum clad wood, Clear ½" + argon | C112: 10-6B | D112: 0.38
A113: 109 | B113: 3gl Alum clad wood, Low-e4 ½" | C113: 10-6B | D113: 0.37
A114: 110 | B114: 3gl Alum clad wood, Low-e2 ½" | C114: 10-6B | D114: 0.35
A115: 111 | B115: 3gl Alum clad wood, Low-e1 ½" | C115: 10-6B | D115: 0.33
A116: 112 | B116: 3gl Alum clad wood, Low-e4 ½" + argon | C116: 10-6B | D116: 0.35
A117: 113 | B117: 3gl Alum clad wood, Low-e2 ½" + argon | C117: 10-6B | D117: 0.32
A118: 114 | B118: 3gl Alum clad wood, Low-e1 ½" + argon | C118: 10-6B | D118: 0.31
A119: 115 | B119: 2gl Wood/vinyl, Clear ¼" | C119: 10-6B | D119: 0.56
A120: 116 | B120: 2gl Wood/vinyl, Clear ¼" + argon | C120: 10-6B | D120: 0.53
A121: 117 | B121: 2gl Wood/vinyl, Low-e4 ¼" | C121: 10-6B | D121: 0.52
A122: 118 | B122: 2gl Wood/vinyl, Low-e2 ¼" | C122: 10-6B | D122: 0.49
A123: 119 | B123: 2gl Wood/vinyl, Low-e1 ¼" | C123: 10-6B | D123: 0.47
A124: 120 | B124: 2gl Wood/vinyl, Low-e4 ¼" + argon | C124: 10-6B | D124: 0.47
A125: 121 | B125: 2gl Wood/vinyl, Low-e2 ¼" + argon | C125: 10-6B | D125: 0.43
A126: 122 | B126: 2gl Wood/vinyl, Low-e1 ¼" + argon | C126: 10-6B | D126: 0.41
A127: 123 | B127: 2gl Wood/vinyl, Clear 3/8" | C127: 10-6B | D127: 0.54
A128: 124 | B128: 2gl Wood/vinyl, Clear 3/8" + argon | C128: 10-6B | D128: 0.51
A129: 125 | B129: 2gl Wood/vinyl, Low-e4 3/8" | C129: 10-6B | D129: 0.48
A130: 126 | B130: 2gl Wood/vinyl, Low-e2 3/8" | C130: 10-6B | D130: 0.45
A131: 127 | B131: 2gl Wood/vinyl, Low-e1 3/8" | C131: 10-6B | D131: 0.43
A132: 128 | B132: 2gl Wood/vinyl, Low-e4 3/8" + argon | C132: 10-6B | D132: 0.44
A133: 129 | B133: 2gl Wood/vinyl, Low-e2 3/8" + argon | C133: 10-6B | D133: 0.41
A134: 130 | B134: 2gl Wood/vinyl, Low-e1 3/8" + argon | C134: 10-6B | D134: 0.39
A135: 131 | B135: 2gl Wood/vinyl, Clear ½" | C135: 10-6B | D135: 0.5
A136: 132 | B136: 2gl Wood/vinyl, Clear ½" + argon | C136: 10-6B | D136: 0.48
A137: 133 | B137: 2gl Wood/vinyl, Low-e4 ½" | C137: 10-6B | D137: 0.44
A138: 134 | B138: 2gl Wood/vinyl, Low-e2 ½" | C138: 10-6B | D138: 0.4
A139: 135 | B139: 2gl Wood/vinyl, Low-e1 ½" | C139: 10-6B | D139: 0.35
A140: 136 | B140: 2gl Wood/vinyl, Low-e4 ½" + argon | C140: 10-6B | D140: 0.42
A141: 137 | B141: 2gl Wood/vinyl, Low-e2 ½" + argon | C141: 10-6B | D141: 0.37
A142: 138 | B142: 2gl Wood/vinyl, Low-e1 ½" + argon | C142: 10-6B | D142: 0.35
A143: 139 | B143: 3gl Wood/vinyl, Clear ¼" | C143: 10-6B | D143: 0.42
A144: 140 | B144: 3gl Wood/vinyl, Clear ¼" + argon | C144: 10-6B | D144: 0.39
A145: 141 | B145: 3gl Wood/vinyl, Low-e4 ¼" | C145: 10-6B | D145: 0.4
A146: 142 | B146: 3gl Wood/vinyl, Low-e2 ¼" | C146: 10-6B | D146: 0.39
A147: 143 | B147: 3gl Wood/vinyl, Low-e1 ¼" | C147: 10-6B | D147: 0.38
A148: 144 | B148: 3gl Wood/vinyl, Low-e4 ¼" + argon | C148: 10-6B | D148: 0.37
A149: 145 | B149: 3gl Wood/vinyl, Low-e2 ¼" + argon | C149: 10-6B | D149: 0.34
A150: 146 | B150: 3gl Wood/vinyl, Low-e1 ¼" + argon | C150: 10-6B | D150: 0.34
A151: 147 | B151: 3gl Wood/vinyl, Clear ½" | C151: 10-6B | D151: 0.37
A152: 148 | B152: 3gl Wood/vinyl, Clear ½" + argon | C152: 10-6B | D152: 0.36
A153: 149 | B153: 3gl Wood/vinyl, Low-e4 ½" | C153: 10-6B | D153: 0.35
A154: 150 | B154: 3gl Wood/vinyl, Low-e2 ½" | C154: 10-6B | D154: 0.32
A155: 151 | B155: 3gl Wood/vinyl, Low-e1 ½" | C155: 10-6B | D155: 0.31
A156: 152 | B156: 3gl Wood/vinyl, Low-e4 ½" + argon | C156: 10-6B | D156: 0.32
A157: 153 | B157: 3gl Wood/vinyl, Low-e2 ½" + argon | C157: 10-6B | D157: 0.3
A158: =A157+1 -> 154 | B158: 3gl Wood/vinyl, Low-e1 ½" + argon | C158: 10-6B | D158: 0.29
A159: 155 | B159: 2gl Alum with TB, Clear ¼" | C159: 10-6B | D159: 0.66
A160: 156 | B160: 2gl Alum with TB, Clear ¼" + argon | C160: 10-6B | D160: 0.63
A161: 157 | B161: 2gl Alum with TB, Low-e4 ¼" | C161: 10-6B | D161: 0.61
A162: 158 | B162: 2gl Alum with TB, Low-e2 ¼" | C162: 10-6B | D162: 0.58
A163: 159 | B163: 2gl Alum with TB, Low-e1 ¼" | C163: 10-6B | D163: 0.55
A164: 160 | B164: 2gl Alum with TB, Low-e4 ¼" + argon | C164: 10-6B | D164: 0.55
A165: 161 | B165: 2gl Alum with TB, Low-e2 ¼" + argon | C165: 10-6B | D165: 0.52
A166: 162 | B166: 2gl Alum with TB, Low-e1 ¼" + argon | C166: 10-6B | D166: 0.5
A167: 163 | B167: 2gl Alum with TB, Clear 3/8" | C167: 10-6B | D167: 0.63
A168: 164 | B168: 2gl Alum with TB, Clear 3/8" + argon | C168: 10-6B | D168: 0.6
A169: 165 | B169: 2gl Alum with TB, Low-e4 3/8" | C169: 10-6B | D169: 0.57
A170: 166 | B170: 2gl Alum with TB, Low-e2 3/8" | C170: 10-6B | D170: 0.54
A171: 167 | B171: 2gl Alum with TB, Low-e1 3/8" | C171: 10-6B | D171: 0.51
A172: 168 | B172: 2gl Alum with TB, Low-e4 3/8" + argon | C172: 10-6B | D172: 0.53
A173: 169 | B173: 2gl Alum with TB, Low-e2 3/8" + argon | C173: 10-6B | D173: 0.49
A174: 170 | B174: 2gl Alum with TB, Low-e1 3/8" + argon | C174: 10-6B | D174: 0.47
A175: 171 | B175: 2gl Alum with TB, Clear ½" | C175: 10-6B | D175: 0.6
A176: 172 | B176: 2gl Alum with TB, Clear ½" + argon | C176: 10-6B | D176: 0.58
A177: 173 | B177: 2gl Alum with TB, Low-e4 ½" | C177: 10-6B | D177: 0.53
A178: 174 | B178: 2gl Alum with TB, Low-e2 ½" | C178: 10-6B | D178: 0.5
A179: 175 | B179: 2gl Alum with TB, Low-e1 ½" | C179: 10-6B | D179: 0.47
A180: 176 | B180: 2gl Alum with TB, Low-e4 ½" + argon | C180: 10-6B | D180: 0.5
A181: 177 | B181: 2gl Alum with TB, Low-e2 ½" + argon | C181: 10-6B | D181: 0.46
A182: 178 | B182: 2gl Alum with TB, Low-e1 ½" + argon | C182: 10-6B | D182: 0.43
A183: 179 | B183: 3gl Alum with TB, Clear ¼" | C183: 10-6B | D183: 0.52
A184: 180 | B184: 3gl Alum with TB, Clear ¼" + argon | C184: 10-6B | D184: 0.49
A185: 181 | B185: 3gl Alum with TB, Low-e4 ¼" | C185: 10-6B | D185: 0.5
A186: 182 | B186: 3gl Alum with TB, Low-e2 ¼" | C186: 10-6B | D186: 0.48
A187: 183 | B187: 3gl Alum with TB, Low-e1 ¼" | C187: 10-6B | D187: 0.47
A188: 184 | B188: 3gl Alum with TB, Low-e4 ¼" + argon | C188: 10-6B | D188: 0.46
A189: 185 | B189: 3gl Alum with TB, Low-e2 ¼" + argon | C189: 10-6B | D189: 0.43
A190: 186 | B190: 3gl Alum with TB, Low-e1 ¼" + argon | C190: 10-6B | D190: 0.42
A191: 187 | B191: 3gl Alum with TB, Clear ½" | C191: 10-6B | D191: 0.46
A192: 188 | B192: 3gl Alum with TB, Clear ½" + argon | C192: 10-6B | D192: 0.45
A193: 189 | B193: 3gl Alum with TB, Low-e4 ½" | C193: 10-6B | D193: 0.43
A194: 190 | B194: 3gl Alum with TB, Low-e2 ½" | C194: 10-6B | D194: 0.41
A195: 191 | B195: 3gl Alum with TB, Low-e1 ½" | C195: 10-6B | D195: 0.39
A196: 192 | B196: 3gl Alum with TB, Low-e4 ½" + argon | C196: 10-6B | D196: 0.41
A197: 193 | B197: 3gl Alum with TB, Low-e2 ½" + argon | C197: 10-6B | D197: 0.38
A198: 194 | B198: 3gl Alum with TB, Low-e1 ½" + argon | C198: 10-6B | D198: 0.37
A199: 195 | B199: 2gl Aluminum, Clear ¼" | C199: 10-6B | D199: 0.82
A200: 196 | B200: 2gl Aluminum, Clear ¼" + argon | C200: 10-6B | D200: 0.77
A201: 197 | B201: 2gl Aluminum, Low-e4 ¼" | C201: 10-6B | D201: 0.76
... 183 more rows

Sheet Overhead Glazing (hidden)
A1: WSU Code Compliance Calculator - WSEC 2015 &2018 | F1: (C) 2020
A2: Overhead Glazing Database
A3: Index | B3: Component Description | C3: Reference | D3: Glazing U
A5: 1
A6: =A5+1 -> 2 | B6: === Most Frequently Used =========
A7: 3 | B7: 1gl wood glass | C7: 10-6E | D7: 1.18
A8: 4 | B8: 2gl wood, e=0.05 argon (Code Baseline) | C8: 10-6E | D8: 0.5
A9: 5 | B9: 3gl wood, e=0.20 air | C9: 10-6E | D9: 0.47
A10: 6 | B10: 3gl wood, e=0.20 argon | C10: 10-6E | D10: 0.43
A11: 7 | B11: 3gl wood, e=0.20 on 2 surfaces air | C11: 10-6E | D11: 0.44
A12: 8 | B12: 3gl wood, e=0.20 on 2 surfaces argon | C12: 10-6E | D12: 0.4
A13: 9 | B13: 3gl wood, e=0.10 on 2 surfaces air | C13: 10-6E | D13: 0.42
A14: 10 | B14: 3gl wood, e=0.10 on 2 surfaces argon | C14: 10-6E | D14: 0.38
A15: 11 | B15: 4gl wood, e=0.10 on 2 surfaces air | C15: 10-6E | D15: 0.39
A16: 12 | B16: 4gl wood, e=0.10 on 2 surfaces argon | C16: 10-6E | D16: 0.36
A17: 13 | B17: 4gl wood, e=0.10 on 2 surfaces krypton | C17: 10-6E | D17: 0.32
A18: 14 | B18: 4gl Alum clad wood, e=0.10 on 2 surf krypton | C18: 10-6E | D18: 0.48
A19: 15 | B19: 2021 U-factor Baseline (Table R402.1.2) | C19: Table R402.1.2 | D19: 0.5
A20: 16 | B20: =============================
A21: 17 | B21: 1gl wood glass | C21: 10-6E | D21: 1.18
A22: 18 | B22: 1gl wood acrylic/polycarb | C22: 10-6E | D22: 1.11
A23: 19 | B23: 2gl wood clear air | C23: 10-6E | D23: 0.67
A24: 20 | B24: 2gl wood clear argon | C24: 10-6E | D24: 0.64
A25: 21 | B25: 2gl wood, e=0.20 air | C25: 10-6E | D25: 0.59
A26: 22 | B26: 2gl wood, e=0.20 argon | C26: 10-6E | D26: 0.54
A27: 23 | B27: 2gl wood, e=0.10 air | C27: 10-6E | D27: 0.58
A28: 24 | B28: 2gl wood, e=0.10 argon | C28: 10-6E | D28: 0.52
A29: 25 | B29: 2gl wood, e=0.05 air | C29: 10-6E | D29: 0.56
A30: 26 | B30: 2gl wood, e=0.05 argon | C30: 10-6E | D30: 0.5
A31: 27 | B31: 3gl wood clear air | C31: 10-6E | D31: 0.51
A32: 28 | B32: 3gl wood clear argon | C32: 10-6E | D32: 0.48
A33: 29 | B33: 3gl wood, e=0.20 air | C33: 10-6E | D33: 0.47
A34: 30 | B34: 3gl wood, e=0.20 argon | C34: 10-6E | D34: 0.43
A35: 31 | B35: 3gl wood, e=0.20 on 2 surfaces air | C35: 10-6E | D35: 0.44
A36: 32 | B36: 3gl wood, e=0.20 on 2 surfaces argon | C36: 10-6E | D36: 0.4
A37: 33 | B37: 3gl wood, e=0.10 on 2 surfaces air | C37: 10-6E | D37: 0.42
A38: 34 | B38: 3gl wood, e=0.10 on 2 surfaces argon | C38: 10-6E | D38: 0.38
A39: 35 | B39: 4gl wood, e=0.10 on 2 surfaces air | C39: 10-6E | D39: 0.39
A40: 36 | B40: 4gl wood, e=0.10 on 2 surfaces argon | C40: 10-6E | D40: 0.36
A41: 37 | B41: 4gl wood, e=0.10 on 2 surfaces krypton | C41: 10-6E | D41: 0.32
A42: 38 | B42: 1gl Alum clad wood glass | C42: 10-6E | D42: 1.4
A43: 39 | B43: 1gl Alum clad wood acrylic/polycarb | C43: 10-6E | D43: 1.34
A44: 40 | B44: 2gl Alum clad wood clear air | C44: 10-6E | D44: 0.84
A45: 41 | B45: 2gl Alum clad wood clear argon | C45: 10-6E | D45: 0.8
A46: 42 | B46: 2gl Alum clad wood, e=0.20 air | C46: 10-6E | D46: 0.75
A47: 43 | B47: 2gl Alum clad wood, e=0.20 argon | C47: 10-6E | D47: 0.7
A48: 44 | B48: 2gl Alum clad wood, e=0.10 air | C48: 10-6E | D48: 0.74
A49: 45 | B49: 2gl Alum clad wood, e=0.10 argon | C49: 10-6E | D49: 0.68
A50: 46 | B50: 2gl Alum clad wood, e=0.05 air | C50: 10-6E | D50: 0.73
A51: 47 | B51: 2gl Alum clad wood, e=0.05 argon | C51: 10-6E | D51: 0.66
A52: 48 | B52: 3gl Alum clad wood clear air | C52: 10-6E | D52: 0.67
A53: 49 | B53: 3gl Alum clad wood clear argon | C53: 10-6E | D53: 0.64
A54: 50 | B54: 3gl Alum clad wood, e=0.20 air | C54: 10-6E | D54: 0.63
A55: 51 | B55: 3gl Alum clad wood, e=0.20 argon | C55: 10-6E | D55: 0.59
A56: 52 | B56: 3gl Alum clad wood, e=0.20 on 2 surf air | C56: 10-6E | D56: 0.6
A57: 53 | B57: 3gl Alum clad wood, e=0.20 on 2 surf argon | C57: 10-6E | D57: 0.56
A58: 54 | B58: 3gl Alum clad wood, e=0.10 on 2 surf air | C58: 10-6E | D58: 0.58
A59: 55 | B59: 3gl Alum clad wood, e=0.10 on 2 surf argon | C59: 10-6E | D59: 0.54
A60: 56 | B60: 4gl Alum clad wood, e=0.10 on 2 surf air | C60: 10-6E | D60: 0.55
A61: 57 | B61: 4gl Alum clad wood, e=0.10 on 2 surf argon | C61: 10-6E | D61: 0.52
A62: 58 | B62: 4gl Alum clad wood, e=0.10 on 2 surf krypton | C62: 10-6E | D62: 0.48
A63: 59 | B63: 1gl Alum with TB glass | C63: 10-6E | D63: 1.51
A64: 60 | B64: 1gl Alum with TB acrylic/polycarb | C64: 10-6E | D64: 1.45
A65: 61 | B65: 2gl Alum with TB clear air | C65: 10-6E | D65: 0.89
A66: =A65+1 -> 62 | B66: 2gl Alum with TB clear argon | C66: 10-6E | D66: 0.86
A67: 63 | B67: 2gl Alum with TB, e=0.20 air | C67: 10-6E | D67: 0.8
A68: 64 | B68: 2gl Alum with TB, e=0.20 argon | C68: 10-6E | D68: 0.75
A69: 65 | B69: 2gl Alum with TB, e=0.10 air | C69: 10-6E | D69: 0.79
A70: 66 | B70: 2gl Alum with TB, e=0.10 argon | C70: 10-6E | D70: 0.73
A71: 67 | B71: 2gl Alum with TB, e=0.05 air | C71: 10-6E | D71: 0.78
A72: 68 | B72: 2gl Alum with TB, e=0.05 argon | C72: 10-6E | D72: 0.71
A73: 69 | B73: 3gl Alum with TB clear air | C73: 10-6E | D73: 0.7
A74: 70 | B74: 3gl Alum with TB clear argon | C74: 10-6E | D74: 0.69
A75: 71 | B75: 3gl Alum with TB, e=0.20 air | C75: 10-6E | D75: 0.68
A76: 72 | B76: 3gl Alum with TB, e=0.20 argon | C76: 10-6E | D76: 0.63
A77: 73 | B77: 3gl Alum with TB, e=0.20 on 2 surf air | C77: 10-6E | D77: 0.64
A78: 74 | B78: 3gl Alum with TB, e=0.20 on 2 surf argon | C78: 10-6E | D78: 0.6
A79: 75 | B79: 3gl Alum with TB, e=0.10 on 2 surfaces air | C79: 10-6E | D79: 0.62
A80: 76 | B80: 3gl Alum with TB, e=0.10 on 2 surf argon | C80: 10-6E | D80: 0.58
A81: 77 | B81: 4gl Alum with TB, e=0.10 on 2 surfaces air | C81: 10-6E | D81: 0.59
A82: 78 | B82: 4gl Alum with TB, e=0.10 on 2 surf argon | C82: 10-6E | D82: 0.56
A83: 79 | B83: 4gl Alum with TB, e=0.10 on 2 surf krypton | C83: 10-6E | D83: 0.52
A84: 80 | B84: 1gl Aluminum glass | C84: 10-6E | D84: 1.58
A85: 81 | B85: 1gl Aluminum acrylic/polycarb | C85: 10-6E | D85: 1.52
A86: 82 | B86: 2gl Aluminum clear air | C86: 10-6E | D86: 1.05
A87: 83 | B87: 2gl Aluminum clear argon | C87: 10-6E | D87: 1.02
A88: 84 | B88: 2gl Aluminum, e=0.20 air | C88: 10-6E | D88: 0.96
A89: 85 | B89: 2gl Aluminum, e=0.20 argon | C89: 10-6E | D89: 0.91
A90: 86 | B90: 2gl Aluminum, e=0.10 air | C90: 10-6E | D90: 0.94
A91: 87 | B91: 2gl Aluminum, e=0.10 argon | C91: 10-6E | D91: 0.89
A92: 88 | B92: 2gl Aluminum, e=0.05 air | C92: 10-6E | D92: 0.93
A93: 89 | B93: 2gl Aluminum, e=0.05 argon | C93: 10-6E | D93: 0.87
A94: 90 | B94: 3gl Aluminum clear air | C94: 10-6E | D94: 0.9
A95: 91 | B95: 3gl Aluminum clear argon | C95: 10-6E | D95: 0.87
A96: 92 | B96: 3gl Aluminum, e=0.20 air | C96: 10-6E | D96: 0.86
A97: 93 | B97: 3gl Aluminum, e=0.20 argon | C97: 10-6E | D97: 0.82
A98: 94 | B98: 3gl Aluminum, e=0.20 on 2 surf air | C98: 10-6E | D98: 0.82
A99: 95 | B99: 3gl Aluminum, e=0.20 on 2 surf argon | C99: 10-6E | D99: 0.79
A100: 96 | B100: 3gl Aluminum, e=0.10 on 2 surf air | C100: 10-6E | D100: 0.81
A101: 97 | B101: 3gl Aluminum, e=0.10 on 2 surf argon | C101: 10-6E | D101: 0.77
A102: 98 | B102: 4gl Aluminum, e=0.10 on 2 surf air | C102: 10-6E | D102: 0.78
A103: 99 | B103: 4gl Aluminum, e=0.10 on 2 surf argon | C103: 10-6E | D103: 0.74
A104: 100 | B104: 4gl Aluminum, e=0.10 on 2 surf krypton | C104: 10-6E | D104: 0.7
A105: 101 | B105: === Custom Entries: Use NFRC Tested Values ================ | D105: U-Value | E105: Notes | F105: ='Flat-Vaulted Ceilings'!$F$339 -> Your entries appear at bottom of drowdown menus on "Group R" tab
A106: 102 | B106: Custom skylight | C106: Custom | D106: 0.25 | F106: =IF(AND(B107<>"",B106=""),"Don't skip lines",IF(AND(D106="",B106<>""),"Enter U-value",IF(AND(D106<>"",B106=""),"Enter Description",""))) -> 
A107: 103 | B107: test | C107: Custom | D107: 1
A108: 104 | C108: Custom
A109: 105 | C109: Custom
A110: 106 | C110: Custom
A111: 107 | C111: Custom
A112: 108 | C112: Custom
A113: 109 | C113: Custom
A114: 110 | C114: Custom
A115: 111 | C115: Custom
A116: 112 | C116: Custom
A117: 113 | C117: Custom
A118: 114 | C118: Custom
A119: 115 | C119: Custom
A120: 116 | C120: Custom
A121: 117 | C121: Custom
A122: 118 | C122: Custom
A123: 119 | C123: Custom
A124: 120 | C124: Custom
A125: 121 | C125: Custom
A126: 122 | C126: Custom
A127: 123 | C127: Custom
A128: 124 | C128: Custom
A129: 125 | C129: Custom
A130: 126 | C130: Custom
A131: =A130+1 -> 127 | C131: Custom
A132: 128 | C132: Custom
A133: 129 | C133: Custom
A134: 130 | C134: Custom
A135: 131 | C135: Custom
A136: 132 | C136: Custom
A137: 133 | C137: Custom
A138: 134 | C138: Custom
A139: 135 | C139: Custom
A140: 136 | C140: Custom
A141: 137 | C141: Custom
A142: 138 | C142: Custom
A143: 139 | C143: Custom
A144: 140 | C144: Custom
A145: 141 | C145: Custom
A146: 142 | C146: Custom
A147: 143 | C147: Custom
A148: 144 | C148: Custom
A149: 145 | C149: Custom
A150: 146 | C150: Custom
A151: 147 | C151: Custom
A152: 148 | C152: Custom
A153: 149 | C153: Custom
A154: 150 | C154: Custom
A155: 151 | C155: Custom
A156: 152 | C156: Custom
A157: 153 | C157: Custom
A158: 154 | C158: Custom
A159: 155 | C159: Custom
A160: 156 | C160: Custom
A161: 157 | C161: Custom
A162: 158 | C162: Custom
A163: 159 | C163: Custom
A164: 160 | C164: Custom
A165: 161 | C165: Custom
A166: 162 | C166: Custom
A167: 163 | C167: Custom
A168: 164 | C168: Custom
A169: 165 | C169: Custom
A170: 166 | C170: Custom | F170: =IF(AND(B171<>"",B170=""),"Don't skip lines",IF(AND(D170="",B170<>""),"Enter U-value",IF(AND(D170<>"",B170=""),"Enter Description",""))) -> 
A171: 167 | C171: Custom
A172: 168 | C172: Custom
A173: 169 | C173: Custom
A174: 170 | C174: Custom
A175: 171 | C175: Custom
A176: 172 | C176: Custom
A177: 173 | C177: Custom
A178: 174 | C178: Custom
A179: 175 | C179: Custom
A180: 176 | C180: Custom
A181: 177 | C181: Custom
A182: 178 | C182: Custom
A183: 179 | C183: Custom
A184: 180 | C184: Custom
A185: 181 | C185: Custom
A186: 182 | C186: Custom
A187: 183 | C187: Custom
A188: 184 | C188: Custom
A189: 185 | C189: Custom
A190: 186 | C190: Custom
A191: 187 | C191: Custom
A192: 188 | C192: Custom
A193: 189 | C193: Custom
A194: 190 | C194: Custom
A195: =A194+1 -> 191 | C195: Custom
A196: 192 | C196: Custom
A197: 193 | C197: Custom
A198: 194 | C198: Custom
A199: 195 | C199: Custom
A200: 196 | C200: Custom
A201: 197 | C201: Custom
... 1819 more rows

Sheet Doors (hidden)
A1: WSU Code Compliance Calculator - WSEC 2015 &2018 | F1: (C) 2020
A2: Door Database
A3: Index | B3: Component Description | C3: Reference | D3: U-Value
A5: 1 | C5: 0 | D5: 0
A6: =A5+1 -> 2 | B6: === Most Frequently Used =========
A7: =A6+1 -> 3 | B7: Wood slab in wood frame (WoodSWF) | C7: 10-6C | D7: =VLOOKUP($B7,$B$20:$D$70,3,FALSE) -> 0.46
A8: 4 | B8: Code Baseline, U=0.30 | D8: 0.3
A9: 5 | B9: U=0.28 | D9: 0.28
A10: 6 | B10: Insulated Steel, Wood Edge (ISteelWE) | C10: 10-6C | D10: =VLOOKUP($B10,$B$20:$D$70,3,FALSE) -> 0.16
A11: 7 | B11: ISteelWE 1gl 6% 22x8" | C11: 10-6C | D11: 0.21
A12: 8 | B12: ISteelWE 2gl 6% 22x8" 1/4" | C12: 10-6C | D12: 0.2
A13: 9 | B13: ISteelWE 2gl 25% 22x8" 1/4" | C13: 10-6C | D13: 0.28
A14: 10 | B14: ISteelWE 2gl 6% 22x8" 1/2" | C14: 10-6C | D14: 0.19
A15: 11 | B15: ISteelWE 2gl 6% 22x8" 1/2" LowE.1 Ar | C15: 10-6C | D15: 0.18
A16: 12 | B16: ISteelWE2gl 25% 22x36" 1/2" LowE .1 Ar | C16: 10-6C | D16: 0.23
A17: 13 | B17: ISteelWE2gl 45% 22x64" 1/2" LowE .1 Ar | C17: 10-6C | D17: 0.26
A18: 14 | B18: 2021 U-factor Baseline (Table R402.1.2) | C18: Table R402.1.2 | D18: 0.3
A19: 15 | B19: ============================
A20: 16 | B20: Wood slab in wood frame (WoodSWF) | C20: 10-6C | D20: 0.46
A21: 17 | B21: WoodSWF 1gl 6% 22x8" | C21: 10-6C | D21: 0.48
A22: 18 | B22: WoodSWF 1gl 25% 22x36" | C22: 10-6C | D22: 0.58
A23: 19 | B23: WoodSWF 1gl 45% 22x64" | C23: 10-6C | D23: 0.69
A24: 20 | B24: WoodSWF 1gl >50% | C24: 10-6A | D24: 1.2
A25: 21 | B25: WoodSWF 2gl 6% 22x8" 1/4" | C25: 10-6C | D25: 0.47
A26: 22 | B26: WoodSWF 2gl 25% 22x8" 1/4" | C26: 10-6C | D26: 0.48
A27: =A26+1 -> 23 | B27: WoodSWF 2gl 45% 22x8" 1/4" | C27: 10-6C | D27: 0.49
A28: 24 | B28: WoodSWF 2gl >50% 1/4" | C28: 10-6A | D28: 0.63
A29: 25 | B29: WoodSWF 2gl 6% 22x8" 1/2" | C29: 10-6C | D29: 0.46
A30: 26 | B30: WoodSWF 2gl 25% 22x8" 1/2" | C30: 10-6C | D30: 0.46
A31: 27 | B31: WoodSWF 2gl 45% 22x8" 1/2" | C31: 10-6C | D31: 0.46
A32: 28 | B32: WoodSWF 2gl >50% 1/2" | C32: 10-6A | D32: 0.58
A33: 29 | B33: WoodSWF 2gl 6% 22x8" 1/2" LowE.1 Ar | C33: 10-6C | D33: 0.44
A34: 30 | B34: WoodSWF2gl 25% 22x36" 1/2" LowE .1 Ar | C34: 10-6C | D34: 0.42
A35: 31 | B35: WoodSWF2gl 45% 22x64" 1/2" LowE .1 Ar | C35: 10-6C | D35: 0.39
A36: 32 | B36: WoodSWF 2gl >50% 1/2" LowE .1 Ar | C36: 10-6A | D36: 0.48
A37: 33 | B37: Insulated Steel, Wood Edge (ISteelWE) | C37: 10-6C | D37: 0.16
A38: 34 | B38: ISteelWE 1gl 6% 22x8" | C38: 10-6C | D38: 0.21
A39: 35 | B39: ISteelWE 1gl 25% 22x36" | C39: 10-6C | D39: 0.39
A40: 36 | B40: ISteelWE 1gl 45% 22x64" | C40: 10-6C | D40: 0.58
A41: 37 | B41: ISteelWE 1gl >50% | C41: 10-6A | D41: 1.2
A42: 38 | B42: ISteelWE 2gl 6% 22x8" 1/4" | C42: 10-6C | D42: 0.2
A43: 39 | B43: ISteelWE 2gl 25% 22x8" 1/4" | C43: 10-6C | D43: 0.28
A44: 40 | B44: ISteelWE 2gl 45% 22x8" 1/4" | C44: 10-6C | D44: 0.38
A45: 41 | B45: ISteelWE 2gl >50% 1/4" | C45: 10-6A | D45: 0.63
A46: 42 | B46: ISteelWE 2gl 6% 22x8" 1/2" | C46: 10-6C | D46: 0.19
A47: 43 | B47: ISteelWE 2gl 25% 22x8" 1/2" | C47: 10-6C | D47: 0.26
A48: 44 | B48: ISteelWE 2gl 45% 22x8" 1/2" | C48: 10-6C | D48: 0.35
A49: 45 | B49: ISteelWE 2gl >50% 1/2" | C49: 10-6A | D49: 0.58
A50: 46 | B50: ISteelWE 2gl 6% 22x8" 1/2" LowE.1 Ar | C50: 10-6C | D50: 0.18
A51: 47 | B51: ISteelWE2gl 25% 22x36" 1/2" LowE .1 Ar | C51: 10-6C | D51: 0.23
A52: 48 | B52: ISteelWE2gl 45% 22x64" 1/2" LowE .1 Ar | C52: 10-6C | D52: 0.26
A53: 49 | B53: ISteelWE 2gl >50% 1/2" LowE .1 Ar | C53: 10-6A | D53: 0.48
A54: 50 | B54: Insulated Steel, Steel Edge Steel Frame (ISteel,SEdge,SFrame) | C54: 10-6C | D54: 0.37
A55: 51 | B55: ISteel,SEdge,SFrame 1gl 6% 22x8" | C55: 10-6C | D55: 0.44
A56: 52 | B56: ISteel,SEdge,SFrame 1gl 25% 22x36" | C56: 10-6C | D56: 0.55
A57: 53 | B57: ISteel,SEdge,SFrame 1gl 45% 22x64" | C57: 10-6C | D57: 0.71
A58: 54 | B58: ISteel,SEdge,SFrame 1gl > 50% | C58: 10-6A | D58: 1.2
A59: 55 | B59: ISteel,SEdge,SFrame 2gl 6% 22x8" 1/4" | C59: 10-6C | D59: 0.42
A60: 56 | B60: ISteel,SEdge,SFrame 2gl 25% 22x36" 1/4" | C60: 10-6C | D60: 0.5
A61: 57 | B61: ISteel,SEdge,SFrame 2gl 45% 22x64" 1/4" | C61: 10-6C | D61: 0.59
A62: 58 | B62: ISteel,SEdge,SFrame 2gl > 50% 1/4" | C62: 10-6A | D62: 0.92
A63: 59 | B63: ISteel,SEdge,SFrame 2gl 6% 22x8" 1/2" | C63: 10-6C | D63: 0.41
A64: 60 | B64: ISteel,SEdge,SFrame 2gl 25% 22x36" 1/2" | C64: 10-6C | D64: 0.48
A65: 61 | B65: ISteel,SEdge,SFrame 2gl 45% 22x64" 1/2" | C65: 10-6C | D65: 0.56
A66: 62 | B66: ISteel,SEdge,SFrame 2gl > 50% 1/2" | C66: 10-6A | D66: 0.86
A67: 63 | B67: ISteel,SEdge,SFrame 2gl 6% 22x8" 1/2" LowE.1 Ar | C67: 10-6C | D67: 0.39
A68: 64 | B68: ISteel,SEdge,SFrame 2gl 25% 22x36" 1/2" LowE .1 Ar | C68: 10-6C | D68: 0.44
A69: 65 | B69: ISteel,SEdge,SFrame 2gl 45% 22x64" 1/2" LowE .1 Ar | C69: 10-6C | D69: 0.48
A70: 66 | B70: ISteel,SEdge,SFrame 2gl > 50% 1/2" LowE .1 Ar | C70: 10-6A | D70: 0.79
A71: 67 | B71: ='Flat-Vaulted Ceilings'!B339 -> == Custom Entries per WSEC R402.1.5 U-factor Reference and Calculations ======== | D71: U-Value | E71: Notes | F71: ='Flat-Vaulted Ceilings'!$F$339 -> Your entries appear at bottom of drowdown menus on "Group R" tab
A72: 68 | B72: Manufacturer ABC, Model X | C72: Custom | D72: 0.27 | E72: mnf | F72: =IF(AND(B73<>"",B72=""),"Don't skip lines",IF(AND(D72="",B72<>""),"Enter U-value",IF(AND(D72<>"",B72=""),"Enter Description",""))) -> 
A73: 69 | B73: Fiberglass with 10% glazing | C73: Custom | D73: 0.3
A74: 70 | B74: Sliding Glass, Default Nonmetal or Metal Clad, Double Pane | C74: Custom | D74: 0.55
A75: 71 | B75: U=0.16 | C75: Custom | D75: 0.16
A76: 72 | B76: Solid Core Door | C76: Custom | D76: 0.17
A77: 73 | B77: Entry Door | C77: Custom | D77: 0.18
A78: 74 | B78: French/Glass Door | C78: Custom | D78: 0.27
A79: 75 | B79: Sliding Door | C79: Custom | D79: 0.29
A80: 76 | B80: Fiberglass Door | C80: Custom | D80: 0.15
A81: 77 | C81: Custom
A82: 78 | C82: Custom
A83: 79 | C83: Custom
A84: 80 | C84: Custom
A85: 81 | C85: Custom
A86: 82 | C86: Custom
A87: 83 | C87: Custom
A88: =A87+1 -> 84 | C88: Custom
A89: 85 | C89: Custom
A90: 86 | C90: Custom
A91: 87 | C91: Custom
A92: 88 | C92: Custom
A93: 89 | C93: Custom
A94: 90 | C94: Custom
A95: 91 | C95: Custom
A96: 92 | C96: Custom
A97: 93 | C97: Custom
A98: 94 | C98: Custom
A99: 95 | C99: Custom
A100: 96 | C100: Custom
A101: 97 | C101: Custom
A102: 98 | C102: Custom
A103: 99 | C103: Custom
A104: 100 | C104: Custom
A105: 101 | C105: Custom
A106: 102 | C106: Custom
A107: 103 | C107: Custom
A108: 104 | C108: Custom
A109: 105 | C109: Custom
A110: 106 | C110: Custom
A111: 107 | C111: Custom
A112: 108 | C112: Custom
A113: 109 | C113: Custom
A114: 110 | C114: Custom
A115: 111 | C115: Custom
A116: 112 | C116: Custom
A117: 113 | C117: Custom
A118: 114 | C118: Custom

Sheet Flat-Vaulted Ceilings (hidden)
A1: WSU Code Compliance Calculator - WSEC 2015 &2018 | F1: (C) 2020
A2: Flat & Vaulted Ceilings Database
A3: Index | B3: Component Description | C3: Reference | D3: Attic U
A5: 1
A6: =A5+1 -> 2 | B6: === Most Frequently Used =========
A7: =A6+1 -> 3 | B7: R0 Attic | C7: WSU | D7: 0.302
A8: 4 | B8: R0 Scissors | C8: WSU | D8: 0.284
A9: 5 | B9: R19 blown Attic STD baffled | C9: 10-7 | D9: 0.049
A10: 6 | B10: R30 blown Attic STD baffled | C10: 10-7 | D10: 0.036
A11: 7 | B11: R38 blown Attic ADV baffled (2018 Code Baseline, 1.1-1.4) | C11: 10-7 | D11: 0.026
A12: 8 | B12: R49 blown Attic STD baffled (2018 Code Baseline, 1.1-1.4) | C12: 10-7 | D12: 0.027
A13: 9 | B13: R49 blown Attic ADV baffled (2018 1.5, 1.7, 2021 Code Baseline) | C13: 10-7 | D13: 0.02
A14: 10 | B14: R60 blown Attic STD baffled | C14: 10-7 | D14: 0.025
A15: 11 | B15: R60 blown Attic ADV baffled (2021 1.3, 1.4; 2018 1.6) | C15: 10-7 | D15: 0.017
A16: 12 | B16: R38 blown Scissor 4:12 ADV baffled | C16: 10-7 | D16: 0.025
A17: 13 | B17: R49 blown Scissor 4:12 ADV baffled (2018 1.7) | C17: 10-7 | D17: 0.02
A18: 14 | B18: R38 blown Scissor 5:12 ADV baffled | C18: 10-7 | D18: 0.026
A19: 15 | B19: R49 blown Scissor 5:12 ADV baffled | C19: 10-7 | D19: 0.02
A20: 16 | B20: R19 batt Vault vented 2x10 16oc | C20: 10-7 | D20: 0.049
A21: =A19+1 -> 16 | B21: R19 batt Vault vented 2x10 24oc | C21: 10-7 | D21: 0.048
A22: 17 | B22: R30 batt Vault vented 2x12 16oc | C22: 10-7 | D22: 0.034
A23: 18 | B23: R30 batt Vault vented 2x12 24oc | C23: 10-7 | D23: 0.033
A24: 19 | B24: R38 batt Vault vented 2x14 16oc (2018 Code Baseline) | C24: 10-7 | D24: 0.027
A25: 20 | B25: R38 batt Vault vented 2x14 24oc (2018 Code Baseline) | C25: 10-7 | D25: 0.027
A26: 21 | B26: R49 batt Vault 24oc | C26: - | D26: 0.02
A27: 22 | B27: R60 batt Vault 24oc | C27: - | D27: 0.017
A28: =A25+1 -> 21 | B28: No ceiling/roof in thermal envelope | C28: NA | D28: 0
A29: =A26+1 -> 22 | B29: 2021 U-factor Baseline (Table R402.1.2) | C29: Table R402.1.2 | D29: 0.024
A30: =A27+1 -> 23 | B30: ============================ | C30: NA
A31: 24 | B31: R0 Attic | C31: WSU | D31: 0.302
A32: =A31+1 -> 25 | B32: R0 Scissors | C32: WSU | D32: 0.284
A33: 26 | B33: R19 blown Attic STD baffled | C33: 10-7 | D33: 0.049
A34: 27 | B34: R19 blown Attic ADV baffled | C34: 10-7 | D34: 0.047
A35: 28 | B35: R30 blown Attic STD baffled | C35: 10-7 | D35: 0.036
A36: 29 | B36: R30 blown Attic ADV baffled | C36: 10-7 | D36: 0.032
A37: 30 | B37: R38 blown Attic STD baffled | C37: 10-7 | D37: 0.031
A38: 31 | B38: R38 blown Attic ADV baffled | C38: 10-7 | D38: 0.026
A39: 32 | B39: R49 blown Attic STD baffled | C39: 10-7 | D39: 0.027
A40: 33 | B40: R49 blown Attic ADV baffled | C40: 10-7 | D40: 0.02
A41: 34 | B41: R60 blown Attic STD baffled | C41: 10-7 | D41: 0.024
A42: 35 | B42: R60 blown Attic ADV baffled | C42: 10-7 | D42: 0.017
A43: 36 | B43: R30 blown Scissor 4:12 STD baffled | C43: 10-7 | D43: 0.043
A44: 37 | B44: R30 blown Scissor 4:12 ADV baffled | C44: 10-7 | D44: 0.031
A45: 38 | B45: R38 blown Scissor 4:12 STD baffled | C45: 10-7 | D45: 0.04
A46: 39 | B46: R38 blown Scissor 4:12 ADV baffled | C46: 10-7 | D46: 0.025
A47: 40 | B47: R49 blown Scissor 4:12 STD baffled | C47: 10-7 | D47: 0.038
A48: 41 | B48: R49 blown Scissor 4:12 ADV baffled | C48: 10-7 | D48: 0.02
A49: 42 | B49: R30 blown Scissor 5:12 STD baffled | C49: 10-7 | D49: 0.039
A50: 43 | B50: R30 blown Scissor 5:12 ADV baffled | C50: 10-7 | D50: 0.032
A51: 44 | B51: R38 blown Scissor 5:12 STD baffled | C51: 10-7 | D51: 0.035
A52: 45 | B52: R38 blown Scissor 5:12 ADV baffled | C52: 10-7 | D52: 0.026
A53: 46 | B53: R49 blown Scissor 5:12 STD baffled | C53: 10-7 | D53: 0.032
A54: 47 | B54: R49 blown Scissor 5:12 ADV baffled | C54: 10-7 | D54: 0.02
A55: 48 | B55: St Truss R19 cavity 12' Span | C55: 10-7A | D55: 0.1075
A56: 49 | B56: St Truss R19 cavity 14' Span | C56: 10-7A | D56: 0.0991
A57: 50 | B57: St Truss R19 cavity 16' Span | C57: 10-7A | D57: 0.0928
A58: 51 | B58: St Truss R19 cavity 18' Span | C58: 10-7A | D58: 0.0878
A59: 52 | B59: St Truss R19 cavity 20' Span | C59: 10-7A | D59: 0.0839
A60: 53 | B60: St Truss R19 cavity 22' Span | C60: 10-7A | D60: 0.0807
A61: 54 | B61: St Truss R19 cavity 24' Span | C61: 10-7A | D61: 0.078
A62: 55 | B62: St Truss R19 cavity 26' Span | C62: 10-7A | D62: 0.0757
A63: 56 | B63: St Truss R19 cavity 28' Span | C63: 10-7A | D63: 0.0737
A64: 57 | B64: St Truss R19 cavity 30' Span | C64: 10-7A | D64: 0.072
A65: 58 | B65: St Truss R19 cavity 32' Span | C65: 10-7A | D65: 0.0706
A66: 59 | B66: St Truss R19 cavity 34' Span | C66: 10-7A | D66: 0.0693
A67: 60 | B67: St Truss R19 cavity 36' Span | C67: 10-7A | D67: 0.0681
A68: 61 | B68: St Truss R30 cavity 12' Span | C68: 10-7A | D68: 0.0907
A69: 62 | B69: St Truss R30 cavity 14' Span | C69: 10-7A | D69: 0.0823
A70: 63 | B70: St Truss R30 cavity 16' Span | C70: 10-7A | D70: 0.076
A71: 64 | B71: St Truss R30 cavity 18' Span | C71: 10-7A | D71: 0.071
A72: 65 | B72: St Truss R30 cavity 20' Span | C72: 10-7A | D72: 0.0671
A73: 66 | B73: St Truss R30 cavity 22' Span | C73: 10-7A | D73: 0.0638
A74: 67 | B74: St Truss R30 cavity 24' Span | C74: 10-7A | D74: 0.0612
A75: 68 | B75: St Truss R30 cavity 26' Span | C75: 10-7A | D75: 0.0589
A76: 69 | B76: St Truss R30 cavity 28' Span | C76: 10-7A | D76: 0.0569
A77: 70 | B77: St Truss R30 cavity 30' Span | C77: 10-7A | D77: 0.0552
A78: 71 | B78: St Truss R30 cavity 32' Span | C78: 10-7A | D78: 0.0538
A79: 72 | B79: St Truss R30 cavity 34' Span | C79: 10-7A | D79: 0.0525
A80: 73 | B80: St Truss R30 cavity 36' Span | C80: 10-7A | D80: 0.0513
A81: 74 | B81: St Truss R38 cavity 12' Span | C81: 10-7A | D81: 0.0844
A82: 75 | B82: St Truss R38 cavity 14' Span | C82: 10-7A | D82: 0.0759
A83: 76 | B83: St Truss R38 cavity 16' Span | C83: 10-7A | D83: 0.0696
A84: 77 | B84: St Truss R38 cavity 18' Span | C84: 10-7A | D84: 0.0647
A85: =A84+1 -> 78 | B85: St Truss R38 cavity 20' Span | C85: 10-7A | D85: 0.0607
A86: 79 | B86: St Truss R38 cavity 22' Span | C86: 10-7A | D86: 0.0575
A87: 80 | B87: St Truss R38 cavity 24' Span | C87: 10-7A | D87: 0.0548
A88: 81 | B88: St Truss R38 cavity 26' Span | C88: 10-7A | D88: 0.0525
A89: 82 | B89: St Truss R38 cavity 28' Span | C89: 10-7A | D89: 0.0506
A90: 83 | B90: St Truss R38 cavity 30' Span | C90: 10-7A | D90: 0.0489
A91: 84 | B91: St Truss R38 cavity 32' Span | C91: 10-7A | D91: 0.0474
A92: 85 | B92: St Truss R38 cavity 34' Span | C92: 10-7A | D92: 0.0461
A93: 86 | B93: St Truss R38 cavity 36' Span | C93: 10-7A | D93: 0.0449
A94: 87 | B94: St Truss R49 cavity 12' Span | C94: 10-7A | D94: 0.0789
A95: 88 | B95: St Truss R49 cavity 14' Span | C95: 10-7A | D95: 0.0704
A96: 89 | B96: St Truss R49 cavity 16' Span | C96: 10-7A | D96: 0.0641
A97: 90 | B97: St Truss R49 cavity 18' Span | C97: 10-7A | D97: 0.0592
A98: 91 | B98: St Truss R49 cavity 20' Span | C98: 10-7A | D98: 0.0552
A99: 92 | B99: St Truss R49 cavity 22' Span | C99: 10-7A | D99: 0.052
A100: 93 | B100: St Truss R49 cavity 24' Span | C100: 10-7A | D100: 0.0493
A101: 94 | B101: St Truss R49 cavity 26' Span | C101: 10-7A | D101: 0.047
A102: 95 | B102: St Truss R49 cavity 28' Span | C102: 10-7A | D102: 0.0451
A103: 96 | B103: St Truss R49 cavity 30' Span | C103: 10-7A | D103: 0.0434
A104: 97 | B104: St Truss R49 cavity 32' Span | C104: 10-7A | D104: 0.0419
A105: 98 | B105: St Truss R49 cavity 34' Span | C105: 10-7A | D105: 0.0406
A106: 99 | B106: St Truss R49 cavity 36' Span | C106: 10-7A | D106: 0.0395
A107: 100 | B107: St Truss R19 cavity R3 Sheath 12' Span | C107: 10-7A | D107: 0.0809
A108: 101 | B108: St Truss R19 cavity R3 Sheath 14' Span | C108: 10-7A | D108: 0.0763
A109: 102 | B109: St Truss R19 cavity R3 Sheath 16' Span | C109: 10-7A | D109: 0.0728
A110: 103 | B110: St Truss R19 cavity R3 Sheath 18' Span | C110: 10-7A | D110: 0.0701
A111: 104 | B111: St Truss R19 cavity R3 Sheath 20' Span | C111: 10-7A | D111: 0.0679
A112: 105 | B112: St Truss R19 cavity R3 Sheath 22' Span | C112: 10-7A | D112: 0.0661
A113: 106 | B113: St Truss R19 cavity R3 Sheath 24' Span | C113: 10-7A | D113: 0.0647
A114: 107 | B114: St Truss R19 cavity R3 Sheath 26' Span | C114: 10-7A | D114: 0.0634
A115: 108 | B115: St Truss R19 cavity R3 Sheath 28' Span | C115: 10-7A | D115: 0.0623
A116: 109 | B116: St Truss R19 cavity R3 Sheath 30' Span | C116: 10-7A | D116: 0.0614
A117: 110 | B117: St Truss R19 cavity R3 Sheath 32' Span | C117: 10-7A | D117: 0.0606
A118: 111 | B118: St Truss R19 cavity R3 Sheath 34' Span | C118: 10-7A | D118: 0.0599
A119: 112 | B119: St Truss R19 cavity R3 Sheath 36' Span | C119: 10-7A | D119: 0.0592
A120: 113 | B120: St Truss R30 cavity R3 Sheath 12' Span | C120: 10-7A | D120: 0.0641
A121: 114 | B121: St Truss R30 cavity R3 Sheath 14' Span | C121: 10-7A | D121: 0.0595
A122: 115 | B122: St Truss R30 cavity R3 Sheath 16' Span | C122: 10-7A | D122: 0.056
A123: 116 | B123: St Truss R30 cavity R3 Sheath 18' Span | C123: 10-7A | D123: 0.0533
A124: 117 | B124: St Truss R30 cavity R3 Sheath 20' Span | C124: 10-7A | D124: 0.0511
A125: 118 | B125: St Truss R30 cavity R3 Sheath 22' Span | C125: 10-7A | D125: 0.0493
A126: 119 | B126: St Truss R30 cavity R3 Sheath 24' Span | C126: 10-7A | D126: 0.0478
A127: 120 | B127: St Truss R30 cavity R3 Sheath 26' Span | C127: 10-7A | D127: 0.0466
A128: 121 | B128: St Truss R30 cavity R3 Sheath 28' Span | C128: 10-7A | D128: 0.0455
A129: 122 | B129: St Truss R30 cavity R3 Sheath 30' Span | C129: 10-7A | D129: 0.0446
A130: 123 | B130: St Truss R30 cavity R3 Sheath 32' Span | C130: 10-7A | D130: 0.0438
A131: 124 | B131: St Truss R30 cavity R3 Sheath 34' Span | C131: 10-7A | D131: 0.0431
A132: 125 | B132: St Truss R30 cavity R3 Sheath 36' Span | C132: 10-7A | D132: 0.0424
A133: 126 | B133: St Truss R38 cavity R3 Sheath 12' Span | C133: 10-7A | D133: 0.0577
A134: 127 | B134: St Truss R38 cavity R3 Sheath 14' Span | C134: 10-7A | D134: 0.0531
A135: 128 | B135: St Truss R38 cavity R3 Sheath 16' Span | C135: 10-7A | D135: 0.0496
A136: 129 | B136: St Truss R38 cavity R3 Sheath 18' Span | C136: 10-7A | D136: 0.0469
A137: 130 | B137: St Truss R38 cavity R3 Sheath 20' Span | C137: 10-7A | D137: 0.0447
A138: 131 | B138: St Truss R38 cavity R3 Sheath 22' Span | C138: 10-7A | D138: 0.043
A139: 132 | B139: St Truss R38 cavity R3 Sheath 24' Span | C139: 10-7A | D139: 0.0415
A140: 133 | B140: St Truss R38 cavity R3 Sheath 26' Span | C140: 10-7A | D140: 0.0402
A141: 134 | B141: St Truss R38 cavity R3 Sheath 28' Span | C141: 10-7A | D141: 0.0392
A142: 135 | B142: St Truss R38 cavity R3 Sheath 30' Span | C142: 10-7A | D142: 0.0382
A143: 136 | B143: St Truss R38 cavity R3 Sheath 32' Span | C143: 10-7A | D143: 0.0374
A144: 137 | B144: St Truss R38 cavity R3 Sheath 34' Span | C144: 10-7A | D144: 0.0367
A145: 138 | B145: St Truss R38 cavity R3 Sheath 36' Span | C145: 10-7A | D145: 0.0361
A146: 139 | B146: St Truss R49 cavity R3 Sheath 12' Span | C146: 10-7A | D146: 0.0523
A147: 140 | B147: St Truss R49 cavity R3 Sheath 14' Span | C147: 10-7A | D147: 0.0476
A148: 141 | B148: St Truss R49 cavity R3 Sheath 16' Span | C148: 10-7A | D148: 0.0441
A149: =A148+1 -> 142 | B149: St Truss R49 cavity R3 Sheath 18' Span | C149: 10-7A | D149: 0.0414
A150: 143 | B150: St Truss R49 cavity R3 Sheath 20' Span | C150: 10-7A | D150: 0.0393
A151: 144 | B151: St Truss R49 cavity R3 Sheath 22' Span | C151: 10-7A | D151: 0.0375
A152: 145 | B152: St Truss R49 cavity R3 Sheath 24' Span | C152: 10-7A | D152: 0.036
A153: 146 | B153: St Truss R49 cavity R3 Sheath 26' Span | C153: 10-7A | D153: 0.0348
A154: 147 | B154: St Truss R49 cavity R3 Sheath 28' Span | C154: 10-7A | D154: 0.0337
A155: 148 | B155: St Truss R49 cavity R3 Sheath 30' Span | C155: 10-7A | D155: 0.0328
A156: 149 | B156: St Truss R49 cavity R3 Sheath 32' Span | C156: 10-7A | D156: 0.0319
A157: 150 | B157: St Truss R49 cavity R3 Sheath 34' Span | C157: 10-7A | D157: 0.0312
A158: 151 | B158: St Truss R49 cavity R3 Sheath 36' Span | C158: 10-7A | D158: 0.0306
A159: 152 | B159: St Truss R19 cavity R5 Sheath 12' Span | C159: 10-7A | D159: 0.0732
A160: 153 | B160: St Truss R19 cavity R5 Sheath 14' Span | C160: 10-7A | D160: 0.0697
A161: 154 | B161: St Truss R19 cavity R5 Sheath 16' Span | C161: 10-7A | D161: 0.067
A162: 155 | B162: St Truss R19 cavity R5 Sheath 18' Span | C162: 10-7A | D162: 0.0649
A163: 156 | B163: St Truss R19 cavity R5 Sheath 20' Span | C163: 10-7A | D163: 0.0633
A164: 157 | B164: St Truss R19 cavity R5 Sheath 22' Span | C164: 10-7A | D164: 0.0619
A165: 158 | B165: St Truss R19 cavity R5 Sheath 24' Span | C165: 10-7A | D165: 0.0608
A166: 159 | B166: St Truss R19 cavity R5 Sheath 26' Span | C166: 10-7A | D166: 0.0598
A167: 160 | B167: St Truss R19 cavity R5 Sheath 28' Span | C167: 10-7A | D167: 0.059
A168: 161 | B168: St Truss R19 cavity R5 Sheath 30' Span | C168: 10-7A | D168: 0.0583
A169: 162 | B169: St Truss R19 cavity R5 Sheath 32' Span | C169: 10-7A | D169: 0.0577
A170: 163 | B170: St Truss R19 cavity R5 Sheath 34' Span | C170: 10-7A | D170: 0.0571
A171: 164 | B171: St Truss R19 cavity R5 Sheath 36' Span | C171: 10-7A | D171: 0.0567
A172: 165 | B172: St Truss R30 cavity R5 Sheath 12' Span | C172: 10-7A | D172: 0.0564
A173: 166 | B173: St Truss R30 cavity R5 Sheath 14' Span | C173: 10-7A | D173: 0.0529
A174: 167 | B174: St Truss R30 cavity R5 Sheath 16' Span | C174: 10-7A | D174: 0.0502
A175: 168 | B175: St Truss R30 cavity R5 Sheath 18' Span | C175: 10-7A | D175: 0.0481
A176: 169 | B176: St Truss R30 cavity R5 Sheath 20' Span | C176: 10-7A | D176: 0.0465
A177: 170 | B177: St Truss R30 cavity R5 Sheath 22' Span | C177: 10-7A | D177: 0.051
A178: 171 | B178: St Truss R30 cavity R5 Sheath 24' Span | C178: 10-7A | D178: 0.044
A179: 172 | B179: St Truss R30 cavity R5 Sheath 26' Span | C179: 10-7A | D179: 0.043
A180: 173 | B180: St Truss R30 cavity R5 Sheath 28' Span | C180: 10-7A | D180: 0.0422
A181: 174 | B181: St Truss R30 cavity R5 Sheath 30' Span | C181: 10-7A | D181: 0.0415
A182: 175 | B182: St Truss R30 cavity R5 Sheath 32' Span | C182: 10-7A | D182: 0.0409
A183: 176 | B183: St Truss R30 cavity R5 Sheath 34' Span | C183: 10-7A | D183: 0.0403
A184: 177 | B184: St Truss R30 cavity R5 Sheath 36' Span | C184: 10-7A | D184: 0.0399
A185: 178 | B185: St Truss R38 cavity R5 Sheath 12' Span | C185: 10-7A | D185: 0.0501
A186: 179 | B186: St Truss R38 cavity R5 Sheath 14' Span | C186: 10-7A | D186: 0.0465
A187: 180 | B187: St Truss R38 cavity R5 Sheath 16' Span | C187: 10-7A | D187: 0.0438
A188: 181 | B188: St Truss R38 cavity R5 Sheath 18' Span | C188: 10-7A | D188: 0.0418
A189: 182 | B189: St Truss R38 cavity R5 Sheath 20' Span | C189: 10-7A | D189: 0.0401
A190: 183 | B190: St Truss R38 cavity R5 Sheath 22' Span | C190: 10-7A | D190: 0.0388
A191: 184 | B191: St Truss R38 cavity R5 Sheath 24' Span | C191: 10-7A | D191: 0.0376
A192: 185 | B192: St Truss R38 cavity R5 Sheath 26' Span | C192: 10-7A | D192: 0.0367
A193: 186 | B193: St Truss R38 cavity R5 Sheath 28' Span | C193: 10-7A | D193: 0.0359
A194: 187 | B194: St Truss R38 cavity R5 Sheath 30' Span | C194: 10-7A | D194: 0.0351
A195: 188 | B195: St Truss R38 cavity R5 Sheath 32' Span | C195: 10-7A | D195: 0.0345
A196: 189 | B196: St Truss R38 cavity R5 Sheath 34' Span | C196: 10-7A | D196: 0.034
A197: 190 | B197: St Truss R38 cavity R5 Sheath 36' Span | C197: 10-7A | D197: 0.0335
A198: 191 | B198: St Truss R49 cavity R5 Sheath 12' Span | C198: 10-7A | D198: 0.0446
A199: 192 | B199: St Truss R49 cavity R5 Sheath 14' Span | C199: 10-7A | D199: 0.041
A200: 193 | B200: St Truss R49 cavity R5 Sheath 16' Span | C200: 10-7A | D200: 0.0384
A201: 194 | B201: St Truss R49 cavity R5 Sheath 18' Span | C201: 10-7A | D201: 0.0363
... 178 more rows

Sheet Walls(above grade) (hidden)
A1: WSU Code Compliance Calculator - WSEC 2015 &2018 | F1: (C) 2020
A2: Above-Grade Walls Database
A3: Index | B3: Component Description | C3: Reference | D3: Wall U
A5: 1
A6: =A5+1 -> 2 | B6: === Most Frequently Used =========
A7: =A6+1 -> 3 | B7: R11 cavity+R0 foam STD 2X4W Lap | C7: 10-5 | D7: 0.088
A8: 4 | B8: R13 cavity+R10 foam STD 2X4W | C8: 10-5 | D8: 0.045
A9: 5 | B9: R19 cavity+R0 foam STD 2X6W Lap | C9: 10-5 | D9: 0.062
A10: 6 | B10: R20 cavity+R5 foam STD 2X6W | D10: 0.045
A11: 7 | B11: R21 cavity+R0 foam INT 2X6W Lap (Code Baseline) | C11: 10-5 | D11: 0.054
A12: 8 | B12: R21 cavity+R0 foam INT 2X6W T111 (Code Baseline) | C12: 10-5 | D12: 0.056
A13: 9 | B13: R21 cavity+R4 foam INT 2X6W Lap (2018 1.4) | C13: 10-5 | D13: 0.043
A14: 10 | B14: R21 cavity+R4 foam INT 2X6W T111 (2018 1.4) | C14: 10-5 | D14: 0.045
A15: 11 | B15: R21 cavity+R5 foam INT 2X6W Lap | C15: 10-5 | D15: 0.041
A16: 12 | B16: R21 cavity+R5 foam INT 2X6W T111 | C16: 10-5 | D16: 0.042
A17: 13 | B17: R21 cavity+R12 foam INT 2X6W Lap (2021 1.3; 2018 1.5) | C17: 10-5 | D17: 0.031
A18: =A17+1 -> 14 | B18: R21 cavity+R12 foam INT 2X6W T111 (2021 1.3; 2018 1.5) | C18: 10-5 | D18: 0.032
A19: 15 | B19: R21 cavity+R16 foam INT 2X6W Lap (2021 1.4; 2018 1.6) | C19: App A | D19: 0.027
A20: 16 | B20: R21 cavity+R16 foam INT 2X6W T111 (2021 1.4; 2018 1.6) | C20: App A | D20: 0.028
A21: 17 | B21: No above-grade walls in thermal envelope | C21: NA | D21: 0
A22: 18 | B22: 2021 U-factor Baseline (Table R402.1.2) | C22: Table R402.1.2 | D22: 0.056
A23: 19 | B23: ============================ | C23: NA
A24: 20 | B24: R0 cavity+R0 foam STD 2X4W Lap | C24: App A | D24: 0.3133
A25: 21 | B25: R0 cavity+R0 foam STD 2X4W T111 | C25: App A | D25: 0.3177
A26: 22 | B26: R11 cavity+R0 foam STD 2X4W Lap | C26: 10-5 | D26: 0.088
A27: 23 | B27: R11 cavity+R0 foam ADV 2X4W Lap | C27: 10-5 | D27: 0.084
A28: 24 | B28: R11 cavity+R0 foam STD 2X4W T111 | C28: 10-5 | D28: 0.094
A29: 25 | B29: R11 cavity+R0 foam ADV 2X4W T111 | C29: 10-5 | D29: 0.09
A30: 26 | B30: R11 cavity+R1 foam STD 2X4W Lap | C30: 10-5 | D30: 0.08
A31: 27 | B31: R11 cavity+R1 foam ADV 2X4W Lap | C31: 10-5 | D31: 0.77
A32: 28 | B32: R11 cavity+R1 foam STD 2X4W T111 | C32: 10-5 | D32: 0.085
A33: 29 | B33: R11 cavity+R1 foam ADV 2X4W T111 | C33: 10-5 | D33: 0.082
A34: 30 | B34: R11 cavity+R2 foam STD 2X4W Lap | C34: 10-5 | D34: 0.074
A35: 31 | B35: R11 cavity+R2 foam ADV 2X4W Lap | C35: 10-5 | D35: 0.071
A36: 32 | B36: R11 cavity+R2 foam STD 2X4W T111 | C36: 10-5 | D36: 0.078
A37: 33 | B37: R11 cavity+R2 foam ADV 2X4W T111 | C37: 10-5 | D37: 0.075
A38: 34 | B38: R11 cavity+R3 foam STD 2X4W Lap | C38: 10-5 | D38: 0.069
A39: 35 | B39: R11 cavity+R3 foam ADV 2X4W Lap | C39: 10-5 | D39: 0.066
A40: 36 | B40: R11 cavity+R3 foam STD 2X4W T111 | C40: 10-5 | D40: 0.072
A41: 37 | B41: R11 cavity+R3 foam ADV 2X4W T111 | C41: 10-5 | D41: 0.07
A42: 38 | B42: R11 cavity+R4 foam STD 2X4W Lap | C42: 10-5 | D42: 0.064
A43: 39 | B43: R11 cavity+R4 foam ADV 2X4W Lap | C43: 10-5 | D43: 0.062
A44: 40 | B44: R11 cavity+R4 foam STD 2X4W T111 | C44: 10-5 | D44: 0.067
A45: 41 | B45: R11 cavity+R4 foam ADV 2X4W T111 | C45: 10-5 | D45: 0.065
A46: 42 | B46: R11 cavity+R5 foam STD 2X4W Lap | C46: 10-5 | D46: 0.06
A47: 43 | B47: R11 cavity+R5 foam ADV 2X4W Lap | C47: 10-5 | D47: 0.058
A48: 44 | B48: R11 cavity+R5 foam STD 2X4W T111 | C48: 10-5 | D48: 0.063
A49: 45 | B49: R11 cavity+R5 foam ADV 2X4W T111 | C49: 10-5 | D49: 0.061
A50: 46 | B50: R11 cavity+R6 foam STD 2X4W Lap | C50: 10-5 | D50: 0.056
A51: 47 | B51: R11 cavity+R6 foam ADV 2X4W Lap | C51: 10-5 | D51: 0.055
A52: 48 | B52: R11 cavity+R6 foam STD 2X4W T111 | C52: 10-5 | D52: 0.059
A53: 49 | B53: R11 cavity+R6 foam ADV 2X4W T111 | C53: 10-5 | D53: 0.057
A54: 50 | B54: R11 cavity+R7 foam STD 2X4W Lap | C54: 10-5 | D54: 0.053
A55: 51 | B55: R11 cavity+R7 foam ADV 2X4W Lap | C55: 10-5 | D55: 0.052
A56: 52 | B56: R11 cavity+R7 foam STD 2X4W T111 | C56: 10-5 | D56: 0.055
A57: 53 | B57: R11 cavity+R7 foam ADV 2X4W T111 | C57: 10-5 | D57: 0.054
A58: 54 | B58: R11 cavity+R8 foam STD 2X4W Lap | C58: 10-5 | D58: 0.051
A59: 55 | B59: R11 cavity+R8 foam ADV 2X4W Lap | C59: 10-5 | D59: 0.049
A60: 56 | B60: R11 cavity+R8 foam STD 2X4W T111 | C60: 10-5 | D60: 0.052
A61: 57 | B61: R11 cavity+R8 foam ADV 2X4W T111 | C61: 10-5 | D61: 0.051
A62: 58 | B62: R11 cavity+R9 foam STD 2X4W Lap | C62: 10-5 | D62: 0.048
A63: 59 | B63: R11 cavity+R9 foam ADV 2X4W Lap | C63: 10-5 | D63: 0.047
A64: 60 | B64: R11 cavity+R9 foam STD 2X4W T111 | C64: 10-5 | D64: 0.05
A65: 61 | B65: R11 cavity+R9 foam ADV 2X4W T111 | C65: 10-5 | D65: 0.049
A66: 62 | B66: R11 cavity+R10 foam STD 2X4W Lap | C66: 10-5 | D66: 0.046
A67: 63 | B67: R11 cavity+R10 foam ADV 2X4W Lap | C67: 10-5 | D67: 0.045
A68: 64 | B68: R11 cavity+R10 foam STD 2X4W T111 | C68: 10-5 | D68: 0.047
A69: 65 | B69: R11 cavity+R10 foam ADV 2X4W T111 | C69: 10-5 | D69: 0.046
A70: 66 | B70: R11 cavity+R11 foam STD 2X4W Lap | C70: 10-5 | D70: 0.044
A71: 67 | B71: R11 cavity+R11 foam ADV 2X4W Lap | C71: 10-5 | D71: 0.043
A72: 68 | B72: R11 cavity+R11 foam STD 2X4W T111 | C72: 10-5 | D72: 0.045
A73: 69 | B73: R11 cavity+R11 foam ADV 2X4W T111 | C73: 10-5 | D73: 0.044
A74: 70 | B74: R11 cavity+R12 foam STD 2X4W Lap | C74: 10-5 | D74: 0.042
A75: 71 | B75: R11 cavity+R12 foam ADV 2X4W Lap | C75: 10-5 | D75: 0.041
A76: 72 | B76: R11 cavity+R12 foam STD 2X4W T111 | C76: 10-5 | D76: 0.043
A77: 73 | B77: R11 cavity+R12 foam ADV 2X4W T111 | C77: 10-5 | D77: 0.042
A78: 74 | B78: R13 cavity+R0 foam STD 2X4W Lap | C78: 10-5 | D78: 0.082
A79: =A78+1 -> 75 | B79: R13 cavity+R0 foam ADV 2X4W Lap | C79: 10-5 | D79: 0.078
A80: 76 | B80: R13 cavity+R0 foam STD 2X4W T111 | C80: 10-5 | D80: 0.088
A81: 77 | B81: R13 cavity+R0 foam ADV 2X4W T111 | C81: 10-5 | D81: 0.083
A82: 78 | B82: R13 cavity+R1 foam STD 2X4W Lap | C82: 10-5 | D82: 0.075
A83: 79 | B83: R13 cavity+R1 foam ADV 2X4W Lap | C83: 10-5 | D83: 0.072
A84: 80 | B84: R13 cavity+R1 foam STD 2X4W T111 | C84: 10-5 | D84: 0.08
A85: 81 | B85: R13 cavity+R1 foam ADV 2X4W T111 | C85: 10-5 | D85: 0.076
A86: 82 | B86: R13 cavity+R2 foam STD 2X4W Lap | C86: 10-5 | D86: 0.069
A87: 83 | B87: R13 cavity+R2 foam ADV 2X4W Lap | C87: 10-5 | D87: 0.066
A88: 84 | B88: R13 cavity+R2 foam STD 2X4W T111 | C88: 10-5 | D88: 0.073
A89: 85 | B89: R13 cavity+R2 foam ADV 2X4W T111 | C89: 10-5 | D89: 0.07
A90: 86 | B90: R13 cavity+R3 foam STD 2X4W Lap | C90: 10-5 | D90: 0.065
A91: 87 | B91: R13 cavity+R3 foam ADV 2X4W Lap | C91: 10-5 | D91: 0.062
A92: 88 | B92: R13 cavity+R3 foam STD 2X4W T111 | C92: 10-5 | D92: 0.068
A93: 89 | B93: R13 cavity+R3 foam ADV 2X4W T111 | C93: 10-5 | D93: 0.065
A94: 90 | B94: R13 cavity+R4 foam STD 2X4W Lap | C94: 10-5 | D94: 0.06
A95: 91 | B95: R13 cavity+R4 foam ADV 2X4W Lap | C95: 10-5 | D95: 0.058
A96: 92 | B96: R13 cavity+R4 foam STD 2X4W T111 | C96: 10-5 | D96: 0.063
A97: 93 | B97: R13 cavity+R4 foam ADV 2X4W T111 | C97: 10-5 | D97: 0.061
A98: 94 | B98: R13 cavity+R5 foam STD 2X4W Lap | C98: 10-5 | D98: 0.057
A99: 95 | B99: R13 cavity+R5 foam ADV 2X4W Lap | C99: 10-5 | D99: 0.055
A100: 96 | B100: R13 cavity+R5 foam STD 2X4W T111 | C100: 10-5 | D100: 0.059
A101: 97 | B101: R13 cavity+R5 foam ADV 2X4W T111 | C101: 10-5 | D101: 0.057
A102: 98 | B102: R13 cavity+R6 foam STD 2X4W Lap | C102: 10-5 | D102: 0.053
A103: 99 | B103: R13 cavity+R6 foam ADV 2X4W Lap | C103: 10-5 | D103: 0.052
A104: 100 | B104: R13 cavity+R6 foam STD 2X4W T111 | C104: 10-5 | D104: 0.056
A105: 101 | B105: R13 cavity+R6 foam ADV 2X4W T111 | C105: 10-5 | D105: 0.054
A106: 102 | B106: R13 cavity+R7 foam STD 2X4W Lap | C106: 10-5 | D106: 0.051
A107: 103 | B107: R13 cavity+R7 foam ADV 2X4W Lap | C107: 10-5 | D107: 0.049
A108: 104 | B108: R13 cavity+R7 foam STD 2X4W T111 | C108: 10-5 | D108: 0.052
A109: 105 | B109: R13 cavity+R7 foam ADV 2X4W T111 | C109: 10-5 | D109: 0.051
A110: 106 | B110: R13 cavity+R8 foam STD 2X4W Lap | C110: 10-5 | D110: 0.048
A111: 107 | B111: R13 cavity+R8 foam ADV 2X4W Lap | C111: 10-5 | D111: 0.047
A112: 108 | B112: R13 cavity+R8 foam STD 2X4W T111 | C112: 10-5 | D112: 0.05
A113: 109 | B113: R13 cavity+R8 foam ADV 2X4W T111 | C113: 10-5 | D113: 0.048
A114: 110 | B114: R13 cavity+R9 foam STD 2X4W Lap | C114: 10-5 | D114: 0.046
A115: 111 | B115: R13 cavity+R9 foam ADV 2X4W Lap | C115: 10-5 | D115: 0.045
A116: 112 | B116: R13 cavity+R9 foam STD 2X4W T111 | C116: 10-5 | D116: 0.047
A117: 113 | B117: R13 cavity+R9 foam ADV 2X4W T111 | C117: 10-5 | D117: 0.046
A118: 114 | B118: R13 cavity+R10 foam STD 2X4W Lap | C118: 10-5 | D118: 0.044
A119: 115 | B119: R13 cavity+R10 foam ADV 2X4W Lap | C119: 10-5 | D119: 0.043
A120: 116 | B120: R13 cavity+R10 foam STD 2X4W T111 | C120: 10-5 | D120: 0.045
A121: 117 | B121: R13 cavity+R10 foam ADV 2X4W T111 | C121: 10-5 | D121: 0.044
A122: 118 | B122: R13 cavity+R11 foam STD 2X4W Lap | C122: 10-5 | D122: 0.042
A123: 119 | B123: R13 cavity+R11 foam ADV 2X4W Lap | C123: 10-5 | D123: 0.041
A124: 120 | B124: R13 cavity+R11 foam STD 2X4W T111 | C124: 10-5 | D124: 0.043
A125: 121 | B125: R13 cavity+R11 foam ADV 2X4W T111 | C125: 10-5 | D125: 0.042
A126: 122 | B126: R13 cavity+R12 foam STD 2X4W Lap | C126: 10-5 | D126: 0.04
A127: 123 | B127: R13 cavity+R12 foam ADV 2X4W Lap | C127: 10-5 | D127: 0.039
A128: 124 | B128: R13 cavity+R12 foam STD 2X4W T111 | C128: 10-5 | D128: 0.041
A129: 125 | B129: R13 cavity+R12 foam ADV 2X4W T111 | C129: 10-5 | D129: 0.04
A130: 126 | B130: R15 cavity+R0 foam STD 2X4W Lap | C130: 10-5 | D130: 0.076
A131: 127 | B131: R15 cavity+R0 foam ADV 2X4W Lap | C131: 10-5 | D131: 0.071
A132: 128 | B132: R15 cavity+R0 foam STD 2X4W T111 | C132: 10-5 | D132: 0.081
A133: 129 | B133: R15 cavity+R0 foam ADV 2X4W T111 | C133: 10-5 | D133: 0.075
A134: 130 | B134: R15 cavity+R1 foam STD 2X4W Lap | C134: 10-5 | D134: 0.069
A135: 131 | B135: R15 cavity+R1 foam ADV 2X4W Lap | C135: 10-5 | D135: 0.065
A136: 132 | B136: R15 cavity+R1 foam STD 2X4W T111 | C136: 10-5 | D136: 0.073
A137: 133 | B137: R15 cavity+R1 foam ADV 2X4W T111 | C137: 10-5 | D137: 0.069
A138: 134 | B138: R15 cavity+R2 foam STD 2X4W Lap | C138: 10-5 | D138: 0.064
A139: 135 | B139: R15 cavity+R2 foam ADV 2X4W Lap | C139: 10-5 | D139: 0.061
A140: 136 | B140: R15 cavity+R2 foam STD 2X4W T111 | C140: 10-5 | D140: 0.068
A141: 137 | B141: R15 cavity+R2 foam ADV 2X4W T111 | C141: 10-5 | D141: 0.069
A142: 138 | B142: R15 cavity+R3 foam STD 2X4W Lap | C142: 10-5 | D142: 0.06
A143: =A142+1 -> 139 | B143: R15 cavity+R3 foam ADV 2X4W Lap | C143: 10-5 | D143: 0.057
A144: 140 | B144: R15 cavity+R3 foam STD 2X4W T111 | C144: 10-5 | D144: 0.063
A145: 141 | B145: R15 cavity+R3 foam ADV 2X4W T111 | C145: 10-5 | D145: 0.059
A146: 142 | B146: R15 cavity+R4 foam STD 2X4W Lap | C146: 10-5 | D146: 0.056
A147: 143 | B147: R15 cavity+R4 foam ADV 2X4W Lap | C147: 10-5 | D147: 0.053
A148: 144 | B148: R15 cavity+R4 foam STD 2X4W T111 | C148: 10-5 | D148: 0.059
A149: 145 | B149: R15 cavity+R4 foam ADV 2X4W T111 | C149: 10-5 | D149: 0.056
A150: 146 | B150: R15 cavity+R5 foam STD 2X4W Lap | C150: 10-5 | D150: 0.053
A151: 147 | B151: R15 cavity+R5 foam ADV 2X4W Lap | C151: 10-5 | D151: 0.051
A152: 148 | B152: R15 cavity+R5 foam STD 2X4W T111 | C152: 10-5 | D152: 0.055
A153: 149 | B153: R15 cavity+R5 foam ADV 2X4W T111 | C153: 10-5 | D153: 0.052
A154: 150 | B154: R15 cavity+R6 foam STD 2X4W Lap | C154: 10-5 | D154: 0.05
A155: 151 | B155: R15 cavity+R6 foam ADV 2X4W Lap | C155: 10-5 | D155: 0.048
A156: 152 | B156: R15 cavity+R6 foam STD 2X4W T111 | C156: 10-5 | D156: 0.052
A157: 153 | B157: R15 cavity+R6 foam ADV 2X4W T111 | C157: 10-5 | D157: 0.05
A158: 154 | B158: R15 cavity+R7 foam STD 2X4W Lap | C158: 10-5 | D158: 0.047
A159: 155 | B159: R15 cavity+R7 foam ADV 2X4W Lap | C159: 10-5 | D159: 0.046
A160: 156 | B160: R15 cavity+R7 foam STD 2X4W T111 | C160: 10-5 | D160: 0.049
A161: 157 | B161: R15 cavity+R7 foam ADV 2X4W T111 | C161: 10-5 | D161: 0.047
A162: 158 | B162: R15 cavity+R8 foam STD 2X4W Lap | C162: 10-5 | D162: 0.045
A163: 159 | B163: R15 cavity+R8 foam ADV 2X4W Lap | C163: 10-5 | D163: 0.044
A164: 160 | B164: R15 cavity+R8 foam STD 2X4W T111 | C164: 10-5 | D164: 0.047
A165: 161 | B165: R15 cavity+R8 foam ADV 2X4W T111 | C165: 10-5 | D165: 0.045
A166: 162 | B166: R15 cavity+R9 foam STD 2X4W Lap | C166: 10-5 | D166: 0.043
A167: 163 | B167: R15 cavity+R9 foam ADV 2X4W Lap | C167: 10-5 | D167: 0.042
A168: 164 | B168: R15 cavity+R9 foam STD 2X4W T111 | C168: 10-5 | D168: 0.044
A169: 165 | B169: R15 cavity+R9 foam ADV 2X4W T111 | C169: 10-5 | D169: 0.043
A170: 166 | B170: R15 cavity+R10 foam STD 2X4W Lap | C170: 10-5 | D170: 0.041
A171: 167 | B171: R15 cavity+R10 foam ADV 2X4W Lap | C171: 10-5 | D171: 0.04
A172: 168 | B172: R15 cavity+R10 foam STD 2X4W T111 | C172: 10-5 | D172: 0.042
A173: 169 | B173: R15 cavity+R10 foam ADV 2X4W T111 | C173: 10-5 | D173: 0.041
A174: 170 | B174: R15 cavity+R11 foam STD 2X4W Lap | C174: 10-5 | D174: 0.039
A175: 171 | B175: R15 cavity+R11 foam ADV 2X4W Lap | C175: 10-5 | D175: 0.038
A176: 172 | B176: R15 cavity+R11 foam STD 2X4W T111 | C176: 10-5 | D176: 0.041
A177: 173 | B177: R15 cavity+R11 foam ADV 2X4W T111 | C177: 10-5 | D177: 0.039
A178: 174 | B178: R15 cavity+R12 foam STD 2X4W Lap | C178: 10-5 | D178: 0.038
A179: 175 | B179: R15 cavity+R12 foam ADV 2X4W Lap | C179: 10-5 | D179: 0.037
A180: 176 | B180: R15 cavity+R12 foam STD 2X4W T111 | C180: 10-5 | D180: 0.039
A181: 177 | B181: R15 cavity+R12 foam ADV 2X4W T111 | C181: 10-5 | D181: 0.038
A182: 178 | B182: R19 cavity+R0 foam STD 2X6W Lap | C182: 10-5 | D182: 0.062
A183: 179 | B183: R19 cavity+R0 foam INT 2X6W Lap | C183: 10-5 | D183: 0.058
A184: 180 | B184: R19 cavity+R0 foam ADV 2X6W Lap | C184: 10-5 | D184: 0.055
A185: 181 | B185: R19 cavity+R0 foam STD 2X6W T111 | C185: 10-5 | D185: 0.065
A186: 182 | B186: R19 cavity+R0 foam INT 2X6W T111 | C186: 10-5 | D186: 0.061
A187: 183 | B187: R19 cavity+R0 foam ADV 2X6W T111 | C187: 10-5 | D187: 0.058
A188: 184 | B188: R19 cavity+R1 foam STD 2X6W Lap | C188: 10-5 | D188: 0.058
A189: 185 | B189: R19 cavity+R1 foam INT 2X6W Lap | C189: 10-5 | D189: 0.055
A190: 186 | B190: R19 cavity+R1 foam ADV 2X6W Lap | C190: 10-5 | D190: 0.052
A191: 187 | B191: R19 cavity+R1 foam STD 2X6W T111 | C191: 10-5 | D191: 0.06
A192: 188 | B192: R19 cavity+R1 foam INT 2X6W T111 | C192: 10-5 | D192: 0.057
A193: 189 | B193: R19 cavity+R1 foam ADV 2X6W T111 | C193: 10-5 | D193: 0.055
A194: 190 | B194: R19 cavity+R2 foam STD 2X6W Lap | C194: 10-5 | D194: 0.054
A195: 191 | B195: R19 cavity+R2 foam INT 2X6W Lap | C195: 10-5 | D195: 0.052
A196: 192 | B196: R19 cavity+R2 foam ADV 2X6W Lap | C196: 10-5 | D196: 0.05
A197: 193 | B197: R19 cavity+R2 foam STD 2X6W T111 | C197: 10-5 | D197: 0.056
A198: 194 | B198: R19 cavity+R2 foam INT 2X6W T111 | C198: 10-5 | D198: 0.054
A199: 195 | B199: R19 cavity+R2 foam ADV 2X6W T111 | C199: 10-5 | D199: 0.051
A200: 196 | B200: R19 cavity+R3 foam STD 2X6W Lap | C200: 10-5 | D200: 0.051
A201: 197 | B201: R19 cavity+R3 foam INT 2X6W Lap | C201: 10-5 | D201: 0.049
... 788 more rows

Sheet Floors (hidden)
A1: WSU Code Compliance Calculator - WSEC 2015 &2018 | F1: (C) 2020
A2: Floor Database
A3: Index | B3: Component Description | C3: Reference | D3: Floor U
A5: 1
A6: =A5+1 -> 2 | B6: === Most Frequently Used =========
A7: =A6+1 -> 3 | B7: R0 vented Joist | C7: 10-3 | D7: 0.134
A8: 4 | B8: R19 vented Joist | C8: 10-3 | D8: 0.041
A9: 5 | B9: R30 vented Joist (Code Baseline) | C9: 10-3 | D9: 0.029
A10: 6 | B10: R30 vented Post/Beam (Code Baseline) | C10: 10-3 | D10: 0.028
A11: 7 | B11: R38 vented Joist (2021 1.2, 1,3; 2018 1.3-1.5) | C11: 10-3 | D11: 0.025
A12: 8 | B12: R38 vented Post/Beam (2021 1.2, 1.3; 2018 1.3-1.5) | C12: 10-3 | D12: 0.024
A13: 9 | B13: R48 vented Joist (2021 1.4; 2018 1.6) | D13: 0.02 | E13: added 2021
A14: 10 | B14: R48 vented Post/Beam (2021 1.4; 2018 1.6) | D14: 0.02 | E14: added 2021
A15: 11 | B15: No floors in thermal envelope | C15: NA | D15: 0
A16: 12 | B16: 2021 U-factor Baseline (Table R402.1.2) | C16: Table R402.1.2 | D16: 0.029
A17: 13 | B17: ============================
A18: 14 | B18: R0 vented Joist | C18: 10-3 | D18: 0.134
A19: 15 | B19: R0 vented Post/Beam | C19: 10-3 | D19: 0.112
A20: 16 | B20: R11 vented Joist | C20: 10-3 | D20: 0.056
A21: 17 | B21: R11 vented Post/Beam | C21: 10-3 | D21: 0.052
A22: 18 | B22: R19 vented Joist | C22: 10-3 | D22: 0.041
A23: 19 | B23: R19 vented Post/Beam | C23: 10-3 | D23: 0.038
A24: 20 | B24: R22 vented Joist | C24: 10-3 | D24: 0.037
A25: 21 | B25: R22 vented Post/Beam | C25: 10-3 | D25: 0.034
A26: 22 | B26: R25 vented Joist | C26: 10-3 | D26: 0.034
A27: 23 | B27: R25 vented Post/Beam | C27: 10-3 | D27: 0.032
A28: 24 | B28: R30 vented Joist | C28: 10-3 | D28: 0.029
A29: 25 | B29: R30 vented Post/Beam | C29: 10-3 | D29: 0.028
A30: 26 | B30: R38 vented Joist | C30: 10-3 | D30: 0.025
A31: 27 | B31: R38 vented Post/Beam | C31: 10-3 | D31: 0.024
A32: 28 | B32: R11 perim vented Joist | C32: 10-3 | D32: 0.116
A33: 29 | B33: R11 perim vented Post/Beam | C33: 10-3 | D33: 0.1
A34: 30 | B34: R19 perim vented Joist | C34: 10-3 | D34: 0.114
A35: 31 | B35: R19 perim vented Post/Beam | C35: 10-3 | D35: 0.098
A36: 32 | B36: R30 perim vented Joist | C36: 10-3 | D36: 0.107
A37: 33 | B37: R30 perim vented Post/Beam | C37: 10-3 | D37: 0.093
A38: 34 | B38: R11 + R11 perim vented Joist | C38: 10-3 | D38: 0.052
A39: 35 | B39: R11 + R11 perim vented Post/Beam | C39: 10-3 | D39: 0.048
A40: 36 | B40: R19 + R11 perim vented Joist | C40: 10-3 | D40: 0.038
A41: 37 | B41: R19 + R11 perim vented Post/Beam | C41: 10-3 | D41: 0.036
A42: 38 | B42: R22 + R11 perim vented Joist | C42: 10-3 | D42: 0.035
A43: 39 | B43: R22 + R11 perim vented Post/Beam | C43: 10-3 | D43: 0.033
A44: 40 | B44: R25 + R11 perim vented Joist | C44: 10-3 | D44: 0.033
A45: 41 | B45: R25 + R11 perim vented Post/Beam | C45: 10-3 | D45: 0.031
A46: 42 | B46: R30 + R11 perim vented Joist | C46: 10-3 | D46: 0.028
A47: 43 | B47: R30 + R11 perim vented Post/Beam | C47: 10-3 | D47: 0.027
A48: 44 | B48: R38 + R11 perim vented Joist | C48: 10-3 | D48: 0.024
A49: 45 | B49: R38 + R11 perim vented Post/Beam | C49: 10-3 | D49: 0.024
A50: 46 | B50: R11 perim unvented Heated plenum | C50: 10-4 | D50: 0.085
A51: 47 | B51: R19 perim unvented Heated plenum | C51: 10-4 | D51: 0.075
A52: 48 | B52: R30 perim unvented Heated plenum | C52: 10-4 | D52: 0.069
A53: 49 | B53: 7.25" stress skin panel | C53: WSU | D53: 0.034
A54: 50 | B54: 9.25" stress skin panel | C54: WSU | D54: 0.028
A55: 51 | B55: 11.25" stress skin panel | C55: WSU | D55: 0.024
A56: 52 | B56: R11 Concrete Exposed | C56: 10-4A | D56: 0.077
A57: 53 | B57: R15 Concrete Exposed | C57: 10-4A | D57: 0.059
A58: 54 | B58: R19 Concrete Exposed | C58: 10-4A | D58: 0.048
A59: 55 | B59: R21 Concrete Exposed | C59: 10-4A | D59: 0.043
A60: 56 | B60: R25 Concrete Exposed | C60: 10-4A | D60: 0.037
A61: 57 | B61: R30 Concrete Exposed | C61: 10-4A | D61: 0.031
A62: 58 | B62: R38 Concrete Exposed | C62: 10-4A | D62: 0.025
A63: 59 | B63: R11 Wood Joist Exposed | C63: 10-4A | D63: 0.088
A64: 60 | B64: R15 Wood Joist Exposed | C64: 10-4A | D64: 0.076
A65: 61 | B65: R19 Wood Joist Exposed | C65: 10-4A | D65: 0.062
A66: 62 | B66: R21 Wood Joist Exposed | C66: 10-4A | D66: 0.057
A67: 63 | B67: R30 Wood Joist Exposed | C67: 10-4A | D67: 0.051
A68: 64 | B68: R38 Wood Joist Exposed | C68: 10-4A | D68: 0.04
A69: 65 | B69: R25 Wood Joist Exposed | C69: 10-4A | D69: 0.034
A70: 66 | B70: R11 Metal Joist Exposed | C70: 10-4A | D70: 0.14
A71: 67 | B71: R15 Metal Joist Exposed | C71: 10-4A | D71: 0.12
A72: 68 | B72: R19 Metal Joist Exposed | C72: 10-4A | D72: 0.11
A73: 69 | B73: R21 Metal Joist Exposed | C73: 10-4A | D73: 0.11
A74: 70 | B74: R25 Metal Joist Exposed | C74: 10-4A | D74: 0.1
A75: 71 | B75: R30 Metal Joist Exposed | C75: 10-4A | D75: 0.09
A76: =A75+1 -> 72 | B76: R38 Metal Joist Exposed | C76: 10-4A | D76: 0.08
A77: 73 | B77: ='Flat-Vaulted Ceilings'!$B$339 -> == Custom Entries per WSEC R402.1.5 U-factor Reference and Calculations ======== | E77: Notes | F77: ='Flat-Vaulted Ceilings'!$F$339 -> Your entries appear at bottom of drowdown menus on "Group R" tab
A78: 74 | B78: R48 vented Joist | C78: Custom | D78: 0.02 | F78: =IF(AND(B79<>"",B78=""),"Don't skip lines",IF(AND(D78="",B78<>""),"Enter U-value",IF(AND(D78<>"",B78=""),"Enter Description",""))) -> 
A79: 75 | B79: 2x6 R23 cavity, 16"oc with 2" XPS | C79: Custom | D79: 0.0317
A80: 76 | C80: Custom
A81: 77 | C81: Custom
A82: 78 | C82: Custom
A83: 79 | C83: Custom
A84: =A83+1 -> 80 | C84: Custom
A85: 81 | C85: Custom
A86: 82 | C86: Custom
A87: 83 | C87: Custom
A88: 84 | C88: Custom
A89: 85 | C89: Custom
A90: 86 | C90: Custom
A91: 87 | C91: Custom
A92: 88 | C92: Custom
A93: 89 | C93: Custom
A94: 90 | C94: Custom
A95: 91 | C95: Custom
A96: 92 | C96: Custom
A97: 93 | C97: Custom
A98: 94 | C98: Custom
A99: 95 | C99: Custom
A100: 96 | C100: Custom
A101: 97 | C101: Custom
A102: 98 | C102: Custom
A103: 99 | C103: Custom
A104: 100 | C104: Custom
A105: 101 | C105: Custom
A106: 102 | C106: Custom
A107: 103 | C107: Custom
A108: 104 | C108: Custom
A109: 105 | C109: Custom
A110: 106 | C110: Custom
A111: 107 | C111: Custom
A112: 108 | C112: Custom
A113: 109 | C113: Custom
A114: 110 | C114: Custom
A115: 111 | C115: Custom
A116: 112 | C116: Custom
A117: 113 | C117: Custom

Sheet Slab on Grade (hidden)
A1: WSU Code Compliance Calculator - WSEC 2015 &2018 | F1: (C) 2020
A2: Slab-on-Grade Database
A3: Index | B3: Component Description | C3: Reference | D3: Slab F
A5: 1
A6: =A5+1 -> 2 | B6: === Most Frequently Used =========
A7: =A6+1 -> 3 | B7: R0 uninsulated | C7: 10-2 | D7: 0.73
A8: 4 | B8: R10 2' vertical (Code Baseline) | C8: 10-2 | D8: 0.54
A9: 5 | B9: R10 2' horizontal w/TB (Code Baseline) | C9: =C45 -> WSU | D9: =D45 -> 0.54
A10: 6 | B10: R10 4' vertical | D10: =D38 -> 0.48
A11: 7 | B11: R10 4' horizontal w/TB | D11: =D49 -> 0.48
A12: 8 | B12: R-7.5 On top of slab (Existing slab conversion only) | C12: Footnote, Table 402 | D12: 0.54
A13: 9 | B13: R10 Fully insulated Heated (Code Baseline) | C13: 10-2 | D13: 0.55
A14: 10 | B14: R10 Fully insulated (2018 1.3-1.5) | C14: 10-2 | D14: 0.36
A15: 11 | B15: R20 Fully insulated (2018 1.6) | C15: Table A6.3, ASHRAE 90.1 | D15: 0.261
A16: 12 | B16: =B68 -> R20 Fully insulated Heated | C16: =C68 -> Table A6.3, ASHRAE 90.1 | D16: =D68 -> 0.373
A17: 13 | B17: No slab on grade | C17: NA | D17: 0
A18: 14 | B18: 2021 U-factor Baseline (Table R402.1.2) | C18: Table R402.1.2 | D18: 0.54
A19: 15 | B19: ============================
A20: 16 | B20: R0 uninsulated | C20: 10-2 | D20: 0.73
A21: 17 | B21: R5 2' horizontal, no TB | C21: 10-2 | D21: 0.7
A22: 18 | B22: R7.5 2' horizontal, no TB | C22: 10-2 | D22: 0.7
A23: 19 | B23: R10 2' horizontal, no TB | C23: 10-2 | D23: 0.7
A24: 20 | B24: R15 2' horizontal, no TB | C24: 10-2 | D24: 0.69
A25: 21 | B25: R5 4' horizontal, no TB | C25: 10-2 | D25: 0.67
A26: 22 | B26: R7.5 4' horizontal, no TB | C26: WSU | D26: 0.655
A27: 23 | B27: R10 4' horizontal, no TB | C27: 10-2 | D27: 0.64
A28: 24 | B28: R15 4' horizontal, no TB | C28: 10-2 | D28: 0.63
A29: 25 | B29: R5 2' vertical | C29: 10-2 | D29: 0.58
A30: 26 | B30: R7.5 2' vertical | C30: WSU | D30: 0.56
A31: 27 | B31: R10 2' vertical | C31: 10-2 | D31: 0.54
A32: 28 | B32: R15 2' vertical | C32: 10-2 | D32: 0.52
A33: 29 | B33: R20 2' Vertical | C33: ASHRAE Table 6.3.1-1 | D33: 0.51
A34: 30 | B34: R25 2' Vertical | C34: ASHRAE Table 6.3.1-1 | D34: 0.505
A35: 31 | B35: R30 2' Vertical | C35: ASHRAE Table 6.3.1-1 | D35: 0.502
A36: 32 | B36: R5 4' vertical | C36: 10-2 | D36: 0.54
A37: 33 | B37: R7.5 4' vertical | C37: WSU | D37: 0.51
A38: 34 | B38: R10 4' vertical | C38: 10-2 | D38: 0.48
A39: 35 | B39: R15 4' vertical | C39: 10-2 | D39: 0.45
A40: 36 | B40: R20 4' Vertical | C40: ASHRAE Table 6.3.1-1 | D40: 0.434
A41: 37 | B41: R25 4' Vertical | C41: ASHRAE Table 6.3.1-1 | D41: 0.424
A42: 38 | B42: R30 4' Vertical | C42: ASHRAE Table 6.3.1-1 | D42: 0.419
A43: 39 | B43: R5 2' horizontal w/TB | C43: WSU | D43: 0.58
A44: 40 | B44: R7.5 2' horizontal w/TB | C44: WSU | D44: 0.56
A45: 41 | B45: R10 2' horizontal w/TB | C45: WSU | D45: 0.54
A46: 42 | B46: R15 2' horizontal w/TB | C46: WSU | D46: 0.52
A47: 43 | B47: R5 4' horizontal w/TB | C47: WSU | D47: 0.54
A48: 44 | B48: R7.5 4' horizontal w/TB | C48: WSU | D48: 0.51
A49: 45 | B49: R10 4' horizontal w/TB | C49: WSU | D49: 0.48
A50: 46 | B50: R15 4' horizontal w/TB | C50: WSU | D50: 0.45
A51: 47 | B51: R5 Fully insulated | C51: WSU | D51: 0.46
A52: 48 | B52: R10 Fully insulated | C52: 10-2 | D52: 0.36
A53: 49 | B53: R15 Fully insulated | C53: WSU | D53: 0.3
A54: 50 | B54: R20 Fully insulated | C54: Table A6.3, ASHRAE 90.1 | D54: 0.261 | E54: Added 2020
A55: 51 | B55: R25 Fully insulated | C55: Table A6.3, ASHRAE 90.1 | D55: 0.233 | E55: Added 2020
A56: 52 | B56: R30 Fully insulated | C56: Table A6.3, ASHRAE 90.1 | D56: 0.213 | E56: Added 2020
A57: 53 | B57: R35 Fully insulated | C57: Table A6.3, ASHRAE 90.1 | D57: 0.198 | E57: Added 2020
A58: 54 | B58: R40 Fully insulated | C58: Table A6.3, ASHRAE 90.1 | D58: 0.186 | E58: Added 2020
A59: 55 | B59: R45 Fully insulated | C59: Table A6.3, ASHRAE 90.1 | D59: 0.176 | E59: Added 2020
A60: 56 | B60: R50 Fully insulated | C60: Table A6.3, ASHRAE 90.1 | D60: 0.168 | E60: Added 2020
A61: 57 | B61: R10 2' perim/R5 center | C61: WSU | D61: 0.42
A62: 58 | B62: R15 2' perim/R5 center | C62: WSU | D62: 0.4
A63: 59 | B63: R15 2' perim/R10 center | C63: WSU | D63: 0.34
A64: 60 | B64: R0 Uninsulated Heated | C64: 10-2 | D64: 0.84
A65: 61 | B65: R5 Fully insulated Heated | C65: 10-2 | D65: 0.74
A66: 62 | B66: R10 Fully insulated Heated | C66: 10-2 | D66: 0.55
A67: 63 | B67: R15 Fully insulated Heated | C67: 10-2 | D67: 0.44
A68: 64 | B68: R20 Fully insulated Heated | C68: Table A6.3, ASHRAE 90.1 | D68: 0.373 | E68: Added 2020
A69: 65 | B69: R25 Fully insulated Heated | C69: Table A6.3, ASHRAE 90.1 | D69: 0.326 | E69: Added 2020
A70: 66 | B70: R30 Fully insulated Heated | C70: Table A6.3, ASHRAE 90.1 | D70: 0.296 | E70: Added 2020
A71: 67 | B71: R35 Fully insulated Heated | C71: Table A6.3, ASHRAE 90.1 | D71: 0.273 | E71: Added 2020
A72: 68 | B72: R40 Fully insulated Heated | C72: Table A6.3, ASHRAE 90.1 | D72: 0.255 | E72: Added 2020
A73: 69 | B73: R45 Fully insulated Heated | C73: Table A6.3, ASHRAE 90.1 | D73: 0.239 | E73: Added 2020
A74: 70 | B74: R50 Fully insulated Heated | C74: Table A6.3, ASHRAE 90.1 | D74: 0.227 | E74: Added 2020
A75: 71 | B75: R10 perim/R5 center Heated | C75: 10-2 | D75: 0.66
A76: 72 | B76: R15 perim/R5 center Heated | C76: 10-2 | D76: 0.62
A77: 73 | B77: R15 perim/R10 center Heated | C77: 10-2 | D77: 0.51
A78: 74 | B78: R10 3' vertical Heated | C78: 10-2 | D78: 0.78
A79: 75 | B79: ='Flat-Vaulted Ceilings'!$B$339 -> == Custom Entries per WSEC R402.1.5 U-factor Reference and Calculations ======== | E79: Notes | I79: CALCULATOR 1: Calculate F-value of heated and unheated fully insulated slab from R-value of insulation
A80: 76 | B80: =K81 -> R-15 fully insulated unheated (est from ASHRAE 90.1/Baylon & Kennedy(2007) fit | C80: Custom | D80: =J81 -> 0.294678052 | E80: Estimated from ASHRAE 90.1 | F80: =IF(AND(B81<>"",B80=""),"Don't skip lines",IF(AND(D80="",B80<>""),"Enter U-value",IF(AND(D80<>"",B80=""),"Enter Description",""))) ->  | I80: R-value | J80: F-value
A81: 77 | B81: R-6 fully insulated unheated (est from ASHRAE 90.1/Baylon & Kennedy(2007) fit | C81: Custom | D81: 0.4037616809 | E81: Estimated from ASHRAE 90.1 | H81: Unheated | I81: 15 | J81: =-0.000000013453*I81^ 5 + 0.000002212251*I81^4 - 0.000138923855*I81^3 + 0.004230815068*I81^2 - 0.067716536027*I81 + 0.72558137772 -> 0.294678052 | K81: =IF(I81="","-",CONCATENATE("R-",ROUND(I81,2)," fully insulated unheated (est from ASHRAE 90.1/Baylon & Kennedy(2007) fit")) -> R-15 fully insulated unheated (est from ASHRAE 90.1/Baylon & Kennedy(2007) fit
A82: 78 | C82: Custom | H82: Heated | I82: 20 | J82: =0.000000001436 * I82^ 6 - 0.000000270926* I82^5 + 0.000020204643* I82^4 - 0.000761958487* I82^3 + 0.01558421065* I82^2 - 0.178004711492* I82 + 1.34614970999 -> 0.3817555241 | K82: =IF(I82="","-",CONCATENATE("R-",ROUND(I82,2)," fully insulated heated (est from ASHRAE 90.1/Baylon & Kennedy(2007) fit")) -> R-20 fully insulated heated (est from ASHRAE 90.1/Baylon & Kennedy(2007) fit
A83: 79 | C83: Custom
A84: 80 | C84: Custom
A85: 81 | C85: Custom
A86: 82 | C86: Custom
A87: 83 | C87: Custom
A88: 84 | C88: Custom
A89: 85 | C89: Custom
A90: 86 | C90: Custom
A91: 87 | C91: Custom
I109: References
I110: ASHARAE 90.1 "Energy Standard for Buildings Except Low-Rise Residential Buildings"
I111: Link | J111: https://www.usailighting.com/stuff/contentmgr/files/1/b90ce247855d0f17438484c003877338/misc/ashrae_90_1_2010.pdf
I112: SBCC Interpretation of Table A6.3 | K112: https://www.ashrae.org/File%20Library/Technical%20Resources/Standards%20and%20Guidelines/Standards%20Intepretations/IC-90.1-2007-27.pdf
I113: Data from Table A6.3 is from Baylon and Kennedy "Calculating the Impact of Ground Contact on Residential Heat Loss", 2007, ASHRAE
I114: https://web.ornl.gov/sci/buildings/conf-archive/2007%20B10%20papers/092_Baylon.pdf
I115: For Table A6.3 refer to | K115: https://unmethours.com/question/3629/f-factor-calculation-ashrae-901-2007-table-a63/
I116: Ecotope: 1991_012_SuperGoodCentsHeat-V4.pdf
J118: Data from Table A6.3 | L118: Curve Fit
I119: R-Value | J119: Unheated Slab | K119: Heated Slab | L119: Unheated Slab | M119: Heated Slab
I120: 0 | J120: 0.73 | K120: 1.35 | L120: =-0.000000013453*I120^ 5 + 0.000002212251*I120^4 - 0.000138923855*I120^3 + 0.004230815068*I120^2 - 0.067716536027*I120 + 0.72558137772 -> 0.7255813777 | M120: =0.000000001436 * I120^ 6 - 0.000000270926* I120^5 + 0.000020204643* I120^4 - 0.000761958487* I120^3 + 0.01558421065* I120^2 - 0.178004711492* I120 + 1.34614970999 -> 1.34614971
I121: 5 | J121: 0.46 | K121: 0.74 | L121: =-0.000000013453*I121^ 5 + 0.000002212251*I121^4 - 0.000138923855*I121^3 + 0.004230815068*I121^2 - 0.067716536027*I121 + 0.72558137772 -> 0.4767442087 | M121: =0.000000001436 * I121^ 6 - 0.000000270926* I121^5 + 0.000020204643* I121^4 - 0.000761958487* I121^3 + 0.01558421065* I121^2 - 0.178004711492* I121 + 1.34614970999 -> 0.7622903035
I122: 7.5 | J122: 0.41 | K122: 0.64 | L122: 0.4037626582 | M122: 0.6240301156
I123: 10 | J123: 0.36 | K123: 0.55 | L123: 0.3533508793 | M123: 0.5389550031
I124: 15 | J124: 0.3 | K124: 0.44 | L124: 0.294678052 | M124: 0.4443990984
I125: 20 | J125: 0.261 | K125: 0.373 | L125: 0.2630964044 | M125: 0.3817555241
I126: 25 | J126: 0.233 | K126: 0.326 | L126: 0.2390257539 | M126: 0.3278251102
I127: 30 | J127: 0.213 | K127: 0.296 | L127: 0.2158901831 | M127: 0.2880218312
I128: 35 | J128: 0.198 | K128: 0.273 | L128: 0.1950731645 | M128: 0.267473057
I129: 40 | J129: 0.186 | K129: 0.255 | L129: 0.1808726854 | M129: 0.2582748023
I130: 45 | J130: 0.176 | K130: 0.239 | L130: 0.1754563736 | M130: 0.2429019769
I131: 50 | J131: 0.168 | K131: 0.227 | L131: 0.1738166214 | M131: 0.2137736354
I132: 55 | J132: 0.161 | K132: 0.217 | L132: 0.1587257113 | M132: 0.2089732277

Sheet Below Grade Walls & Slabs (hidden)
A1: WSU Code Compliance Calculator - WSEC 2015 &2018 | G1: (C) 2020
A2: Below Grade Walls and Slabs - Updated to WSEC 2018, Appendix A, Table A104.1 (values changed from WSEC 2015 Appendix A)
A3: Index | C3: Component Description | D3: Reference | E3: Wall U | F3: Slab F
A4: 1 | C4: 1 | D4: 2 | E4: 3 | F4: 4 | N4: Figures from: Baylon & Kennedy, https://web.ornl.gov/sci/buildings/conf-archive/2007%20B10%20papers/092_Baylon.pdf
A5: =A4+1 -> 2 | C5: === Most Frequently Used =========
A6: =A5+1 -> 3 | B6: 2' depth | C6: ='Below Grade Walls & Slabs'!F159 -> R0 Uninsulated, 2' depth | D6: ='Below Grade Walls & Slabs'!D159 -> 10-1 | E6: =VLOOKUP($C6,$C$28:$F$118,E$4,FALSE) -> 0.331 | F6: 0.58 | G6: ='Below Grade Walls & Slabs'!E159 -> Updated to WSEC 2018
A7: 4 | B7: 2' depth | C7: ='Below Grade Walls & Slabs'!F160 -> R10 Foam Ext, 2' depth | D7: ='Below Grade Walls & Slabs'!D160 -> 10-1 | E7: 0.089 | F7: 0.56 | G7: ='Below Grade Walls & Slabs'!E160 -> Updated to WSEC 2018
A8: 5 | B8: 2' depth | C8: ='Below Grade Walls & Slabs'!F161 -> R11 Batt, 2' depth | D8: ='Below Grade Walls & Slabs'!D161 -> 10-1 | E8: 0.063 | F8: 0.67 | G8: ='Below Grade Walls & Slabs'!E161 -> Updated to WSEC 2018
A9: 6 | B9: 2' depth | C9: ='Below Grade Walls & Slabs'!F162 -> R12 Foam Ext, 2' depth | D9: ='Below Grade Walls & Slabs'!D162 -> 10-1 | E9: =VLOOKUP($C9,$C$28:$F$118,E$4,FALSE) -> 0.61 | F9: 0.6 | G9: ='Below Grade Walls & Slabs'!E162 -> Updated to WSEC 2018
A10: 7 | B10: 2' depth | C10: ='Below Grade Walls & Slabs'!F163 -> R10 Foam Ext w/TB, R10 Full Underslab, 2' depth | D10: ='Below Grade Walls & Slabs'!D163 -> Baylon & Kennedy, https://web.ornl.gov/sci/buildings/conf-archive/2007%20B10%20papers/092_Baylon.pdf | E10: 0.068 | F10: 0.345 | G10: ='Below Grade Walls & Slabs'!E163 -> Added 2020
A11: 8 | B11: 2' depth | C11: ='Below Grade Walls & Slabs'!F164 -> R20 Foam Ext w/TB, R10 Full Underslab, 2' depth | D11: ='Below Grade Walls & Slabs'!D164 -> Baylon & Kennedy, https://web.ornl.gov/sci/buildings/conf-archive/2007%20B10%20papers/092_Baylon.pdf | E11: 0.04 | F11: 0.35 | G11: ='Below Grade Walls & Slabs'!E164 -> Added 2020 from reference
A12: 9 | B12: 2' depth | C12: ='Below Grade Walls & Slabs'!F165 -> R21 Batt w/TB, 2' depth | D12: ='Below Grade Walls & Slabs'!D165 -> WSU | E12: 0.042 | F12: 0.59 | G12: ='Below Grade Walls & Slabs'!E165 -> Updated to WSEC 2018
A13: 10 | B13: 3.5' depth | C13: ='Below Grade Walls & Slabs'!I159 -> R0 Uninsulated, 3.5' depth | D13: ='Below Grade Walls & Slabs'!D159 -> 10-1 | E13: 0.271 | F13: 0.51 | G13: =G6 -> Updated to WSEC 2018
A14: 11 | B14: 3.5' depth | C14: ='Below Grade Walls & Slabs'!I160 -> R10 Foam Ext, 3.5' depth | D14: ='Below Grade Walls & Slabs'!D160 -> 10-1 | E14: 0.075 | F14: 0.52 | G14: =G7 -> Updated to WSEC 2018
A15: 12 | B15: 3.5' depth | C15: ='Below Grade Walls & Slabs'!I161 -> R11 Batt, 3.5' depth | D15: ='Below Grade Walls & Slabs'!D161 -> 10-1 | E15: 0.058 | F15: 0.61 | G15: Updated to WSEC 2018
A16: 13 | B16: 3.5' depth | C16: ='Below Grade Walls & Slabs'!I162 -> R12 Foam Ext, 3.5' depth | D16: ='Below Grade Walls & Slabs'!D162 -> 10-1 | E16: 0.057 | F16: 0.57 | G16: Updated to WSEC 2018
A17: 14 | B17: 3.5' depth | C17: ='Below Grade Walls & Slabs'!I163 -> R10 Foam Ext w/TB, R10 Full Underslab, 3.5' depth | D17: ='Below Grade Walls & Slabs'!D163 -> Baylon & Kennedy, https://web.ornl.gov/sci/buildings/conf-archive/2007%20B10%20papers/092_Baylon.pdf | E17: 0.064 | F17: 0.324 | G17: Added 2020
A18: 15 | B18: 3.5' depth | C18: ='Below Grade Walls & Slabs'!I164 -> R20 Foam Ext w/TB, R10 Full Underslab, 3.5' depth | D18: ='Below Grade Walls & Slabs'!D164 -> Baylon & Kennedy, https://web.ornl.gov/sci/buildings/conf-archive/2007%20B10%20papers/092_Baylon.pdf | E18: 0.038 | F18: 0.331 | G18: Added 2020 from reference
A19: 16 | B19: 3.5' depth | C19: ='Below Grade Walls & Slabs'!I165 -> R21 Batt w/TB, 3.5' depth | D19: ='Below Grade Walls & Slabs'!D165 -> WSU | E19: 0.04 | F19: 0.56 | G19: Updated to WSEC 2018
A20: 17 | B20: 7' depth | C20: ='Below Grade Walls & Slabs'!L159 -> R0 Uninsulated, 7' depth | D20: ='Below Grade Walls & Slabs'!D159 -> 10-1 | E20: 0.185 | F20: 0.43 | G20: =G6 -> Updated to WSEC 2018
A21: 18 | B21: 7' depth | C21: ='Below Grade Walls & Slabs'!L160 -> R10 Foam Ext, 7' depth | D21: ='Below Grade Walls & Slabs'!D160 -> 10-1 | E21: 0.058 | F21: 0.47 | G21: =G7 -> Updated to WSEC 2018
A22: 19 | B22: 7' depth | C22: ='Below Grade Walls & Slabs'!L161 -> R11 Batt, 7' depth | D22: ='Below Grade Walls & Slabs'!D161 -> 10-1 | E22: 0.051 | F22: 0.541 | G22: Updated to WSEC 2018
A23: 20 | B23: 7' depth | C23: ='Below Grade Walls & Slabs'!L162 -> R12 Foam Ext, 7' depth | D23: ='Below Grade Walls & Slabs'!D162 -> 10-1 | E23: 0.05 | F23: 0.42 | G23: Updated to WSEC 2018
A24: 21 | B24: 7' depth | C24: ='Below Grade Walls & Slabs'!L163 -> R10 Foam Ext w/TB, R10 Full Underslab, 7' depth | D24: ='Below Grade Walls & Slabs'!D163 -> Baylon & Kennedy, https://web.ornl.gov/sci/buildings/conf-archive/2007%20B10%20papers/092_Baylon.pdf | E24: 0.055 | F24: 0.293 | G24: Added 2020
A25: 22 | B25: 7' depth | C25: ='Below Grade Walls & Slabs'!L164 -> R20 Foam Ext w/TB, R10 Full Underslab, 7' depth | D25: ='Below Grade Walls & Slabs'!D164 -> Baylon & Kennedy, https://web.ornl.gov/sci/buildings/conf-archive/2007%20B10%20papers/092_Baylon.pdf | E25: 0.034 | F25: 0.304 | G25: Added 2020 from reference
A26: 23 | B26: 7' depth | C26: ='Below Grade Walls & Slabs'!L165 -> R21 Batt w/TB, 7' depth | D26: ='Below Grade Walls & Slabs'!D165 -> WSU | E26: 0.035 | F26: 0.5 | G26: Updated to WSEC 2018
A27: 24 | C27: ='Below Grade Walls & Slabs'!C166 -> ============================
A28: 25 | B28: 2' depth | C28: ='Below Grade Walls & Slabs'!F167 -> R0 Uninsulated, 2' depth | D28: ='Below Grade Walls & Slabs'!E167 -> Updated to WSEC 2018 | E28: ='Below Grade Walls & Slabs'!G167 -> 0.331 | F28: ='Below Grade Walls & Slabs'!H167 -> 0.58 | G28: ='Below Grade Walls & Slabs'!E167 -> Updated to WSEC 2018
A29: 26 | B29: 2' depth | C29: ='Below Grade Walls & Slabs'!F168 -> R10 Foam Ext, 2' depth | D29: ='Below Grade Walls & Slabs'!E168 -> Updated to WSEC 2018 | E29: ='Below Grade Walls & Slabs'!G168 -> 0.089 | F29: ='Below Grade Walls & Slabs'!H168 -> 0.56 | G29: ='Below Grade Walls & Slabs'!E170 -> Updated to WSEC 2018
C30: ='Below Grade Walls & Slabs'!F169 -> R10 Foam Ext w/TB, R10 Full Underslab, 2' depth | D30: ='Below Grade Walls & Slabs'!E169 -> Added 2020 | E30: ='Below Grade Walls & Slabs'!G169 -> 0.068 | F30: ='Below Grade Walls & Slabs'!H169 -> 0.345 | G30: ='Below Grade Walls & Slabs'!E171 -> Updated to WSEC 2018
A31: =A29+1 -> 27 | B31: 2' depth | C31: ='Below Grade Walls & Slabs'!F170 -> R11 Batt, 2' depth | D31: ='Below Grade Walls & Slabs'!E170 -> Updated to WSEC 2018 | E31: ='Below Grade Walls & Slabs'!G170 -> 0.063 | F31: ='Below Grade Walls & Slabs'!H170 -> 0.67 | G31: ='Below Grade Walls & Slabs'!E172 -> Added 2023 from reference
A32: 28 | B32: 2' depth | C32: ='Below Grade Walls & Slabs'!F171 -> R11 Batt w/TB, 2' depth | D32: ='Below Grade Walls & Slabs'!E171 -> Updated to WSEC 2018 | E32: ='Below Grade Walls & Slabs'!G171 -> 0.065 | F32: ='Below Grade Walls & Slabs'!H171 -> 0.59 | G32: ='Below Grade Walls & Slabs'!E173 -> Added 2020 from reference
A33: 29 | B33: 2' depth | C33: ='Below Grade Walls & Slabs'!F172 -> R11 Batt + R5 ci, 2' depth | D33: ='Below Grade Walls & Slabs'!E172 -> Added 2023 from reference | E33: ='Below Grade Walls & Slabs'!G172 -> 0.044 | F33: ='Below Grade Walls & Slabs'!H172 -> 0.677 | G33: ='Below Grade Walls & Slabs'!E174 -> Added 2020 from reference
A34: 30 | B34: 2' depth | C34: ='Below Grade Walls & Slabs'!F173 -> R11 Batt + R5 ci w/TB, 2' depth | D34: ='Below Grade Walls & Slabs'!E173 -> Added 2020 from reference | E34: ='Below Grade Walls & Slabs'!G173 -> 0.046 | F34: ='Below Grade Walls & Slabs'!H173 -> 0.59 | G34: ='Below Grade Walls & Slabs'!E175 -> Updated to WSEC 2018
A35: 31 | B35: 2' depth | C35: ='Below Grade Walls & Slabs'!F174 -> R11 Batt + R5 ci R10 Fully Underslab, 2' depth | D35: ='Below Grade Walls & Slabs'!E174 -> Added 2020 from reference | E35: ='Below Grade Walls & Slabs'!G174 -> 0.048 | F35: ='Below Grade Walls & Slabs'!H174 -> 0.348 | G35: ='Below Grade Walls & Slabs'!E176 -> Interpolated between R11 and R19
A36: 32 | B36: 2' depth | C36: ='Below Grade Walls & Slabs'!F175 -> R12 Foam Ext, 2' depth | D36: ='Below Grade Walls & Slabs'!E175 -> Updated to WSEC 2018 | E36: ='Below Grade Walls & Slabs'!G175 -> 0.61 | F36: ='Below Grade Walls & Slabs'!H175 -> 0.6 | G36: ='Below Grade Walls & Slabs'!E177 -> Interpolated between R11 and R19
A37: 33 | B37: 2' depth | C37: ='Below Grade Walls & Slabs'!F176 -> R13 Batt, 2' depth | D37: ='Below Grade Walls & Slabs'!E176 -> Interpolated between R11 and R19 | E37: ='Below Grade Walls & Slabs'!G176 -> 0.05775 | F37: ='Below Grade Walls & Slabs'!H176 -> 0.6725 | G37: ='Below Grade Walls & Slabs'!E178 -> Interpolated between R11 and R19
A38: 34 | B38: 2' depth | C38: ='Below Grade Walls & Slabs'!F177 -> R13 Batt w/TB , 2' depth | D38: ='Below Grade Walls & Slabs'!E177 -> Interpolated between R11 and R19 | E38: ='Below Grade Walls & Slabs'!G177 -> 0.06 | F38: ='Below Grade Walls & Slabs'!H177 -> 0.59 | G38: ='Below Grade Walls & Slabs'!E179 -> Interpolated between R11 and R19
A39: 35 | B39: 2' depth | C39: ='Below Grade Walls & Slabs'!F178 -> R13 Batt + R5 ci, 2' depth | D39: ='Below Grade Walls & Slabs'!E178 -> Interpolated between R11 and R19 | E39: ='Below Grade Walls & Slabs'!G178 -> 0.04125 | F39: ='Below Grade Walls & Slabs'!H178 -> 0.67825 | G39: ='Below Grade Walls & Slabs'!E180 -> Interpolated between R11 and R19
A40: 36 | B40: 2' depth | C40: ='Below Grade Walls & Slabs'!F179 -> R13 Batt + R5 ci R10 Fully Underslab, 2' depth | D40: ='Below Grade Walls & Slabs'!E179 -> Interpolated between R11 and R19 | E40: ='Below Grade Walls & Slabs'!G179 -> 0.045 | F40: ='Below Grade Walls & Slabs'!H179 -> 0.3485 | G40: ='Below Grade Walls & Slabs'!E181 -> Interpolated between R11 and R19
A41: 37 | B41: 2' depth | C41: ='Below Grade Walls & Slabs'!F180 -> R15 Batt, 2' depth | D41: ='Below Grade Walls & Slabs'!E180 -> Interpolated between R11 and R19 | E41: ='Below Grade Walls & Slabs'!G180 -> 0.0525 | F41: ='Below Grade Walls & Slabs'!H180 -> 0.675 | G41: ='Below Grade Walls & Slabs'!E182 -> Updated to WSEC 2018
A42: 38 | B42: 2' depth | C42: ='Below Grade Walls & Slabs'!F181 -> R15 Batt w/TB, 2' depth | D42: ='Below Grade Walls & Slabs'!E181 -> Interpolated between R11 and R19 | E42: ='Below Grade Walls & Slabs'!G181 -> 0.055 | F42: ='Below Grade Walls & Slabs'!H181 -> 0.59 | G42: ='Below Grade Walls & Slabs'!E183 -> Updated to WSEC 2018
A43: 39 | B43: 2' depth | C43: ='Below Grade Walls & Slabs'!F182 -> R19 Batt, 2' depth | D43: ='Below Grade Walls & Slabs'!E182 -> Updated to WSEC 2018 | E43: ='Below Grade Walls & Slabs'!G182 -> 0.042 | F43: ='Below Grade Walls & Slabs'!H182 -> 0.68 | G43: ='Below Grade Walls & Slabs'!E184 -> Added 2023 from reference
A44: 40 | B44: 2' depth | C44: ='Below Grade Walls & Slabs'!F183 -> R19 Batt w/TB, 2' depth | D44: ='Below Grade Walls & Slabs'!E183 -> Updated to WSEC 2018 | E44: ='Below Grade Walls & Slabs'!G183 -> 0.045 | F44: ='Below Grade Walls & Slabs'!H183 -> 0.59 | G44: ='Below Grade Walls & Slabs'!E185 -> Added 2023 from reference
A45: 41 | B45: 2' depth | C45: ='Below Grade Walls & Slabs'!F184 -> R19 Batt + R5 ci, 2' depth | D45: ='Below Grade Walls & Slabs'!E184 -> Added 2023 from reference | E45: ='Below Grade Walls & Slabs'!G184 -> 0.033 | F45: ='Below Grade Walls & Slabs'!H184 -> 0.682 | G45: ='Below Grade Walls & Slabs'!E186 -> Added 2023 from reference
A46: 42 | B46: 2' depth | C46: ='Below Grade Walls & Slabs'!F185 -> R19 Batt + R5 ci w/TB, 2' depth | D46: ='Below Grade Walls & Slabs'!E185 -> Added 2023 from reference | E46: ='Below Grade Walls & Slabs'!G185 -> 0.034 | F46: ='Below Grade Walls & Slabs'!H185 -> 0.594 | G46: ='Below Grade Walls & Slabs'!E187 -> Added 2020 from reference
A47: 43 | B47: 2' depth | C47: ='Below Grade Walls & Slabs'!F186 -> R19 Batt + R5 ci R10 Fully Underslab, 2' depth | D47: ='Below Grade Walls & Slabs'!E186 -> Added 2023 from reference | E47: ='Below Grade Walls & Slabs'!G186 -> 0.036 | F47: ='Below Grade Walls & Slabs'!H186 -> 0.35 | G47: ='Below Grade Walls & Slabs'!E188 -> Updated to WSEC 2018
A48: 44 | B48: 2' depth | C48: ='Below Grade Walls & Slabs'!F187 -> R20 Foam Ext w/TB, R10 Full Underslab, 2' depth | D48: ='Below Grade Walls & Slabs'!E187 -> Added 2020 from reference | E48: ='Below Grade Walls & Slabs'!G187 -> 0.04 | F48: ='Below Grade Walls & Slabs'!H187 -> 0.35 | G48: ='Below Grade Walls & Slabs'!E189 -> Updated to WSEC 2018
A49: 45 | B49: 2' depth | C49: ='Below Grade Walls & Slabs'!F188 -> R21 Batt, 2' depth | D49: ='Below Grade Walls & Slabs'!E188 -> Updated to WSEC 2018 | E49: ='Below Grade Walls & Slabs'!G188 -> 0.04 | F49: ='Below Grade Walls & Slabs'!H188 -> 0.68 | G49: ='Below Grade Walls & Slabs'!E190 -> Added in WSEC 2018
A50: 46 | B50: 2' depth | C50: ='Below Grade Walls & Slabs'!F189 -> R21 Batt w/TB, 2' depth | D50: ='Below Grade Walls & Slabs'!E189 -> Updated to WSEC 2018 | E50: ='Below Grade Walls & Slabs'!G189 -> 0.042 | F50: ='Below Grade Walls & Slabs'!H189 -> 0.59 | G50: ='Below Grade Walls & Slabs'!E191 -> Added in WSEC 2018
A51: 47 | B51: 2' depth | C51: ='Below Grade Walls & Slabs'!F190 -> R21 Batt + R5 ci, 2' depth | D51: ='Below Grade Walls & Slabs'!E190 -> Added in WSEC 2018 | E51: ='Below Grade Walls & Slabs'!G190 -> 0.031 | F51: ='Below Grade Walls & Slabs'!H190 -> 0.68 | G51: ='Below Grade Walls & Slabs'!E192 -> Added in WSEC 2018
A52: 48 | B52: 2' depth | C52: ='Below Grade Walls & Slabs'!F191 -> R21 Batt + R5 ci w/TB, 2' depth | D52: ='Below Grade Walls & Slabs'!E191 -> Added in WSEC 2018 | E52: ='Below Grade Walls & Slabs'!G191 -> 0.032 | F52: ='Below Grade Walls & Slabs'!H191 -> 0.59 | G52: ='Below Grade Walls & Slabs'!E193 -> Added in WSEC 2018
A53: 49 | B53: 2' depth | C53: ='Below Grade Walls & Slabs'!F192 -> R21 Batt + R7 ci, 2' depth | D53: ='Below Grade Walls & Slabs'!E192 -> Added in WSEC 2018 | E53: ='Below Grade Walls & Slabs'!G192 -> 0.029 | F53: ='Below Grade Walls & Slabs'!H192 -> 0.68 | G53: ='Below Grade Walls & Slabs'!E194 -> Added 2020 from reference
A54: 50 | B54: 2' depth | C54: ='Below Grade Walls & Slabs'!F193 -> R21 Batt + R7 ci w/TB, 2' depth | D54: ='Below Grade Walls & Slabs'!E193 -> Added in WSEC 2018 | E54: ='Below Grade Walls & Slabs'!G193 -> 0.03 | F54: ='Below Grade Walls & Slabs'!H193 -> 0.59 | G54: ='Below Grade Walls & Slabs'!E195 -> Added 2020 from reference
A55: 51 | B55: 2' depth | C55: ='Below Grade Walls & Slabs'!F194 -> R21 Batt + R5 ci R10 Fully Underslab, 2' depth | D55: ='Below Grade Walls & Slabs'!E194 -> Added 2020 from reference | E55: ='Below Grade Walls & Slabs'!G194 -> 0.031 | F55: ='Below Grade Walls & Slabs'!H194 -> 0.35 | G55: ='Below Grade Walls & Slabs'!E196 -> Added 2020 from reference
A56: 52 | B56: 2' depth | C56: ='Below Grade Walls & Slabs'!F195 -> R25 Batt w/TB, 2' depth | D56: ='Below Grade Walls & Slabs'!E195 -> Added 2020 from reference | E56: ='Below Grade Walls & Slabs'!G195 -> 0.038 | F56: ='Below Grade Walls & Slabs'!H195 -> 0.593 | G56: ='Below Grade Walls & Slabs'!E197 -> 0
A57: 53 | B57: 2' depth | C57: ='Below Grade Walls & Slabs'!F196 -> R25 Batt w/TB, R10 Full Underslab, 2' depth | D57: ='Below Grade Walls & Slabs'!E196 -> Added 2020 from reference | E57: ='Below Grade Walls & Slabs'!G196 -> 0.04 | F57: ='Below Grade Walls & Slabs'!H196 -> 0.35 | G57: ='Below Grade Walls & Slabs'!E198 -> 0
A58: 54 | B58: 3.5' depth | C58: ='Below Grade Walls & Slabs'!I167 -> R0 Uninsulated, 3.5' depth | D58: ='Below Grade Walls & Slabs'!D167 -> 10-1 | E58: ='Below Grade Walls & Slabs'!J167 -> 0.271 | F58: ='Below Grade Walls & Slabs'!K167 -> 0.51 | G58: ='Below Grade Walls & Slabs'!E167 -> Updated to WSEC 2018
A59: 55 | B59: 3.5' depth | C59: ='Below Grade Walls & Slabs'!I168 -> R10 Foam Ext, 3.5' depth | D59: ='Below Grade Walls & Slabs'!D168 -> 10-1 | E59: ='Below Grade Walls & Slabs'!J168 -> 0.075 | F59: ='Below Grade Walls & Slabs'!K168 -> 0.52 | G59: ='Below Grade Walls & Slabs'!E168 -> Updated to WSEC 2018
A60: 56 | B60: 3.5' depth | C60: ='Below Grade Walls & Slabs'!I169 -> R10 Foam Ext w/TB, R10 Full Underslab, 3.5' depth | D60: ='Below Grade Walls & Slabs'!D169 -> Baylon & Kennedy, https://web.ornl.gov/sci/buildings/conf-archive/2007%20B10%20papers/092_Baylon.pdf | E60: ='Below Grade Walls & Slabs'!J169 -> 0.064 | F60: ='Below Grade Walls & Slabs'!K169 -> 0.324 | G60: ='Below Grade Walls & Slabs'!E169 -> Added 2020
A61: 57 | B61: 3.5' depth | C61: ='Below Grade Walls & Slabs'!I170 -> R11 Batt, 3.5' depth | D61: ='Below Grade Walls & Slabs'!D170 -> 10-1 | E61: ='Below Grade Walls & Slabs'!J170 -> 0.058 | F61: ='Below Grade Walls & Slabs'!K170 -> 0.61 | G61: ='Below Grade Walls & Slabs'!E170 -> Updated to WSEC 2018
A62: 58 | B62: 3.5' depth | C62: ='Below Grade Walls & Slabs'!I171 -> R11 Batt w/TB, 3.5' depth | D62: ='Below Grade Walls & Slabs'!D171 -> 10-1 | E62: ='Below Grade Walls & Slabs'!J171 -> 0.061 | F62: ='Below Grade Walls & Slabs'!K171 -> 0.55 | G62: ='Below Grade Walls & Slabs'!E171 -> Updated to WSEC 2018
A63: 59 | B63: 3.5' depth | C63: ='Below Grade Walls & Slabs'!I172 -> R11 Batt + R5 ci, 3.5' depth | D63: ='Below Grade Walls & Slabs'!D172 -> Baylon & Kennedy, https://web.ornl.gov/sci/buildings/conf-archive/2007%20B10%20papers/092_Baylon.pdf | E63: ='Below Grade Walls & Slabs'!J172 -> 0.042 | F63: ='Below Grade Walls & Slabs'!K172 -> 0.624 | G63: ='Below Grade Walls & Slabs'!E172 -> Added 2023 from reference
A64: 60 | B64: 3.5' depth | C64: ='Below Grade Walls & Slabs'!I173 -> R11 Batt + R5 ci w/TB, 3.5' depth | D64: ='Below Grade Walls & Slabs'!D173 -> Baylon & Kennedy, https://web.ornl.gov/sci/buildings/conf-archive/2007%20B10%20papers/092_Baylon.pdf | E64: ='Below Grade Walls & Slabs'!J173 -> 0.043 | F64: ='Below Grade Walls & Slabs'!K173 -> 0.553 | G64: ='Below Grade Walls & Slabs'!E173 -> Added 2020 from reference
A65: 61 | B65: 3.5' depth | C65: ='Below Grade Walls & Slabs'!I174 -> R11 Batt + R5 ci R10 Fully Underslab, 3.5' depth | D65: ='Below Grade Walls & Slabs'!D174 -> Baylon & Kennedy, https://web.ornl.gov/sci/buildings/conf-archive/2007%20B10%20papers/092_Baylon.pdf | E65: ='Below Grade Walls & Slabs'!J174 -> 0.045 | F65: ='Below Grade Walls & Slabs'!K174 -> 0.329 | G65: ='Below Grade Walls & Slabs'!E174 -> Added 2020 from reference
A66: 62 | B66: 3.5' depth | C66: ='Below Grade Walls & Slabs'!I175 -> R12 Foam Ext, 3.5' depth | D66: ='Below Grade Walls & Slabs'!D175 -> 10-1 | E66: ='Below Grade Walls & Slabs'!J175 -> 0.057 | F66: ='Below Grade Walls & Slabs'!K175 -> 0.57 | G66: ='Below Grade Walls & Slabs'!E175 -> Updated to WSEC 2018
A67: 63 | B67: 3.5' depth | C67: ='Below Grade Walls & Slabs'!I176 -> R13 Batt, 3.5' depth | D67: ='Below Grade Walls & Slabs'!D176 -> WSU | E67: ='Below Grade Walls & Slabs'!J176 -> 0.05375 | F67: ='Below Grade Walls & Slabs'!K176 -> 0.6125 | G67: ='Below Grade Walls & Slabs'!E176 -> Interpolated between R11 and R19
A68: 64 | B68: 3.5' depth | C68: ='Below Grade Walls & Slabs'!I177 -> R13 Batt w/TB , 3.5' depth | D68: ='Below Grade Walls & Slabs'!D177 -> WSU | E68: ='Below Grade Walls & Slabs'!J177 -> 0.05625 | F68: ='Below Grade Walls & Slabs'!K177 -> 0.55 | G68: ='Below Grade Walls & Slabs'!E177 -> Interpolated between R11 and R19
A69: 65 | B69: 3.5' depth | C69: ='Below Grade Walls & Slabs'!I178 -> R13 Batt + R5 ci, 3.5' depth | D69: ='Below Grade Walls & Slabs'!D178 -> WSU | E69: ='Below Grade Walls & Slabs'!J178 -> 0.03925 | F69: ='Below Grade Walls & Slabs'!K178 -> 0.6255 | G69: ='Below Grade Walls & Slabs'!E178 -> Interpolated between R11 and R19
A70: 66 | B70: 3.5' depth | C70: ='Below Grade Walls & Slabs'!I179 -> R13 Batt + R5 ci R10 Fully Underslab, 3.5' depth | D70: ='Below Grade Walls & Slabs'!D179 -> WSU | E70: ='Below Grade Walls & Slabs'!J179 -> 0.04225 | F70: ='Below Grade Walls & Slabs'!K179 -> 0.33 | G70: ='Below Grade Walls & Slabs'!E179 -> Interpolated between R11 and R19
B71: 3.5' depth | C71: ='Below Grade Walls & Slabs'!I180 -> R15 Batt, 3.5' depth | D71: ='Below Grade Walls & Slabs'!D180 -> WSU | E71: ='Below Grade Walls & Slabs'!J180 -> 0.0495 | F71: ='Below Grade Walls & Slabs'!K180 -> 0.615 | G71: ='Below Grade Walls & Slabs'!E180 -> Interpolated between R11 and R19
A72: =A70+1 -> 67 | B72: 3.5' depth | C72: ='Below Grade Walls & Slabs'!I181 -> R15 Batt w/TB, 3.5' depth | D72: ='Below Grade Walls & Slabs'!D181 -> WSU | E72: ='Below Grade Walls & Slabs'!J181 -> 0.0515 | F72: ='Below Grade Walls & Slabs'!K181 -> 0.55 | G72: ='Below Grade Walls & Slabs'!E181 -> Interpolated between R11 and R19
A73: 68 | B73: 3.5' depth | C73: ='Below Grade Walls & Slabs'!I182 -> R19 Batt, 3.5' depth | D73: ='Below Grade Walls & Slabs'!D182 -> 10-1 | E73: ='Below Grade Walls & Slabs'!J182 -> 0.041 | F73: ='Below Grade Walls & Slabs'!K182 -> 0.62 | G73: ='Below Grade Walls & Slabs'!E182 -> Updated to WSEC 2018
A74: 69 | B74: 3.5' depth | C74: ='Below Grade Walls & Slabs'!I183 -> R19 Batt w/TB, 3.5' depth | D74: ='Below Grade Walls & Slabs'!D183 -> 10-1 | E74: ='Below Grade Walls & Slabs'!J183 -> 0.042 | F74: ='Below Grade Walls & Slabs'!K183 -> 0.55 | G74: ='Below Grade Walls & Slabs'!E183 -> Updated to WSEC 2018
A75: 70 | B75: 3.5' depth | C75: ='Below Grade Walls & Slabs'!I184 -> R19 Batt + R5 ci, 3.5' depth | D75: ='Below Grade Walls & Slabs'!D184 -> Baylon & Kennedy, https://web.ornl.gov/sci/buildings/conf-archive/2007%20B10%20papers/092_Baylon.pdf | E75: ='Below Grade Walls & Slabs'!J184 -> 0.031 | F75: ='Below Grade Walls & Slabs'!K184 -> 0.63 | G75: ='Below Grade Walls & Slabs'!E184 -> Added 2023 from reference
A76: 71 | B76: 3.5' depth | C76: ='Below Grade Walls & Slabs'!I185 -> R19 Batt + R5 ci w/TB, 3.5' depth | D76: ='Below Grade Walls & Slabs'!D185 -> Baylon & Kennedy, https://web.ornl.gov/sci/buildings/conf-archive/2007%20B10%20papers/092_Baylon.pdf | E76: ='Below Grade Walls & Slabs'!J185 -> 0.033 | F76: ='Below Grade Walls & Slabs'!K185 -> 0.558 | G76: ='Below Grade Walls & Slabs'!E185 -> Added 2023 from reference
A77: 72 | B77: 3.5' depth | C77: ='Below Grade Walls & Slabs'!I186 -> R19 Batt + R5 ci R10 Fully Underslab, 3.5' depth | D77: ='Below Grade Walls & Slabs'!D186 -> Baylon & Kennedy, https://web.ornl.gov/sci/buildings/conf-archive/2007%20B10%20papers/092_Baylon.pdf | E77: ='Below Grade Walls & Slabs'!J186 -> 0.034 | F77: ='Below Grade Walls & Slabs'!K186 -> 0.333 | G77: ='Below Grade Walls & Slabs'!E186 -> Added 2023 from reference
A78: 73 | B78: 3.5' depth | C78: ='Below Grade Walls & Slabs'!I187 -> R20 Foam Ext w/TB, R10 Full Underslab, 3.5' depth | D78: ='Below Grade Walls & Slabs'!D187 -> Baylon & Kennedy, https://web.ornl.gov/sci/buildings/conf-archive/2007%20B10%20papers/092_Baylon.pdf | E78: ='Below Grade Walls & Slabs'!J187 -> 0.038 | F78: ='Below Grade Walls & Slabs'!K187 -> 0.331 | G78: ='Below Grade Walls & Slabs'!E187 -> Added 2020 from reference
A79: 74 | B79: 3.5' depth | C79: ='Below Grade Walls & Slabs'!I188 -> R21 Batt, 3.5' depth | D79: ='Below Grade Walls & Slabs'!D188 -> WSU | E79: ='Below Grade Walls & Slabs'!J188 -> 0.038 | F79: ='Below Grade Walls & Slabs'!K188 -> 0.63 | G79: ='Below Grade Walls & Slabs'!E188 -> Updated to WSEC 2018
A80: 75 | B80: 3.5' depth | C80: ='Below Grade Walls & Slabs'!I189 -> R21 Batt w/TB, 3.5' depth | D80: ='Below Grade Walls & Slabs'!D189 -> WSU | E80: ='Below Grade Walls & Slabs'!J189 -> 0.04 | F80: ='Below Grade Walls & Slabs'!K189 -> 0.56 | G80: ='Below Grade Walls & Slabs'!E189 -> Updated to WSEC 2018
A81: 76 | B81: 3.5' depth | C81: ='Below Grade Walls & Slabs'!I190 -> R21 Batt + R5 ci, 3.5' depth | D81: ='Below Grade Walls & Slabs'!D190 -> 10-1 | E81: ='Below Grade Walls & Slabs'!J190 -> 0.03 | F81: ='Below Grade Walls & Slabs'!K190 -> 0.632 | G81: ='Below Grade Walls & Slabs'!E190 -> Added in WSEC 2018
A82: 77 | B82: 3.5' depth | C82: ='Below Grade Walls & Slabs'!I191 -> R21 Batt + R5 ci w/TB, 3.5' depth | D82: ='Below Grade Walls & Slabs'!D191 -> 10-1 | E82: ='Below Grade Walls & Slabs'!J191 -> 0.031 | F82: ='Below Grade Walls & Slabs'!K191 -> 0.56 | G82: ='Below Grade Walls & Slabs'!E191 -> Added in WSEC 2018
A83: 78 | B83: 3.5' depth | C83: ='Below Grade Walls & Slabs'!I192 -> R21 Batt + R7 ci, 3.5' depth | D83: ='Below Grade Walls & Slabs'!D192 -> 10-1 | E83: ='Below Grade Walls & Slabs'!J192 -> 0.027 | F83: ='Below Grade Walls & Slabs'!K192 -> 0.63 | G83: ='Below Grade Walls & Slabs'!E192 -> Added in WSEC 2018
A84: 79 | B84: 3.5' depth | C84: ='Below Grade Walls & Slabs'!I193 -> R21 Batt + R7 ci w/TB, 3.5' depth | D84: ='Below Grade Walls & Slabs'!D193 -> 10-1 | E84: ='Below Grade Walls & Slabs'!J193 -> 0.029 | F84: ='Below Grade Walls & Slabs'!K193 -> 0.56 | G84: ='Below Grade Walls & Slabs'!E193 -> Added in WSEC 2018
A85: 80 | B85: 3.5' depth | C85: ='Below Grade Walls & Slabs'!I194 -> R21 Batt + R5 ci R10 Fully Underslab, 3.5' depth | D85: ='Below Grade Walls & Slabs'!D194 -> Baylon & Kennedy, https://web.ornl.gov/sci/buildings/conf-archive/2007%20B10%20papers/092_Baylon.pdf | E85: ='Below Grade Walls & Slabs'!J194 -> 0.032 | F85: ='Below Grade Walls & Slabs'!K194 -> 0.333 | G85: ='Below Grade Walls & Slabs'!E194 -> Added 2020 from reference
A86: 81 | B86: 3.5' depth | C86: ='Below Grade Walls & Slabs'!I195 -> R25 Batt w/TB, 3.5' depth | D86: ='Below Grade Walls & Slabs'!D195 -> Baylon & Kennedy, https://web.ornl.gov/sci/buildings/conf-archive/2007%20B10%20papers/092_Baylon.pdf | E86: ='Below Grade Walls & Slabs'!J195 -> 0.036 | F86: ='Below Grade Walls & Slabs'!K195 -> 0.557 | G86: ='Below Grade Walls & Slabs'!E195 -> Added 2020 from reference
A87: 82 | B87: 3.5' depth | C87: ='Below Grade Walls & Slabs'!I196 -> R25 Batt w/TB, R10 Full Underslab, 3.5' depth | D87: ='Below Grade Walls & Slabs'!D196 -> Baylon & Kennedy, https://web.ornl.gov/sci/buildings/conf-archive/2007%20B10%20papers/092_Baylon.pdf | E87: ='Below Grade Walls & Slabs'!J196 -> 0.038 | F87: ='Below Grade Walls & Slabs'!K196 -> 0.331 | G87: ='Below Grade Walls & Slabs'!E196 -> Added 2020 from reference
A88: 83 | B88: 7' depth | C88: ='Below Grade Walls & Slabs'!L167 -> R0 Uninsulated, 7' depth | D88: ='Below Grade Walls & Slabs'!D167 -> 10-1 | E88: ='Below Grade Walls & Slabs'!M167 -> 0.185 | F88: ='Below Grade Walls & Slabs'!N167 -> 0.43 | G88: ='Below Grade Walls & Slabs'!E167 -> Updated to WSEC 2018
A89: 84 | B89: 7' depth | C89: ='Below Grade Walls & Slabs'!L168 -> R10 Foam Ext, 7' depth | D89: ='Below Grade Walls & Slabs'!D168 -> 10-1 | E89: ='Below Grade Walls & Slabs'!M168 -> 0.058 | F89: ='Below Grade Walls & Slabs'!N168 -> 0.47 | G89: ='Below Grade Walls & Slabs'!E168 -> Updated to WSEC 2018
B90: 7' depth | C90: ='Below Grade Walls & Slabs'!L169 -> R10 Foam Ext w/TB, R10 Full Underslab, 7' depth | D90: ='Below Grade Walls & Slabs'!D169 -> Baylon & Kennedy, https://web.ornl.gov/sci/buildings/conf-archive/2007%20B10%20papers/092_Baylon.pdf | E90: ='Below Grade Walls & Slabs'!M169 -> 0.055 | F90: ='Below Grade Walls & Slabs'!N169 -> 0.293 | G90: ='Below Grade Walls & Slabs'!E169 -> Added 2020
A91: =A89+1 -> 85 | B91: 7' depth | C91: ='Below Grade Walls & Slabs'!L170 -> R11 Batt, 7' depth | D91: ='Below Grade Walls & Slabs'!D170 -> 10-1 | E91: ='Below Grade Walls & Slabs'!M170 -> 0.051 | F91: ='Below Grade Walls & Slabs'!N170 -> 0.541 | G91: ='Below Grade Walls & Slabs'!E170 -> Updated to WSEC 2018
A92: 86 | B92: 7' depth | C92: ='Below Grade Walls & Slabs'!L171 -> R11 Batt w/TB, 7' depth | D92: ='Below Grade Walls & Slabs'!D171 -> 10-1 | E92: ='Below Grade Walls & Slabs'!M171 -> 0.053 | F92: ='Below Grade Walls & Slabs'!N171 -> 0.49 | G92: ='Below Grade Walls & Slabs'!E171 -> Updated to WSEC 2018
A93: 87 | B93: 7' depth | C93: ='Below Grade Walls & Slabs'!L172 -> R11 Batt + R5 ci, 7' depth | D93: ='Below Grade Walls & Slabs'!D172 -> Baylon & Kennedy, https://web.ornl.gov/sci/buildings/conf-archive/2007%20B10%20papers/092_Baylon.pdf | E93: ='Below Grade Walls & Slabs'!M172 -> 0.037 | F93: ='Below Grade Walls & Slabs'!N172 -> 0.553 | G93: ='Below Grade Walls & Slabs'!E172 -> Added 2023 from reference
A94: 88 | B94: 7' depth | C94: ='Below Grade Walls & Slabs'!L173 -> R11 Batt + R5 ci w/TB, 7' depth | D94: ='Below Grade Walls & Slabs'!D173 -> Baylon & Kennedy, https://web.ornl.gov/sci/buildings/conf-archive/2007%20B10%20papers/092_Baylon.pdf | E94: ='Below Grade Walls & Slabs'!M173 -> 0.038 | F94: ='Below Grade Walls & Slabs'!N173 -> 0.499 | G94: ='Below Grade Walls & Slabs'!E173 -> Added 2020 from reference
A95: 89 | B95: 7' depth | C95: ='Below Grade Walls & Slabs'!L174 -> R11 Batt + R5 ci R10 Fully Underslab, 7' depth | D95: ='Below Grade Walls & Slabs'!D174 -> Baylon & Kennedy, https://web.ornl.gov/sci/buildings/conf-archive/2007%20B10%20papers/092_Baylon.pdf | E95: ='Below Grade Walls & Slabs'!M174 -> 0.04 | F95: ='Below Grade Walls & Slabs'!N174 -> 0.301 | G95: ='Below Grade Walls & Slabs'!E174 -> Added 2020 from reference
A96: 90 | B96: 7' depth | C96: ='Below Grade Walls & Slabs'!L175 -> R12 Foam Ext, 7' depth | D96: ='Below Grade Walls & Slabs'!D175 -> 10-1 | E96: ='Below Grade Walls & Slabs'!M175 -> 0.05 | F96: ='Below Grade Walls & Slabs'!N175 -> 0.42 | G96: ='Below Grade Walls & Slabs'!E175 -> Updated to WSEC 2018
A97: 91 | B97: 7' depth | C97: ='Below Grade Walls & Slabs'!L176 -> R13 Batt, 7' depth | D97: ='Below Grade Walls & Slabs'!D176 -> WSU | E97: ='Below Grade Walls & Slabs'!M176 -> 0.04725 | F97: ='Below Grade Walls & Slabs'!N176 -> 0.54075 | G97: ='Below Grade Walls & Slabs'!E176 -> Interpolated between R11 and R19
A98: 92 | B98: 7' depth | C98: ='Below Grade Walls & Slabs'!L177 -> R13 Batt w/TB , 7' depth | D98: ='Below Grade Walls & Slabs'!D177 -> WSU | E98: ='Below Grade Walls & Slabs'!M177 -> 0.049 | F98: ='Below Grade Walls & Slabs'!N177 -> 0.4925 | G98: ='Below Grade Walls & Slabs'!E177 -> Interpolated between R11 and R19
A99: 93 | B99: 7' depth | C99: ='Below Grade Walls & Slabs'!L178 -> R13 Batt + R5 ci, 7' depth | D99: ='Below Grade Walls & Slabs'!D178 -> WSU | E99: ='Below Grade Walls & Slabs'!M178 -> 0.03475 | F99: ='Below Grade Walls & Slabs'!N178 -> 0.5555 | G99: ='Below Grade Walls & Slabs'!E178 -> Interpolated between R11 and R19
A100: 94 | B100: 7' depth | C100: ='Below Grade Walls & Slabs'!L179 -> R13 Batt + R5 ci R10 Fully Underslab, 7' depth | D100: ='Below Grade Walls & Slabs'!D179 -> WSU | E100: ='Below Grade Walls & Slabs'!M179 -> 0.03775 | F100: ='Below Grade Walls & Slabs'!N179 -> 0.3025 | G100: ='Below Grade Walls & Slabs'!E179 -> Interpolated between R11 and R19
B101: 7' depth | C101: ='Below Grade Walls & Slabs'!L180 -> R15 Batt, 7' depth | D101: ='Below Grade Walls & Slabs'!D180 -> WSU | E101: ='Below Grade Walls & Slabs'!M180 -> 0.0435 | F101: ='Below Grade Walls & Slabs'!N180 -> 0.5405 | G101: ='Below Grade Walls & Slabs'!E180 -> Interpolated between R11 and R19
A102: =A100+1 -> 95 | B102: 7' depth | C102: ='Below Grade Walls & Slabs'!L181 -> R15 Batt w/TB, 7' depth | D102: ='Below Grade Walls & Slabs'!D181 -> WSU | E102: ='Below Grade Walls & Slabs'!M181 -> 0.045 | F102: ='Below Grade Walls & Slabs'!N181 -> 0.495 | G102: ='Below Grade Walls & Slabs'!E181 -> Interpolated between R11 and R19
A103: 96 | B103: 7' depth | C103: ='Below Grade Walls & Slabs'!L182 -> R19 Batt, 7' depth | D103: ='Below Grade Walls & Slabs'!D182 -> 10-1 | E103: ='Below Grade Walls & Slabs'!M182 -> 0.036 | F103: ='Below Grade Walls & Slabs'!N182 -> 0.54 | G103: ='Below Grade Walls & Slabs'!E182 -> Updated to WSEC 2018
A104: 97 | B104: 7' depth | C104: ='Below Grade Walls & Slabs'!L183 -> R19 Batt w/TB, 7' depth | D104: ='Below Grade Walls & Slabs'!D183 -> 10-1 | E104: ='Below Grade Walls & Slabs'!M183 -> 0.037 | F104: ='Below Grade Walls & Slabs'!N183 -> 0.5 | G104: ='Below Grade Walls & Slabs'!E183 -> Updated to WSEC 2018
A105: 98 | B105: 7' depth | C105: ='Below Grade Walls & Slabs'!L184 -> R19 Batt + R5 ci, 7' depth | D105: ='Below Grade Walls & Slabs'!D184 -> Baylon & Kennedy, https://web.ornl.gov/sci/buildings/conf-archive/2007%20B10%20papers/092_Baylon.pdf | E105: ='Below Grade Walls & Slabs'!M184 -> 0.028 | F105: ='Below Grade Walls & Slabs'!N184 -> 0.563 | G105: ='Below Grade Walls & Slabs'!E184 -> Added 2023 from reference
A106: 99 | B106: 7' depth | C106: ='Below Grade Walls & Slabs'!L185 -> R19 Batt + R5 ci w/TB, 7' depth | D106: ='Below Grade Walls & Slabs'!D185 -> Baylon & Kennedy, https://web.ornl.gov/sci/buildings/conf-archive/2007%20B10%20papers/092_Baylon.pdf | E106: ='Below Grade Walls & Slabs'!M185 -> 0.029 | F106: ='Below Grade Walls & Slabs'!N185 -> 0.507 | G106: ='Below Grade Walls & Slabs'!E185 -> Added 2023 from reference
A107: 100 | B107: 7' depth | C107: ='Below Grade Walls & Slabs'!L186 -> R19 Batt + R5 ci R10 Fully Underslab, 7' depth | D107: ='Below Grade Walls & Slabs'!D186 -> Baylon & Kennedy, https://web.ornl.gov/sci/buildings/conf-archive/2007%20B10%20papers/092_Baylon.pdf | E107: ='Below Grade Walls & Slabs'!M186 -> 0.031 | F107: ='Below Grade Walls & Slabs'!N186 -> 0.307 | G107: ='Below Grade Walls & Slabs'!E186 -> Added 2023 from reference
B108: 7' depth | C108: ='Below Grade Walls & Slabs'!L187 -> R20 Foam Ext w/TB, R10 Full Underslab, 7' depth | D108: ='Below Grade Walls & Slabs'!D187 -> Baylon & Kennedy, https://web.ornl.gov/sci/buildings/conf-archive/2007%20B10%20papers/092_Baylon.pdf | E108: ='Below Grade Walls & Slabs'!M187 -> 0.034 | F108: ='Below Grade Walls & Slabs'!N187 -> 0.304 | G108: ='Below Grade Walls & Slabs'!E187 -> Added 2020 from reference
A109: =A107+1 -> 101 | B109: 7' depth | C109: ='Below Grade Walls & Slabs'!L188 -> R21 Batt, 7' depth | D109: ='Below Grade Walls & Slabs'!D188 -> WSU | E109: ='Below Grade Walls & Slabs'!M188 -> 0.035 | F109: ='Below Grade Walls & Slabs'!N188 -> 0.56 | G109: ='Below Grade Walls & Slabs'!E188 -> Updated to WSEC 2018
A110: 102 | B110: 7' depth | C110: ='Below Grade Walls & Slabs'!L189 -> R21 Batt w/TB, 7' depth | D110: ='Below Grade Walls & Slabs'!D189 -> WSU | E110: ='Below Grade Walls & Slabs'!M189 -> 0.035 | F110: ='Below Grade Walls & Slabs'!N189 -> 0.5 | G110: ='Below Grade Walls & Slabs'!E189 -> Updated to WSEC 2018
A111: 103 | B111: 7' depth | C111: ='Below Grade Walls & Slabs'!L190 -> R21 Batt + R5 ci, 7' depth | D111: ='Below Grade Walls & Slabs'!D190 -> 10-1 | E111: ='Below Grade Walls & Slabs'!M190 -> 0.027 | F111: ='Below Grade Walls & Slabs'!N190 -> 0.56 | G111: ='Below Grade Walls & Slabs'!E190 -> Added in WSEC 2018
A112: 104 | B112: 7' depth | C112: ='Below Grade Walls & Slabs'!L191 -> R21 Batt + R5 ci w/TB, 7' depth | D112: ='Below Grade Walls & Slabs'!D191 -> 10-1 | E112: ='Below Grade Walls & Slabs'!M191 -> 0.028 | F112: ='Below Grade Walls & Slabs'!N191 -> 0.51 | G112: ='Below Grade Walls & Slabs'!E191 -> Added in WSEC 2018
A113: 105 | B113: 7' depth | C113: ='Below Grade Walls & Slabs'!L192 -> R21 Batt + R7 ci, 7' depth | D113: ='Below Grade Walls & Slabs'!D192 -> 10-1 | E113: ='Below Grade Walls & Slabs'!M192 -> 0.025 | F113: ='Below Grade Walls & Slabs'!N192 -> 0.57 | G113: ='Below Grade Walls & Slabs'!E192 -> Added in WSEC 2018
A114: 106 | B114: 7' depth | C114: ='Below Grade Walls & Slabs'!L193 -> R21 Batt + R7 ci w/TB, 7' depth | D114: ='Below Grade Walls & Slabs'!D193 -> 10-1 | E114: ='Below Grade Walls & Slabs'!M193 -> 0.026 | F114: ='Below Grade Walls & Slabs'!N193 -> 0.57 | G114: ='Below Grade Walls & Slabs'!E193 -> Added in WSEC 2018
A115: 107 | B115: 7' depth | C115: ='Below Grade Walls & Slabs'!L194 -> R21 Batt + R5 ci R10 Fully Underslab, 7' depth | D115: ='Below Grade Walls & Slabs'!D194 -> Baylon & Kennedy, https://web.ornl.gov/sci/buildings/conf-archive/2007%20B10%20papers/092_Baylon.pdf | E115: ='Below Grade Walls & Slabs'!M194 -> 0.029 | F115: ='Below Grade Walls & Slabs'!N194 -> 0.307 | G115: ='Below Grade Walls & Slabs'!E194 -> Added 2020 from reference
A116: 108 | B116: 7' depth | C116: ='Below Grade Walls & Slabs'!L195 -> R25 Batt w/TB, 7' depth | D116: ='Below Grade Walls & Slabs'!D195 -> Baylon & Kennedy, https://web.ornl.gov/sci/buildings/conf-archive/2007%20B10%20papers/092_Baylon.pdf | E116: ='Below Grade Walls & Slabs'!M195 -> 0.032 | F116: ='Below Grade Walls & Slabs'!N195 -> 0.505 | G116: ='Below Grade Walls & Slabs'!E195 -> Added 2020 from reference
A117: 109 | B117: 7' depth | C117: ='Below Grade Walls & Slabs'!L196 -> R25 Batt w/TB, R10 Full Underslab, 7' depth | D117: ='Below Grade Walls & Slabs'!D196 -> Baylon & Kennedy, https://web.ornl.gov/sci/buildings/conf-archive/2007%20B10%20papers/092_Baylon.pdf | E117: ='Below Grade Walls & Slabs'!M196 -> 0.034 | F117: ='Below Grade Walls & Slabs'!N196 -> 0.304 | G117: ='Below Grade Walls & Slabs'!E196 -> Added 2020 from reference
A118: 110
A119: =A118+1 -> 111 | B119: Depth | C119: ='Flat-Vaulted Ceilings'!$B$339 -> == Custom Entries per WSEC R402.1.5 U-factor Reference and Calculations ======== | E119: Wall U | F119: Slab F | G119: Notes | H119: ='Flat-Vaulted Ceilings'!$F$339 -> Your entries appear at bottom of drowdown menus on "Group R" tab
A120: 112 | D120: Custom | H120: =IF(AND(C121<>"",C120=""),"Don't skip lines",IF(AND(OR(F120="",E120=""),C120<>""),"Enter U- and F-values",IF(AND(OR(F120<>"",E120<>""),C120=""),"Enter Description",""))) -> 
A121: 113 | D121: Custom
A122: 114 | D122: Custom
A123: 115 | D123: Custom
A124: 116 | D124: Custom
A125: 117 | D125: Custom
A126: 118 | D126: Custom
A127: 119 | D127: Custom
C151: CALCULATION AREA
C154: If you rearrange, add or delete rows below -- be sure to make corresponding changes to the six areas above.
C156: DropDown_BelowGradeSlab | F156: Component Description | G156: Wall U | H156: Slab F | I156: Component Description | J156: Wall U | K156: Slab F | L156: Component Description | M156: Wall U | N156: Slab F
A157: 1 | D157: Reference | E157: Notes | F157: 2' depth | I157: 3.5' depth | L157: 7' depth
A158: =A157+1 -> 2 | C158: === Most Frequently Used =========
A159: 3 | C159: =C167 -> R0 Uninsulated | D159: =VLOOKUP($C159,$C$167:$E$206,2,FALSE) -> 10-1 | E159: =VLOOKUP($C159,$C$167:$E$206,3,FALSE) -> Updated to WSEC 2018 | F159: =CONCATENATE($C159,", ",F$157) -> R0 Uninsulated, 2' depth | G159: =VLOOKUP($F159,$F$167:$H$206,2,FALSE) -> 0.331 | H159: =VLOOKUP($F159,$F$167:$H$206,3,FALSE) -> 0.58 | I159: =CONCATENATE($C159,", ",I$157) -> R0 Uninsulated, 3.5' depth | J159: =VLOOKUP($I159,$I$167:$K$206,2,FALSE) -> 0.271 | K159: =VLOOKUP($I159,$I$167:$K$206,3,FALSE) -> 0.51 | L159: =CONCATENATE($C159,", ",L$157) -> R0 Uninsulated, 7' depth | M159: =VLOOKUP($L159,$L$167:$N$206,2,FALSE) -> 0.185 | N159: =VLOOKUP($L159,$L$167:$N$206,3,FALSE) -> 0.43
A160: 4 | C160: =C168 -> R10 Foam Ext | D160: 10-1 | E160: Updated to WSEC 2018 | F160: R10 Foam Ext, 2' depth | G160: 0.089 | H160: 0.56 | I160: R10 Foam Ext, 3.5' depth | J160: 0.075 | K160: 0.52 | L160: R10 Foam Ext, 7' depth | M160: 0.058 | N160: 0.47
A161: 5 | C161: =C170 -> R11 Batt | D161: 10-1 | E161: Updated to WSEC 2018 | F161: R11 Batt, 2' depth | G161: 0.063 | H161: 0.67 | I161: R11 Batt, 3.5' depth | J161: 0.058 | K161: 0.61 | L161: R11 Batt, 7' depth | M161: 0.051 | N161: 0.541
A162: 6 | C162: =C175 -> R12 Foam Ext | D162: 10-1 | E162: Updated to WSEC 2018 | F162: R12 Foam Ext, 2' depth | G162: 0.61 | H162: 0.6 | I162: R12 Foam Ext, 3.5' depth | J162: 0.057 | K162: 0.57 | L162: R12 Foam Ext, 7' depth | M162: 0.05 | N162: 0.42
A163: =A162+1 -> 7 | C163: =C169 -> R10 Foam Ext w/TB, R10 Full Underslab | D163: Baylon & Kennedy, https://web.ornl.gov/sci/buildings/conf-archive/2007%20B10%20papers/092_Baylon.pdf | E163: Added 2020 | F163: R10 Foam Ext w/TB, R10 Full Underslab, 2' depth | G163: 0.068 | H163: 0.345 | I163: R10 Foam Ext w/TB, R10 Full Underslab, 3.5' depth | J163: 0.064 | K163: 0.324 | L163: R10 Foam Ext w/TB, R10 Full Underslab, 7' depth | M163: 0.055 | N163: 0.293
A164: 8 | C164: =C187 -> R20 Foam Ext w/TB, R10 Full Underslab | D164: Baylon & Kennedy, https://web.ornl.gov/sci/buildings/conf-archive/2007%20B10%20papers/092_Baylon.pdf | E164: Added 2020 from reference | F164: R20 Foam Ext w/TB, R10 Full Underslab, 2' depth | G164: 0.04 | H164: 0.35 | I164: R20 Foam Ext w/TB, R10 Full Underslab, 3.5' depth | J164: 0.038 | K164: 0.331 | L164: R20 Foam Ext w/TB, R10 Full Underslab, 7' depth | M164: 0.034 | N164: 0.304
A165: 9 | C165: =C189 -> R21 Batt w/TB | D165: WSU | E165: Updated to WSEC 2018 | F165: R21 Batt w/TB, 2' depth | G165: 0.042 | H165: 0.59 | I165: R21 Batt w/TB, 3.5' depth | J165: 0.04 | K165: 0.56 | L165: R21 Batt w/TB, 7' depth | M165: 0.035 | N165: 0.5
A166: 10 | C166: ============================
A167: 11 | C167: R0 Uninsulated | D167: 10-1 | E167: Updated to WSEC 2018 | F167: =CONCATENATE($C167,", ",F$157) -> R0 Uninsulated, 2' depth | G167: 0.331 | H167: 0.58 | I167: =CONCATENATE($C167,", ",I$157) -> R0 Uninsulated, 3.5' depth | J167: 0.271 | K167: 0.51 | L167: =CONCATENATE($C167,", ",L$157) -> R0 Uninsulated, 7' depth | M167: 0.185 | N167: 0.43
A168: 12 | C168: R10 Foam Ext | D168: 10-1 | E168: Updated to WSEC 2018 | F168: R10 Foam Ext, 2' depth | G168: 0.089 | H168: 0.56 | I168: R10 Foam Ext, 3.5' depth | J168: 0.075 | K168: 0.52 | L168: R10 Foam Ext, 7' depth | M168: 0.058 | N168: 0.47
A169: 13 | C169: R10 Foam Ext w/TB, R10 Full Underslab | D169: Baylon & Kennedy, https://web.ornl.gov/sci/buildings/conf-archive/2007%20B10%20papers/092_Baylon.pdf | E169: Added 2020 | F169: R10 Foam Ext w/TB, R10 Full Underslab, 2' depth | G169: 0.068 | H169: 0.345 | I169: R10 Foam Ext w/TB, R10 Full Underslab, 3.5' depth | J169: 0.064 | K169: 0.324 | L169: R10 Foam Ext w/TB, R10 Full Underslab, 7' depth | M169: 0.055 | N169: 0.293
A170: 14 | C170: R11 Batt | D170: 10-1 | E170: Updated to WSEC 2018 | F170: R11 Batt, 2' depth | G170: 0.063 | H170: 0.67 | I170: R11 Batt, 3.5' depth | J170: 0.058 | K170: 0.61 | L170: R11 Batt, 7' depth | M170: 0.051 | N170: 0.541
A171: 15 | C171: R11 Batt w/TB | D171: 10-1 | E171: Updated to WSEC 2018 | F171: R11 Batt w/TB, 2' depth | G171: 0.065 | H171: 0.59 | I171: R11 Batt w/TB, 3.5' depth | J171: 0.061 | K171: 0.55 | L171: R11 Batt w/TB, 7' depth | M171: 0.053 | N171: 0.49
A172: 16 | C172: R11 Batt + R5 ci | D172: Baylon & Kennedy, https://web.ornl.gov/sci/buildings/conf-archive/2007%20B10%20papers/092_Baylon.pdf | E172: Added 2023 from reference | F172: R11 Batt + R5 ci, 2' depth | G172: 0.044 | H172: 0.677 | I172: R11 Batt + R5 ci, 3.5' depth | J172: 0.042 | K172: 0.624 | L172: R11 Batt + R5 ci, 7' depth | M172: 0.037 | N172: 0.553
A173: 17 | C173: R11 Batt + R5 ci w/TB | D173: Baylon & Kennedy, https://web.ornl.gov/sci/buildings/conf-archive/2007%20B10%20papers/092_Baylon.pdf | E173: Added 2020 from reference | F173: R11 Batt + R5 ci w/TB, 2' depth | G173: 0.046 | H173: 0.59 | I173: R11 Batt + R5 ci w/TB, 3.5' depth | J173: 0.043 | K173: 0.553 | L173: R11 Batt + R5 ci w/TB, 7' depth | M173: 0.038 | N173: 0.499
A174: 18 | C174: R11 Batt + R5 ci R10 Fully Underslab | D174: Baylon & Kennedy, https://web.ornl.gov/sci/buildings/conf-archive/2007%20B10%20papers/092_Baylon.pdf | E174: Added 2020 from reference | F174: R11 Batt + R5 ci R10 Fully Underslab, 2' depth | G174: 0.048 | H174: 0.348 | I174: R11 Batt + R5 ci R10 Fully Underslab, 3.5' depth | J174: 0.045 | K174: 0.329 | L174: R11 Batt + R5 ci R10 Fully Underslab, 7' depth | M174: 0.04 | N174: 0.301
A175: 19 | C175: R12 Foam Ext | D175: 10-1 | E175: Updated to WSEC 2018 | F175: R12 Foam Ext, 2' depth | G175: 0.61 | H175: 0.6 | I175: R12 Foam Ext, 3.5' depth | J175: 0.057 | K175: 0.57 | L175: R12 Foam Ext, 7' depth | M175: 0.05 | N175: 0.42
A176: 20 | C176: R13 Batt | D176: WSU | E176: Interpolated between R11 and R19 | F176: R13 Batt, 2' depth | G176: =(13-11)/(19-11)*(G182-G170)+G170 -> 0.05775 | H176: 0.6725 | I176: R13 Batt, 3.5' depth | J176: =(13-11)/(19-11)*(J182-J170)+J170 -> 0.05375 | K176: 0.6125 | L176: R13 Batt, 7' depth | M176: =(13-11)/(19-11)*(M182-M170)+M170 -> 0.04725 | N176: 0.54075
A177: 21 | C177: R13 Batt w/TB | D177: WSU | E177: Interpolated between R11 and R19 | F177: R13 Batt w/TB , 2' depth | G177: 0.06 | H177: 0.59 | I177: R13 Batt w/TB , 3.5' depth | J177: 0.05625 | K177: 0.55 | L177: R13 Batt w/TB , 7' depth | M177: 0.049 | N177: 0.4925
A178: 22 | C178: R13 Batt + R5 ci | D178: WSU | E178: Interpolated between R11 and R19 | F178: R13 Batt + R5 ci, 2' depth | G178: 0.04125 | H178: 0.67825 | I178: R13 Batt + R5 ci, 3.5' depth | J178: 0.03925 | K178: 0.6255 | L178: R13 Batt + R5 ci, 7' depth | M178: 0.03475 | N178: 0.5555
C179: R13 Batt + R5 ci R10 Fully Underslab | D179: WSU | E179: Interpolated between R11 and R19 | F179: R13 Batt + R5 ci R10 Fully Underslab, 2' depth | G179: =(13-11)/(19-11)*(G186-G174)+G174 -> 0.045 | H179: =(13-11)/(19-11)*(H186-H174)+H174 -> 0.3485 | I179: R13 Batt + R5 ci R10 Fully Underslab, 3.5' depth | J179: =(13-11)/(19-11)*(J186-J174)+J174 -> 0.04225 | K179: =(13-11)/(19-11)*(K186-K174)+K174 -> 0.33 | L179: R13 Batt + R5 ci R10 Fully Underslab, 7' depth | M179: =(13-11)/(19-11)*(M186-M174)+M174 -> 0.03775 | N179: =(13-11)/(19-11)*(N186-N174)+N174 -> 0.3025
A180: =A178+1 -> 23 | C180: R15 Batt | D180: WSU | E180: Interpolated between R11 and R19 | F180: R15 Batt, 2' depth | G180: =G170*0.5+G182*0.5 -> 0.0525 | H180: =H170*0.5+H182*0.5 -> 0.675 | I180: R15 Batt, 3.5' depth | J180: =J170*0.5+J182*0.5 -> 0.0495 | K180: =K170*0.5+K182*0.5 -> 0.615 | L180: R15 Batt, 7' depth | M180: =M170*0.5+M182*0.5 -> 0.0435 | N180: =N170*0.5+N182*0.5 -> 0.5405
A181: 24 | C181: R15 Batt w/TB | D181: WSU | E181: Interpolated between R11 and R19 | F181: R15 Batt w/TB, 2' depth | G181: =G171*0.5+G183*0.5 -> 0.055 | H181: =H171*0.5+H183*0.5 -> 0.59 | I181: R15 Batt w/TB, 3.5' depth | J181: =J171*0.5+J183*0.5 -> 0.0515 | K181: =K171*0.5+K183*0.5 -> 0.55 | L181: R15 Batt w/TB, 7' depth | M181: =M171*0.5+M183*0.5 -> 0.045 | N181: =N171*0.5+N183*0.5 -> 0.495
A182: 25 | C182: R19 Batt | D182: 10-1 | E182: Updated to WSEC 2018 | F182: R19 Batt, 2' depth | G182: 0.042 | H182: 0.68 | I182: R19 Batt, 3.5' depth | J182: 0.041 | K182: 0.62 | L182: R19 Batt, 7' depth | M182: 0.036 | N182: 0.54
A183: 26 | C183: R19 Batt w/TB | D183: 10-1 | E183: Updated to WSEC 2018 | F183: R19 Batt w/TB, 2' depth | G183: 0.045 | H183: 0.59 | I183: R19 Batt w/TB, 3.5' depth | J183: 0.042 | K183: 0.55 | L183: R19 Batt w/TB, 7' depth | M183: 0.037 | N183: 0.5
A184: 27 | C184: R19 Batt + R5 ci | D184: Baylon & Kennedy, https://web.ornl.gov/sci/buildings/conf-archive/2007%20B10%20papers/092_Baylon.pdf | E184: Added 2023 from reference | F184: R19 Batt + R5 ci, 2' depth | G184: 0.033 | H184: 0.682 | I184: R19 Batt + R5 ci, 3.5' depth | J184: 0.031 | K184: 0.63 | L184: R19 Batt + R5 ci, 7' depth | M184: 0.028 | N184: 0.563
A185: 28 | C185: R19 Batt + R5 ci w/TB | D185: Baylon & Kennedy, https://web.ornl.gov/sci/buildings/conf-archive/2007%20B10%20papers/092_Baylon.pdf | E185: Added 2023 from reference | F185: R19 Batt + R5 ci w/TB, 2' depth | G185: 0.034 | H185: 0.594 | I185: R19 Batt + R5 ci w/TB, 3.5' depth | J185: 0.033 | K185: 0.558 | L185: R19 Batt + R5 ci w/TB, 7' depth | M185: 0.029 | N185: 0.507
C186: R19 Batt + R5 ci R10 Fully Underslab | D186: Baylon & Kennedy, https://web.ornl.gov/sci/buildings/conf-archive/2007%20B10%20papers/092_Baylon.pdf | E186: Added 2023 from reference | F186: R19 Batt + R5 ci R10 Fully Underslab, 2' depth | G186: 0.036 | H186: 0.35 | I186: R19 Batt + R5 ci R10 Fully Underslab, 3.5' depth | J186: 0.034 | K186: 0.333 | L186: R19 Batt + R5 ci R10 Fully Underslab, 7' depth | M186: 0.031 | N186: 0.307
A187: =A185+1 -> 29 | C187: R20 Foam Ext w/TB, R10 Full Underslab | D187: Baylon & Kennedy, https://web.ornl.gov/sci/buildings/conf-archive/2007%20B10%20papers/092_Baylon.pdf | E187: Added 2020 from reference | F187: R20 Foam Ext w/TB, R10 Full Underslab, 2' depth | G187: 0.04 | H187: 0.35 | I187: R20 Foam Ext w/TB, R10 Full Underslab, 3.5' depth | J187: 0.038 | K187: 0.331 | L187: R20 Foam Ext w/TB, R10 Full Underslab, 7' depth | M187: 0.034 | N187: 0.304
A188: 30 | C188: R21 Batt | D188: WSU | E188: Updated to WSEC 2018 | F188: R21 Batt, 2' depth | G188: 0.04 | H188: 0.68 | I188: R21 Batt, 3.5' depth | J188: 0.038 | K188: 0.63 | L188: R21 Batt, 7' depth | M188: 0.035 | N188: 0.56
A189: 31 | C189: R21 Batt w/TB | D189: WSU | E189: Updated to WSEC 2018 | F189: R21 Batt w/TB, 2' depth | G189: 0.042 | H189: 0.59 | I189: R21 Batt w/TB, 3.5' depth | J189: 0.04 | K189: 0.56 | L189: R21 Batt w/TB, 7' depth | M189: 0.035 | N189: 0.5
A190: 32 | C190: R21 Batt + R5 ci | D190: 10-1 | E190: Added in WSEC 2018 | F190: R21 Batt + R5 ci, 2' depth | G190: 0.031 | H190: 0.68 | I190: R21 Batt + R5 ci, 3.5' depth | J190: 0.03 | K190: 0.632 | L190: R21 Batt + R5 ci, 7' depth | M190: 0.027 | N190: 0.56
A191: 33 | C191: R21 Batt + R5 ci w/TB | D191: 10-1 | E191: Added in WSEC 2018 | F191: R21 Batt + R5 ci w/TB, 2' depth | G191: 0.032 | H191: 0.59 | I191: R21 Batt + R5 ci w/TB, 3.5' depth | J191: 0.031 | K191: 0.56 | L191: R21 Batt + R5 ci w/TB, 7' depth | M191: 0.028 | N191: 0.51
A192: 34 | C192: R21 Batt + R7 ci | D192: 10-1 | E192: Added in WSEC 2018 | F192: R21 Batt + R7 ci, 2' depth | G192: 0.029 | H192: 0.68 | I192: R21 Batt + R7 ci, 3.5' depth | J192: 0.027 | K192: 0.63 | L192: R21 Batt + R7 ci, 7' depth | M192: 0.025 | N192: 0.57
A193: 35 | C193: R21 Batt + R7 ci w/TB | D193: 10-1 | E193: Added in WSEC 2018 | F193: R21 Batt + R7 ci w/TB, 2' depth | G193: 0.03 | H193: 0.59 | I193: R21 Batt + R7 ci w/TB, 3.5' depth | J193: 0.029 | K193: 0.56 | L193: R21 Batt + R7 ci w/TB, 7' depth | M193: 0.026 | N193: 0.57
A194: 36 | C194: R21 Batt + R5 ci R10 Fully Underslab | D194: Baylon & Kennedy, https://web.ornl.gov/sci/buildings/conf-archive/2007%20B10%20papers/092_Baylon.pdf | E194: Added 2020 from reference | F194: R21 Batt + R5 ci R10 Fully Underslab, 2' depth | G194: 0.031 | H194: 0.35 | I194: R21 Batt + R5 ci R10 Fully Underslab, 3.5' depth | J194: 0.032 | K194: 0.333 | L194: R21 Batt + R5 ci R10 Fully Underslab, 7' depth | M194: 0.029 | N194: 0.307
A195: 37 | C195: R25 Batt w/TB | D195: Baylon & Kennedy, https://web.ornl.gov/sci/buildings/conf-archive/2007%20B10%20papers/092_Baylon.pdf | E195: Added 2020 from reference | F195: R25 Batt w/TB, 2' depth | G195: 0.038 | H195: 0.593 | I195: R25 Batt w/TB, 3.5' depth | J195: 0.036 | K195: 0.557 | L195: R25 Batt w/TB, 7' depth | M195: 0.032 | N195: 0.505
A196: 38 | C196: R25 Batt w/TB, R10 Full Underslab | D196: Baylon & Kennedy, https://web.ornl.gov/sci/buildings/conf-archive/2007%20B10%20papers/092_Baylon.pdf | E196: Added 2020 from reference | F196: R25 Batt w/TB, R10 Full Underslab, 2' depth | G196: 0.04 | H196: 0.35 | I196: R25 Batt w/TB, R10 Full Underslab, 3.5' depth | J196: 0.038 | K196: 0.331 | L196: R25 Batt w/TB, R10 Full Underslab, 7' depth | M196: 0.034 | N196: 0.304
C197: ='Below Grade Walls & Slabs'!C119 -> == Custom Entries per WSEC R402.1.5 U-factor Reference and Calculations ======== | G197: Wall U | H197: Slab F
A198: ='Below Grade Walls & Slabs'!A120 -> 112 | C198: =IF('Below Grade Walls & Slabs'!C120="","",'Below Grade Walls & Slabs'!C120) ->  | D198: Custom | G198: ='Below Grade Walls & Slabs'!$E120 -> 0 | H198: ='Below Grade Walls & Slabs'!$F120 -> 0
A199: ='Below Grade Walls & Slabs'!A121 -> 113 | C199: =IF('Below Grade Walls & Slabs'!C121="","",'Below Grade Walls & Slabs'!C121) ->  | D199: Custom | G199: ='Below Grade Walls & Slabs'!$E121 -> 0 | H199: ='Below Grade Walls & Slabs'!$F121 -> 0
A200: ='Below Grade Walls & Slabs'!A122 -> 114 | C200: =IF('Below Grade Walls & Slabs'!C122="","",'Below Grade Walls & Slabs'!C122) ->  | D200: Custom | G200: ='Below Grade Walls & Slabs'!$E122 -> 0 | H200: ='Below Grade Walls & Slabs'!$F122 -> 0
A201: ='Below Grade Walls & Slabs'!A123 -> 115 | C201: =IF('Below Grade Walls & Slabs'!C123="","",'Below Grade Walls & Slabs'!C123) ->  | D201: Custom | G201: ='Below Grade Walls & Slabs'!$E123 -> 0 | H201: ='Below Grade Walls & Slabs'!$F123 -> 0
A202: ='Below Grade Walls & Slabs'!A124 -> 116 | C202: =IF('Below Grade Walls & Slabs'!C124="","",'Below Grade Walls & Slabs'!C124) ->  | D202: Custom | G202: ='Below Grade Walls & Slabs'!$E124 -> 0 | H202: ='Below Grade Walls & Slabs'!$F124 -> 0
A203: ='Below Grade Walls & Slabs'!A125 -> 117 | C203: =IF('Below Grade Walls & Slabs'!C125="","",'Below Grade Walls & Slabs'!C125) ->  | D203: Custom | G203: ='Below Grade Walls & Slabs'!$E125 -> 0 | H203: ='Below Grade Walls & Slabs'!$F125 -> 0
A204: ='Below Grade Walls & Slabs'!A126 -> 118 | C204: =IF('Below Grade Walls & Slabs'!C126="","",'Below Grade Walls & Slabs'!C126) ->  | D204: Custom | G204: ='Below Grade Walls & Slabs'!$E126 -> 0 | H204: ='Below Grade Walls & Slabs'!$F126 -> 0
A205: ='Below Grade Walls & Slabs'!A127 -> 119 | C205: =IF('Below Grade Walls & Slabs'!C127="","",'Below Grade Walls & Slabs'!C127) ->  | D205: Custom | G205: ='Below Grade Walls & Slabs'!$E127 -> 0 | H205: ='Below Grade Walls & Slabs'!$F127 -> 0
C206: ======================

Sheet Table 406.2 (WSEC 2015) (hidden)
A1: SECTION R406
A3: R406.1 Scope. This section establishes options for additional criteria to be met for one- and two-family dwellings and townhouses, as defined in Section 101.2 of the International Residential Code to demonstrate compliance with this code.
A5: R406.2 Additional energy efficiency requirements (Mandatory). Each dwelling unit in a residential building shall comply with sufficient options from Table R406.2 so as to achieve the following minimum number of credits:
A6: 1. Small Dwelling Unit: | B6: 1.5 credits
A7: Dwelling units less than 1500 square feet in conditioned floor area with less than 300 square feet of fenestration area.
A8: Additions to existing building greater than 500 square feet of heated floor area but less than 1500 square feet.
A9: 2. Medium Dwelling Unit: | B9: 3.5 credits
A10: All dwelling units that are not included in #1 or #3.
A11: Exception: Dwelling units serving R-2 occupancies shall require 2.5 credits.
A12: 3. Large Dwelling Unit: | B12: 4.5 credits
A13: Dwelling units exceeding 5000 square feet of conditioned floor area.
A14: Exception: Dwelling units serving R-2 occupancies shall require 2.5 credits.
A15: 4. Additions less than 500 square feet: | B15: 0.5 credits
A17: The drawings included with the building permit application shall identify which options have been selected and the point value of each option, regardless of whether separate mechanical, plumbing, electrical, or other permits are utilized for the project.
A18: 1a | B18: EFFICIENT BUILDING ENVELOPE 1a: | C18: 0.5
B19: Prescriptive compliance is based on Table R402.1.1 with the following modifications:
B20: Vertical fenestration U = 0.28
B21: Floor R-38
B22: Slab on grade R-10 perimeter and under entire slab
B23: Below grade slab R-10 perimeter and under entire slab
B24: or
B25: Compliance based on Section R402.1.4: Reduce the Total UA by 5%.
A26: 1b | B26: EFFICIENT BUILDING ENVELOPE 1b: | C26: 1
B27: Prescriptive compliance is based on Table R402.1.1 with the following modifications:
B28: Vertical fenestration U = 0.25
B29: Wall R-21 plus R-4
B30: Floor R-38
B31: Basement wall R-21 int plus R-5 ci
B32: Slab on grade R-10 perimeter and under entire slab
B33: Below grade slab R-10 perimeter and under entire slab
B34: or
B35: Compliance based on Section R402.1.4: Reduce the Total UA by 15%.
A36: 1c | B36: EFFICIENT BUILDING ENVELOPE 1c: | C36: 2
B37: Prescriptive compliance is based on Table R402.1.1 with the following modifications: Vertical fenestration U = 0.22
B38: Ceiling and single-rafter or joist-vaulted R-49 advanced
B39: Wood frame wall R-21 int plus R-12 ci
B40: Floor R-38
B41: Basement wall R-21 int plus R-12 ci
B42: Slab on grade R-10 perimeter and under entire slab
B43: Below grade slab R-10 perimeter and under entire slab
B44: or
B45: Compliance based on Section R402.1.4: Reduce the Total UA by 30%.
A46: 1da | B46: EFFICIENT BUILDING ENVELOPE 1d: | C46: 0.5
B47: Prescriptive compliance is based on Table R402.1.1 with the following modifications:
B48: Vertical fenestration U = 0.24
A49: 2a | B49: AIR LEAKAGE CONTROL AND EFFICIENT VENTILATION 2a: | C49: 0.5
B50: Compliance based on R402.4.1.2: Reduce the tested air leakage to 3.0 air changes per hour maximum
B51: and
B52: All whole house ventilation requirements as determined by Section M1507.3 of the International Residential Code shall be met with a high efficiency fan (maximum 0.35 watts/cfm), not interlocked with the furnace fan. Ventilation systems using a furnace including an ECM motor are allowed, provided that they are controlled to operate at low speed in ventilation only mode.
B53: To qualify to claim this credit, the building permit drawings shall specify the option being selected and shall specify the maximum tested building air leakage and shall show the qualifying ventilation system.
A54: 2b | B54: AIR LEAKAGE CONTROL AND EFFICIENT VENTILATION 2b: | C54: 1
B55: Compliance based on Section R402.4.1.2: Reduce the tested air leakage to 2.0 air changes per hour maximum
B56: and
B57: All whole house ventilation requirements as determined by Section M1507.3 of the International Residential Code shall be met with a heat recovery ventilation system with minimum sensible heat recovery efficiency of 0.70.
B58: To qualify to claim this credit, the building permit drawings shall specify the option being selected and shall specify the maximum tested building air leakage and shall show the heat recovery ventilation system.
A59: 2c | B59: AIR LEAKAGE CONTROL AND EFFICIENT VENTILATION 2c: | C59: 1.5
B60: Compliance based on Section R402.4.1.2: Reduce the tested air leakage to 1.5 air changes per hour maximum
B61: and
B62: All whole house ventilation requirements as determined by Section M1507.3 of the International Residential Code shall be met with a heat recovery ventilation system with minimum sensible heat recovery efficiency of 0.85.
B63: To qualify to claim this credit, the building permit drawings shall specify the option being selected and shall specify the maximum tested building air leakage and shall show the heat recovery ventilation system.
A64: 3ab | B64: HIGH EFFICIENCY HVAC EQUIPMENT 3a: | C64: 1
B65: Gas, propane or oil-fired furnace with minimum AFUE of 94%, or
B66: Gas, propane or oiled-fired boiler with minimum AFUE of 92%
B67: To qualify to claim this credit, the building permit drawings shall specify the option being selected and shall specify the heating equipment type and the minimum equipment efficiency.
A68: 3bb | B68: HIGH EFFICIENCY HVAC EQUIPMENT 3b: | C68: 1
B69: Air-source heat pump with minimum HSPF of 9.0
B70: To qualify to claim this credit, the building permit drawings shall specify the option being selected and shall specify the heating equipment type and the minimum equipment efficiency.
A71: 3cb | B71: HIGH EFFICIENCY HVAC EQUIPMENT 3c: | C71: 1.5
B72: Closed-loop ground source heat pump; with a minimum COP of 3.3
B73: or
B74: Open loop water source heat pump with a maximum pumping hydraulic head of 150 feet and minimum COP of 3.6
B75: To qualify to claim this credit, the building permit drawings shall specify the option being selected and shall specify the heating equipment type and the minimum equipment efficiency.
A76: 3db | B76: HIGH EFFICIENCY HVAC EQUIPMENT 3d: | C76: 1
B77: Ductless Split System Heat Pumps, Zonal Control: In homes where the primary space heating system is zonal electric heating, a ductless heat pump system shall be installed and provide heating to the largest zone of the housing unit.
B78: To qualify to claim this credit, the building permit drawings shall specify the option being selected and shall specify the heating equipment type and the minimum equipment efficiency.
A79: 4 | B79: HIGH EFFICIENCY HVAC DISTRIBUTION SYSTEM: | C79: 1
B80: All heating and cooling system components installed inside the conditioned space. This includes all equipment and distribution system components such as forced air ducts, hydronic piping, hydronic floor heating loop, convectors and radiators. All combustion equipment shall be direct vent or sealed combustion.
B81: For forced air ducts: A maximum of 10 linear feet of return ducts and 5 linear feet of supply ducts may be located outside the conditioned space. All metallic ducts located outside the conditioned space must have both transverse and longitudinal joints sealed with mastic. If flex ducts are used, they cannot contain splices. Flex duct connections must be made with nylon straps and installed using a plastic strapping tensioning tool. Ducts located outside the conditioned space must be insulated to a minimum of R-8.
B82: Locating system components in conditioned crawl spaces is not permitted under this option.
B83: Electric resistance heat and ductless heat pumps are not permitted under this option.
B84: Direct combustion heating equipment with AFUE less than 80% is not permitted under this option.
B85: To qualify to claim this credit, the building permit drawings shall specify the option being selected and shall specify the heating equipment type and shall show the location of the heating and cooling equipment and all the ductwork.
A86: 5a | B86: EFFICIENT WATER HEATING 5a: | C86: 0.5
B87: All showerhead and kitchen sink faucets installed in the house shall be rated at 1.75 GPM or less. All other lavatory faucets shall be rated at 1.0 GPM or less.c
B88: To qualify to claim this credit, the building permit drawings shall specify the option being selected and shall specify the maximum flow rates for all showerheads, kitchen sink faucets, and other lavatory faucets.
A89: 5b | B89: EFFICIENT WATER HEATING 5b: | C89: 1
B90: Water heating system shall include one of the following:
B91: Gas, propane or oil water heater with a minimum EF of 0.74
B92: or
B93: Water heater heated by ground source heat pump meeting the requirements of Option 3c.
B94: or
B95: For R-2 occupancy, a central heat pump water heater with an EF greater than 2.0 that would supply DHW to all the units through a central water loop insulated with R-8 minimum pipe insulation.
B96: To qualify to claim this credit, the building permit drawings shall specify the option being selected and shall specify the water heater equipment type and the minimum equipment efficiency.
A97: 5c | B97: EFFICIENT WATER HEATING 5c: | C97: 1.5
B98: Water heating system shall include one of the following:
B99: Gas, propane or oil water heater with a minimum EF of 0.91
B100: or
B101: Solar water heating supplementing a minimum standard water heater. Solar water heating will provide a rated minimum savings of 85 therms or 2000 kWh based on the Solar Rating and Certification Corporation (SRCC) Annual Performance of OG-300 Certified Solar Water Heating Systems.
B102: or
B103: Electric heat pump water heater with a minimum EF of 2.0 and meeting the standards of NEEA's Northern Climate Specifications for Heat Pump Water Heaters.
B104: To qualify to claim this credit, the building permit drawings shall specify the option being selected and shall specify the water heater equipment type and the minimum equipment efficiency and, for solar water heating systems, the calculation of the minimum energy savings.
A105: 5d | B105: EFFICIENT WATER HEATING 5d: | C105: 0.5
B106: A drain water heat recovery unit(s) shall be installed, which captures waste water heat from all the showers, and has a minimum efficiency of 40% if installed for equal flow or a minimum efficiency of 52% if installed for unequal flow. Such units shall be rated in accordance with CSA B55.1 and be so labeled.
B107: To qualify to claim this credit, the building permit drawings shall include a plumbing diagram that specifies the drain water heat recovery units and the plumbing layout needed to install it and labels or other documentation shall be provided that demonstrates that the unit complies with the standard.
A108: 6 | B108: RENEWABLE ELECTRIC ENERGY: | C108: 0.5
B109: For each 1200 kWh of electrical generation per housing unit provided annually by on-site wind or solar equipment a 0.5 credit shall be allowed, up to 3 credits. Generation shall be calculated as follows:
B110: For solar electric systems, the design shall be demonstrated to meet this requirement using the National Renewable Energy Laboratory calculator PVWATTs. Documentation noting solar access shall be included on the plans.
B111: For wind generation projects designs shall document annual power generation based on the following factors:
B112: The wind turbine power curve; average annual wind speed at the site; frequency distribution of the wind speed at the site and height of the tower.
B113: To qualify to claim this credit, the building permit drawings shall specify the option being selected and shall show the photovoltaic or wind turbine equipment type, provide documentation of solar and wind access, and include a calculation of the minimum annual energy power production.
A114: a. | B114: Projects using this option may not use Option 1a, 1b or 1c.
A115: b. | B115: Projects may only include credit from one space heating option, 3a, 3b, 3c or 3d. When a housing unit has two pieces of equipment (i.e., two furnaces) both must meet the standard to receive the credit.
A116: c. | B116: Plumbing Fixtures Flow Ratings. Low flow plumbing fixtures (water closets and urinals) and fittings (faucets and showerheads) shall comply with the following requirements:
B117: 1. Residential bathroom lavatory sink faucets: Maximum flow rate - 3.8 L/min (1.0 gal/min) when tested in accordance with ASME A112.18.1/CSA B125.1.
B118: 2. Residential kitchen faucets: Maximum flow rate - 6.6 L/min (1.75 gal/min) when tested in accordance with ASME A112.18.1/CSA B125.1.
B119: 3. Residential showerheads: Maximum flow rate - 6.6 L/min (1.75 gal/min) when tested in accordance with ASME A112.18.1/CSA B125.1.

Sheet Weather (hidden)
A1: WSU Code Compliance Calculator - WSEC 2015 &2018 | F1: (C) 2020
A2: Weather Database - Heating Design Temperature by City, Washington State
A3: Index | B3: Location | C3: Heating | D3: Design
C4: Design | D4: Temp
C5: Temp | D5: Difference
A6: 1
A7: 2 | B7: Aberdeen 20 NNE | C7: 25 | D7: =70-C7 -> 45
A8: 3 | B8: Anacortes | C8: 24 | D8: =70-C8 -> 46
A9: 4 | B9: Anatone | C9: -4 | D9: 74
A10: 5 | B10: Appleton | C10: 11 | D10: 59
A11: 6 | B11: Auburn | C11: 25 | D11: 45
A12: 7 | B12: Battleground | C12: 19 | D12: 51
A13: 8 | B13: Bellevue | C13: 24 | D13: 46
A14: 9 | B14: Bellingham 2N | C14: 19 | D14: 51
A15: 10 | B15: Benton City 2 NW | C15: 11 | D15: 59
A16: 11 | B16: Bickleton | C16: 4 | D16: 66
A17: 12 | B17: Blaine | C17: 17 | D17: 53
A18: 13 | B18: Bothell 2 N | C18: 17 | D18: 53
A19: 14 | B19: Bremerton | C19: 29 | D19: 41
A20: 15 | B20: Brier | C20: 24 | D20: 46
A21: 16 | B21: Buckley 1 NE | C21: 26 | D21: 44
A22: 17 | B22: Bumping Lake | C22: -5 | D22: 75
A23: 18 | B23: Burlington | C23: 19 | D23: 51
A24: 19 | B24: Camas | C24: 21 | D24: 49
A25: 20 | B25: Castle Rock | C25: 23 | D25: 47
A26: 21 | B26: Cedar Lake | C26: 20 | D26: 50
A27: 22 | B27: Centralia | C27: 21 | D27: 49
A28: 23 | B28: Central Park | C28: 27 | D28: 43
A29: 24 | B29: Chehalis | C29: 21 | D29: 49
A30: 25 | B30: Chelan | C30: 10 | D30: 60
A31: 26 | B31: Cheney | C31: 4 | D31: 66
A32: 27 | B32: Chesaw | C32: -11 | D32: 81
A33: 28 | B33: Chewalah 2 S | C33: -9 | D33: 79
A34: 29 | B34: Chief Joseph Dam | C34: 6 | D34: 64
A35: 30 | B35: Clallam Bay 1 NNE | C35: 28 | D35: 42
A36: 31 | B36: Clarkston | C36: 10 | D36: 60
A37: 32 | B37: Clearbrook | C37: 19 | D37: 51
A38: 33 | B38: Clearwater | C38: 26 | D38: 44
A39: 34 | B39: Cle Elum | C39: 1 | D39: 69
A40: 35 | B40: Clyde Hill | C40: 24 | D40: 46
A41: 36 | B41: Colfax 1 NW | C41: 2 | D41: 68
A42: 37 | B42: College Place | C42: 6 | D42: 64
A43: 38 | B43: Colville AP | C43: -2 | D43: 72
A44: 39 | B44: Conconully | C44: -7 | D44: 77
A45: 40 | B45: Concrete | C45: 19 | D45: 51
A46: 41 | B46: Connell 4 NNW | C46: 6 | D46: 64
A47: 42 | B47: Cougar 5 E | C47: 25 | D47: 45
A48: 43 | B48: Coulee Dam 1 SW | C48: 9 | D48: 61
A49: 44 | B49: Coupeville 1 S | C49: 21 | D49: 49
A50: 45 | B50: Cushman Dam | C50: 22 | D50: 48
A51: 46 | B51: Dallesport AP | C51: 14 | D51: 56
A52: 47 | B52: Darrington RS | C52: 13 | D52: 57
A53: 48 | B53: Davenport | C53: 5 | D53: 65
A54: 49 | B54: Dayton 1 WSW | C54: 5 | D54: 65
A55: 50 | B55: Deer Park 2 E | C55: -5 | D55: 75
A56: 51 | B56: Des Moines | C56: 25 | D56: 45
A57: 52 | B57: Diablo Dam | C57: 15 | D57: 55
A58: 53 | B58: Dishman | C58: 9 | D58: 61
A59: 54 | B59: East Bremerton | C59: 29 | D59: 41
A60: 55 | B60: Edmonds | C60: 24 | D60: 46
A61: 56 | B61: Electron Headwks | C61: 16 | D61: 54
A62: 57 | B62: Ellensburg AP | C62: 2 | D62: 68
A63: 58 | B63: Elma | C63: 24 | D63: 46
A64: 59 | B64: Eltopia 6 W | C64: 9 | D64: 61
A65: 60 | B65: Elwha RS | C65: 24 | D65: 46
A66: 61 | B66: Enumclaw | C66: 26 | D66: 44
A67: 62 | B67: Ephrata AP | C67: 7 | D67: 63
A68: 63 | B68: Everett JC | C68: 23 | D68: 47
A69: 64 | B69: Everett Paine AFB | C69: 21 | D69: 49
A70: 65 | B70: Fircrest | C70: 29 | D70: 41
A71: 66 | B71: Forks I E | C71: 23 | D71: 47
A72: 67 | B72: Fort Lewis | C72: 24 | D72: =70-C72 -> 46
A73: 68 | B73: Fruitvale | C73: 1.1 | D73: 68.9
A74: 69 | B74: Glacier RS | C74: 13 | D74: 57
A75: 70 | B75: Glenoma (Kosmos) | C75: 18 | D75: 52
A76: 71 | B76: Goldendale | C76: 7 | D76: 63
A77: 72 | B77: Grandview | C77: 12 | D77: 58
A78: 73 | B78: Grapeview | C78: 30 | D78: 40
A79: 74 | B79: Grayland 2 S | C79: 28 | D79: 42
A80: 75 | B80: Grays River Hatchery | C80: 24 | D80: 46
A81: 76 | B81: Greenwater | C81: 1.4 | D81: 68.6
A82: 77 | B82: Grotto | C82: 21 | D82: 49
A83: 78 | B83: Harrington 2 S | C83: 3 | D83: 67
A84: 79 | B84: Hartline | C84: 7 | D84: 63
A85: 80 | B85: Hatton 8 E | C85: 1 | D85: 69
A86: 81 | B86: Holden Village | C86: 4 | D86: 66
A87: 82 | B87: Hoquiam AP | C87: 26 | D87: 44
A88: 83 | B88: Ice Harbor Dam | C88: 17 | D88: 53
A89: 84 | B89: Inchelium 2 NW | C89: 0 | D89: 70
A90: 85 | B90: Issaquah | C90: 23 | D90: 47
A91: 86 | B91: John Day Dam | C91: 19 | D91: 51
A92: 87 | B92: Kelso AP | C92: 24 | D92: 46
A93: 88 | B93: Kennewick 10 SW | C93: 13 | D93: 57
A94: 89 | B94: Kent | C94: 21 | D94: 49
A95: 90 | B95: Kid Valley | C95: 20 | D95: 50
A96: 91 | B96: Kirkland | C96: 17 | D96: 53
A97: 92 | B97: Lacey | C97: 17 | D97: 53
A98: 93 | B98: Lacrosse 3 ESE | C98: -3 | D98: 73
A99: 94 | B99: La Grande | C99: 23 | D99: 47
A100: 95 | B100: Lake Cle Elum | C100: -4 | D100: 74
A101: 96 | B101: Lake Forest Park | C101: 20 | D101: 50
A102: 97 | B102: Lake Kachess | C102: -2 | D102: 72
A103: 98 | B103: Lake Keechelus | C103: 0 | D103: 70
A104: 99 | B104: Lakewood Center | C104: 23 | D104: 47
A105: 100 | B105: Landsburg | C105: 18 | D105: 52
A106: 101 | B106: Larson AFB | C106: 6 | D106: 64
A107: 102 | B107: Laurier | C107: -8 | D107: 78
A108: 103 | B108: Leavenworth | C108: -3 | D108: 73
A109: 104 | B109: Lemanasky Lake | C109: -7 | D109: 77
A110: 105 | B110: Lind 3 NE | C110: 6 | D110: 64
A111: 106 | B111: Linwood | C111: 10 | D111: 60
A112: 107 | B112: Little Goose Dam | C112: 22 | D112: 48
A113: 108 | B113: Long Beach 3 NNE | C113: 25 | D113: 45
A114: 109 | B114: Longview | C114: 24 | D114: 46
A115: 110 | B115: Lower Granite Dam | C115: 14 | D115: 56
A116: 111 | B116: Lower Monument Dam | C116: 18 | D116: 52
A117: 112 | B117: Lynden | C117: 18 | D117: 52
A118: 113 | B118: Lynnwood | C118: 24 | D118: 46
A119: 114 | B119: Maloft | C119: 4 | D119: 66
A120: 115 | B120: Marietta 3 NNW | C120: 18 | D120: 52
A121: 116 | B121: Marysville | C121: 23 | D121: 47
A122: 117 | B122: McMillin Res. | C122: 21 | D122: 49
A123: 118 | B123: McNary Dam | C123: 11 | D123: 59
A124: 119 | B124: Medical Lake | C124: 4 | D124: 66
A125: 120 | B125: Medina | C125: 24 | D125: 46
A126: 121 | B126: Mercer Island | C126: 25 | D126: 45
A127: 122 | B127: Metaline Falls | C127: -1 | D127: 71
A128: 123 | B128: Methow 2 W | C128: 1 | D128: 69
A129: 124 | B129: Mountlake Terrace | C129: 22 | D129: 48
A130: 125 | B130: Mt. Spokane Summit | C130: -2 | D130: 72
A131: 126 | B131: Mount Vernon 3 WNW | C131: 20 | D131: 50
A132: 127 | B132: Moxee City 10 E | C132: 8 | D132: 62
A133: 128 | B133: Mud Mtn. Dam | C133: 23 | D133: 47
A134: 129 | B134: Nespelem 2 S | C134: -4 | D134: 74
A135: 130 | B135: Newhalem | C135: 19 | D135: 51
A136: 131 | B136: Newport | C136: -5 | D136: =70-C136 -> 75
A137: 132 | B137: Normandy Park | C137: 24 | D137: 46
A138: 133 | B138: Northport | C138: 2 | D138: 68
A139: 134 | B139: Oak Harbor | C139: 16 | D139: 54
A140: 135 | B140: Oakville | C140: 20 | D140: 50
A141: 136 | B141: Odessa | C141: 7 | D141: 63
A142: 137 | B142: Olga 2 SE | C142: 24 | D142: 46
A143: 138 | B143: Olympia, AP. | C143: 17 | D143: 53
A144: 139 | B144: Omak 2 NW | C144: 3 | D144: 67
A145: 140 | B145: Opportunity | C145: 8 | D145: 62
A146: 141 | B146: Oroville | C146: 5 | D146: 65
A147: 142 | B147: Othello | C147: 9 | D147: 61
A148: 143 | B148: Packwood | C148: 16 | D148: 54
A149: 144 | B149: Palmer 3 SE | C149: 22 | D149: 48
A150: 145 | B150: Parkland | C150: 20 | D150: 50
A151: 146 | B151: Pasco | C151: 13 | D151: 57
A152: 147 | B152: Plain | C152: -3 | D152: 73
A153: 148 | B153: Pleasant View | C153: 16 | D153: 54
A154: 149 | B154: Pt. Grenville | C154: 27 | D154: 43
A155: 150 | B155: Pomeroy | C155: 3 | D155: 67
A156: 151 | B156: Port Angeles | C156: 28 | D156: 42
A157: 152 | B157: Port Orchard | C157: 29 | D157: 41
A158: 153 | B158: Pon Townsend | C158: 25 | D158: 45
A159: 154 | B159: Priest Rapids Dam | C159: 14 | D159: 56
A160: 155 | B160: Prosser | C160: 12 | D160: 58
A161: 156 | B161: Pullman Exp. Sta. | C161: 1 | D161: 69
A162: 157 | B162: Puyallup | C162: 19 | D162: 51
A163: 158 | B163: Quilcene 2 SW | C163: 23 | D163: 47
A164: 159 | B164: Quillayute AP | C164: 23 | D164: 47
A165: 160 | B165: Quinault RS | C165: 25 | D165: 45
A166: 161 | B166: Quincy 1 NE | C166: 4 | D166: 66
A167: 162 | B167: Rainier, Longmire | C167: 15 | D167: 55
A168: 163 | B168: Paradise RS | C168: 8 | D168: 62
A169: 164 | B169: Raymond | C169: 28 | D169: 42
A170: 165 | B170: Redmond | C170: 17 | D170: 53
A171: 166 | B171: Renton | C171: 24 | D171: 46
A172: 167 | B172: Republic | C172: -9 | D172: 79
A173: 168 | B173: Richland | C173: 11 | D173: 59
A174: 169 | B174: Rimrock Tieton Dam | C174: 4 | D174: 66
A175: 170 | B175: Ritzville | C175: 6 | D175: 64
A176: 171 | B176: Rosalia | C176: 6 | D176: 64
A177: 172 | B177: Ross Dam | C177: 14 | D177: 56
A178: 173 | B178: St. John | C178: 15 | D178: 55
A179: 174 | B179: Sappho 8 E | C179: 23 | D179: 47
A180: 175 | B180: Satus Pass | C180: 10 | D180: 60
A181: 176 | B181: Seattle: Sea-Tac AP | C181: 24 | D181: 46
A182: 177 | B182: Sedro Woolley 1 E | C182: 19 | D182: 51
A183: 178 | B183: Selah | C183: 11 | D183: 59
A184: 179 | B184: Sequim | C184: 23 | D184: 47
A185: 180 | B185: Shelton | C185: 23 | D185: 47
A186: 181 | B186: Shoultes | C186: 23 | D186: 47
A187: 182 | B187: Skamania Fish Hatch. | C187: 24 | D187: 46
A188: 183 | B188: Smyrna | C188: 8 | D188: 62
A189: 184 | B189: Snohomish | C189: 21 | D189: 49
A190: 185 | B190: Snoqualmie Falls | C190: 22 | D190: 48
A191: 186 | B191: Snoqualmie Pass | C191: 6 | D191: 64
A192: 187 | B192: South Broadway | C192: 11 | D192: 59
A193: 188 | B193: So. Olympic Tree Farm | C193: 24 | D193: 46
A194: 189 | B194: Spanaway | C194: 20 | D194: 50
A195: 190 | B195: Spokane AP | C195: 4 | D195: 66
A196: 191 | B196: Spokane CO | C196: 10 | D196: 60
A197: 192 | B197: Spokane Fairchild AFB | C197: 4 | D197: 66
A198: 193 | B198: Sprague | C198: 4 | D198: 66
A199: 194 | B199: Stampede Pass | C199: 7 | D199: 63
A200: 195 | B200: Startup 1 E | C200: 20 | D200: =70-C200 -> 50
... 40 more rows

Sheet Prototypes (hidden)
A2: Prototypes
A3: id_prototypes | B3: prototype | C3: Tons | D3: Furnsize | E3: Supply Duct location | F3: Supply Duct Area | G3: Return Duct location | H3: Return Duct Area | I3: Afloorcon | J3: Volume | K3: Afloorext | L3: Aextwall | M3: Aceiling | N3: AwinN | O3: AwinE | P3: AwinS | Q3: AwinW | R3: Adoor | S3: Foundtype | T3: Afootprint | U3: Pfootprint | V3: HeightAG | W3: HeightBG | X3: StackHeight | Y3: FanCFM | Z3: achattic | AA3: achcrawl | AB3: WH | AC3: WH_size | AD3: HPWH_performance | AE3: ducted | AF3: WH_fan | AG3: WH_loc | AH3: InteractionFactor | AI3: prototype_desc | AJ3: btype | AK3: occupants_per_unit | AL3: occupants | AM3: numunits | AN3: height_per_floor | AO3: floors_per_building | AP3: total_height | AQ3: baseductsinside | AR3: bedrooms_per_unit | AS3: reqvent | AT3: glazing_pct_hfa | AU3: perim_width | AV3: perim_length | AW3: seemtemplate_sort | AX3: official_rtf_prototype | AY3: sqft_per_unit | AZ3: sizecat | BA3: fan_cfm_per_unit | BB3: wh_size_per_unit | BC3: floor_ins_area | BD3: wall_ins_area | BE3: bsmtwall_ins_area | BF3: window_area | BG3: slab_area | BH3: wall_to_floor_area | BI3: duct_area
A4: 1 | B4: c1344 | C4: 2.5 | D4: 17.58427263 | E4: Crawl | F4: 240 | G4: Attic | H4: 50 | I4: 1344 | J4: 10752 | K4: 0 | L4: 1184 | M4: 1344 | N4: 43.68 | O4: 43.68 | P4: 43.68 | Q4: 43.68 | R4: 40 | S4: 1 | T4: 1344 | U4: 148 | V4: 1 | W4: 2 | X4: 8 | Y4: 50 | Z4: 4.5 | AA4: 4.5 | AB4: 1 | AC4: 50 | AD4: 4 | AE4: 0 | AF4: 0 | AG4: 1 | AH4: 0.65 | AI4: sf home | AJ4: sf | AK4: 2.39184953 | AL4: 2.39184953 | AM4: 1 | AN4: 8 | AO4: 1 | AP4: 8 | AQ4: FALSE | AR4: 3 | AS4: 70.32 | AT4: 0.13 | AU4: 32 | AV4: 42 | AW4: 1 | AX4: TRUE | AY4: 1344 | AZ4: 1500 | BA4: 50 | BB4: 50 | BC4: 1344 | BD4: 969.28 | BE4: 0 | BF4: 174.72 | BG4: 0 | BH4: 0.880952381 | BI4: 290
A5: 2 | B5: s1344 | C5: 2.5 | D5: 17.58427263 | E5: Attic | F5: 240 | G5: Attic | H5: 50 | I5: 1344 | J5: 10752 | K5: 0 | L5: 1184 | M5: 1344 | N5: 43.68 | O5: 43.68 | P5: 43.68 | Q5: 43.68 | R5: 40 | S5: 2 | T5: 1344 | U5: 148 | V5: 0 | W5: 0 | X5: 8 | Y5: 50 | Z5: 4.5 | AA5: 4.5 | AB5: 1 | AC5: 50 | AD5: 4 | AE5: 0 | AF5: 0 | AG5: 1 | AH5: 0.65 | AI5: sf home | AJ5: sf | AK5: 2.39184953 | AL5: 2.39184953 | AM5: 1 | AN5: 8 | AO5: 1 | AP5: 8 | AQ5: FALSE | AR5: 3 | AS5: 70.32 | AT5: 0.13 | AU5: 32 | AV5: 42 | AW5: 1 | AX5: TRUE | AY5: 1344 | AZ5: 1500 | BA5: 50 | BB5: 50 | BC5: 0 | BD5: 969.28 | BE5: 0 | BF5: 174.72 | BG5: 1344 | BH5: 0.880952381 | BI5: 290
A6: 3 | B6: c2200 | C6: 4 | D6: 23.44569684 | E6: Crawl | F6: 300 | G6: Attic | H6: 80 | I6: 2200 | J6: 18700 | K6: 200 | L6: 2210 | M6: 1784 | N6: 91.3 | O6: 91.3 | P6: 91.3 | Q6: 91.3 | R6: 40 | S6: 1 | T6: 1584 | U6: 160 | V6: 1 | W6: 2 | X6: 17 | Y6: 50 | Z6: 4.5 | AA6: 4.5 | AB6: 1 | AC6: 50 | AD6: 4 | AE6: 0 | AF6: 0 | AG6: 1 | AH6: 0.65 | AI6: sf home | AJ6: sf | AK6: 2.794416244 | AL6: 2.794416244 | AM6: 1 | AN6: 8.5 | AO6: 2 | AP6: 17 | AQ6: FALSE | AR6: 4 | AS6: 103.5 | AT6: 0.166 | AU6: 36 | AV6: 44 | AW6: 2 | AX6: TRUE | AY6: 2200 | AZ6: 5000 | BA6: 50 | BB6: 50 | BC6: 1784 | BD6: 1804.8 | BE6: 0 | BF6: 365.2 | BG6: 0 | BH6: 1.004545455 | BI6: 380
A7: 4 | B7: s2200 | C7: 4 | D7: 23.44569684 | E7: Attic | F7: 300 | G7: Attic | H7: 80 | I7: 2200 | J7: 18700 | K7: 200 | L7: 2210 | M7: 1784 | N7: 91.3 | O7: 91.3 | P7: 91.3 | Q7: 91.3 | R7: 40 | S7: 2 | T7: 1584 | U7: 160 | V7: 0 | W7: 0 | X7: 17 | Y7: 50 | Z7: 4.5 | AA7: 4.5 | AB7: 1 | AC7: 50 | AD7: 4 | AE7: 0 | AF7: 0 | AG7: 1 | AH7: 0.65 | AI7: sf home | AJ7: sf | AK7: 2.794416244 | AL7: 2.794416244 | AM7: 1 | AN7: 8.5 | AO7: 2 | AP7: 17 | AQ7: FALSE | AR7: 4 | AS7: 103.5 | AT7: 0.166 | AU7: 36 | AV7: 44 | AW7: 2 | AX7: TRUE | AY7: 2200 | AZ7: 5000 | BA7: 50 | BB7: 50 | BC7: 200 | BD7: 1804.8 | BE7: 0 | BF7: 365.2 | BG7: 1584 | BH7: 1.004545455 | BI7: 380
A8: 5 | B8: b2688 | C8: 3.5 | D8: 17.58427263 | E8: In | F8: 0 | G8: Attic | H8: 40 | I8: 2688 | J8: 22848 | K8: 0 | L8: 1480 | M8: 1344 | N8: 94.08 | O8: 94.08 | P8: 94.08 | Q8: 94.08 | R8: 40 | S8: 4 | T8: 1344 | U8: 148 | V8: 0.5 | W8: 6.5 | X8: 10 | Y8: 50 | Z8: 4.5 | AA8: 4.5 | AB8: 1 | AC8: 50 | AD8: 4 | AE8: 0 | AF8: 0 | AG8: 4 | AH8: 0.65 | AI8: sf home | AJ8: sf | AK8: 2.946236559 | AL8: 2.946236559 | AM8: 1 | AN8: 10 | AO8: 2 | AP8: 20 | AQ8: FALSE | AR8: 4 | AS8: 118.14 | AT8: 0.14 | AU8: 32 | AV8: 42 | AW8: 3 | AX8: TRUE | AY8: 2688 | AZ8: 5000 | BA8: 50 | BB8: 50 | BC8: 0 | BD8: 1063.68 | BE8: 1036 | BF8: 376.32 | BG8: 0 | BH8: 0.9360119048 | BI8: 40
A9: 6 | B9: b5000 | C9: 6 | D9: 35.16854525 | E9: In | F9: 0 | G9: Attic | H9: 60 | I9: 5000 | J9: 40100 | K9: 200 | L9: 2788 | M9: 1800 | N9: 187.5 | O9: 187.5 | P9: 187.5 | Q9: 187.5 | R9: 40 | S9: 4 | T9: 1600 | U9: 164 | V9: 0.5 | W9: 6.5 | X9: 17 | Y9: 50 | Z9: 4.5 | AA9: 4.5 | AB9: 1 | AC9: 50 | AD9: 4 | AE9: 0 | AF9: 0 | AG9: 4 | AH9: 0.65 | AI9: sf home | AJ9: sf | AK9: 3.935566237 | AL9: 3.935566237 | AM9: 1 | AN9: 10 | AO9: 3 | AP9: 30 | AQ9: FALSE | AR9: 4 | AS9: 187.5 | AT9: 0.15 | AU9: 32 | AV9: 50 | AX9: FALSE | AY9: 5000 | AZ9: 9999 | BA9: 50 | BB9: 50 | BC9: 200 | BD9: 1998 | BE9: 1148 | BF9: 750 | BG9: 0 | BH9: 0.7872 | BI9: 60
A10: 7 | B10: c2460 | C10: 6 | D10: 23.44569684 | E10: In | F10: 280 | G10: In | H10: 70 | I10: 2460 | J10: 20910 | K10: 0 | L10: 2193 | M10: 820 | N10: 92.25 | O10: 92.25 | P10: 92.25 | Q10: 92.25 | R10: 60 | S10: 1 | T10: 821.5 | U10: 86 | V10: 1 | W10: 2 | X10: 25.5 | Y10: 150 | Z10: 4.5 | AA10: 4.5 | AB10: 1 | AC10: 150 | AD10: 4 | AE10: 0 | AF10: 0 | AG10: 1 | AH10: 0.65 | AI10: garden style | AJ10: mf | AK10: 2.25 | AL10: 6.75 | AM10: 3 | AN10: 8.5 | AO10: 3 | AP10: 25.5 | AQ10: TRUE | AR10: 2 | AS10: 141.3 | AT10: 0.15 | AU10: 26.5 | AV10: 31 | AX10: FALSE | AY10: 820 | AZ10: 1500 | BA10: 50 | BB10: 50 | BC10: 821.5 | BD10: 1764 | BE10: 0 | BF10: 369 | BG10: 0 | BH10: 0.8914634146 | BI10: 350
A12: vvvvvvvv Not used in 2018 WSREC Analysis | I12: Not used in 2018 WSREC Analysis | M12: Not used in 2018 WSREC Analysis | Q12: Not used in 2018 WSREC Analysis | U12: Not used in 2018 WSREC Analysis | Y12: Not used in 2018 WSREC Analysis | AC12: Not used in 2018 WSREC Analysis
A13: 10 | B13: c1500 | C13: 6 | D13: 35.16854525 | E13: Crawl | F13: 100 | G13: Attic | H13: 50 | I13: 1500 | J13: 14250 | K13: 0 | L13: 1259 | M13: 500 | N13: 48.75 | O13: 48.75 | P13: 48.75 | Q13: 48.75 | R13: 40 | S13: 1 | T13: 500 | U13: 90 | V13: 1 | W13: 2 | X13: 28.5 | Y13: 50 | Z13: 4.5 | AA13: 4.5 | AB13: 1 | AC13: 50 | AD13: 4 | AE13: 0 | AF13: 0 | AG13: 1 | AH13: 0.65 | AI13: townhome | AJ13: sf | AK13: 1.69 | AL13: 1.69 | AM13: 1 | AN13: 9.5 | AO13: 3 | AP13: 28.5 | AQ13: FALSE | AR13: 3 | AS13: 75 | AT13: 0.13 | AU13: 20 | AV13: 25 | AW13: 4 | AX13: TRUE | AY13: 1500 | AZ13: 5000 | BA13: 50 | BB13: 50 | BC13: 500 | BD13: 1024 | BE13: 0 | BF13: 195 | BG13: 0 | BH13: 0.8393333333 | BI13: 150
A14: =A13+1 -> 11 | B14: s1500 | C14: 6 | D14: 35.16854525 | E14: Attic | F14: 20 | G14: Attic | H14: 50 | I14: 1500 | J14: 14250 | K14: 0 | L14: 1259 | M14: 500 | N14: 48.75 | O14: 48.75 | P14: 48.75 | Q14: 48.75 | R14: 40 | S14: 2 | T14: 500 | U14: 90 | V14: 0 | W14: 0 | X14: 28.5 | Y14: 50 | Z14: 4.5 | AA14: 4.5 | AB14: 1 | AC14: 50 | AD14: 4 | AE14: 0 | AF14: 0 | AG14: 1 | AH14: 0.65 | AI14: townhome | AJ14: sf | AK14: 1.69 | AL14: 1.69 | AM14: 1 | AN14: 9.5 | AO14: 3 | AP14: 28.5 | AQ14: FALSE | AR14: 3 | AS14: 75 | AT14: 0.13 | AU14: 20 | AV14: 25 | AW14: 5 | AX14: TRUE | AY14: 1500 | AZ14: 5000 | BA14: 50 | BB14: 50 | BC14: 0 | BD14: 1024 | BE14: 0 | BF14: 195 | BG14: 500 | BH14: 0.8393333333 | BI14: 70
A15: =A14+1 -> 12 | B15: s1000 | C15: 6 | D15: 35.16854525 | E15: In | F15: 0 | G15: In | H15: 0 | I15: 26400 | J15: 237600 | K15: 0 | L15: 10152 | M15: 8800 | N15: 990 | O15: 990 | P15: 990 | Q15: 990 | R15: 84 | S15: 2 | T15: 8800 | U15: 376 | V15: 0 | W15: 0 | X15: 27 | Y15: 1200 | Z15: 4.5 | AA15: 4.5 | AB15: 1 | AC15: 1200 | AD15: 4 | AE15: 0 | AF15: 0 | AG15: 1 | AH15: 0.65 | AI15: double loaded corridor | AJ15: mf | AK15: 1.69 | AL15: 40.56 | AM15: 24 | AN15: 9 | AO15: 3 | AP15: 27 | AQ15: TRUE | AR15: 2 | AS15: 1332 | AT15: 0.15 | AU15: 88 | AV15: 100 | AW15: 6 | AX15: TRUE | AY15: 1100 | AZ15: 1500 | BA15: 50 | BB15: 50 | BC15: 0 | BD15: 6108 | BE15: 0 | BF15: 3960 | BG15: 8800 | BH15: 0.3845454545 | BI15: 0
A16: 13 | B16: c1904 | C16: 4 | D16: 17.58427263 | E16: In | F16: 280 | G16: In | H16: 70 | I16: 1904 | J16: 16184 | K16: 0 | L16: 1632 | M16: 952 | N16: 71.4 | O16: 71.4 | P16: 71.4 | Q16: 71.4 | R16: 40 | S16: 1 | T16: 952 | U16: 96 | V16: 1 | W16: 2 | X16: 17 | Y16: 100 | Z16: 4.5 | AA16: 4.5 | AB16: 1 | AC16: 100 | AD16: 4 | AE16: 0 | AF16: 0 | AG16: 1 | AH16: 0.65 | AI16: garden style | AJ16: mf | AK16: 1.69 | AL16: 3.38 | AM16: 2 | AN16: 8.5 | AO16: 2 | AP16: 17 | AQ16: TRUE | AR16: 2 | AS16: 102.12 | AT16: 0.15 | AU16: 28 | AV16: 34 | AW16: 7 | AX16: FALSE | AY16: 952 | AZ16: 1500 | BA16: 50 | BB16: 50 | BC16: 952 | BD16: 1306.4 | BE16: 0 | BF16: 285.6 | BG16: 0 | BH16: 0.8571428571 | BI16: 350
A17: 14 | B17: c2856 | C17: 6 | D17: 23.44569684 | E17: In | F17: 280 | G17: In | H17: 70 | I17: 2856 | J17: 24276 | K17: 0 | L17: 2448 | M17: 952 | N17: 107.1 | O17: 107.1 | P17: 107.1 | Q17: 107.1 | R17: 60 | S17: 1 | T17: 952 | U17: 96 | V17: 1 | W17: 2 | X17: 25.5 | Y17: 150 | Z17: 4.5 | AA17: 4.5 | AB17: 1 | AC17: 150 | AD17: 4 | AE17: 0 | AF17: 0 | AG17: 1 | AH17: 0.65 | AI17: garden style | AJ17: mf | AK17: 1.69 | AL17: 5.07 | AM17: 3 | AN17: 8.5 | AO17: 3 | AP17: 25.5 | AQ17: TRUE | AR17: 2 | AS17: 153.18 | AT17: 0.15 | AU17: 28 | AV17: 34 | AW17: 7 | AX17: FALSE | AY17: 952 | AZ17: 1500 | BA17: 50 | BB17: 50 | BC17: 952 | BD17: 1959.6 | BE17: 0 | BF17: 428.4 | BG17: 0 | BH17: 0.8571428571 | BI17: 350
A18: 15 | B18: s1904 | C18: 4 | D18: 17.58427263 | E18: In | F18: 280 | G18: In | H18: 70 | I18: 1904 | J18: 16184 | K18: 0 | L18: 1632 | M18: 952 | N18: 71.4 | O18: 71.4 | P18: 71.4 | Q18: 71.4 | R18: 40 | S18: 2 | T18: 952 | U18: 96 | V18: 0 | W18: 0 | X18: 17 | Y18: 100 | Z18: 4.5 | AA18: 4.5 | AB18: 1 | AC18: 100 | AD18: 4 | AE18: 0 | AF18: 0 | AG18: 1 | AH18: 0.65 | AI18: garden style | AJ18: mf | AK18: 1.69 | AL18: 3.38 | AM18: 2 | AN18: 8.5 | AO18: 2 | AP18: 17 | AQ18: TRUE | AR18: 2 | AS18: 102.12 | AT18: 0.15 | AU18: 28 | AV18: 34 | AW18: 7 | AX18: FALSE | AY18: 952 | AZ18: 1500 | BA18: 50 | BB18: 50 | BC18: 0 | BD18: 1306.4 | BE18: 0 | BF18: 285.6 | BG18: 952 | BH18: 0.8571428571 | BI18: 350
A19: 16 | B19: s2856 | C19: 6 | D19: 23.44569684 | E19: In | F19: 280 | G19: In | H19: 70 | I19: 2856 | J19: 24276 | K19: 0 | L19: 2448 | M19: 952 | N19: 107.1 | O19: 107.1 | P19: 107.1 | Q19: 107.1 | R19: 60 | S19: 2 | T19: 952 | U19: 96 | V19: 0 | W19: 0 | X19: 25.5 | Y19: 150 | Z19: 4.5 | AA19: 4.5 | AB19: 1 | AC19: 150 | AD19: 4 | AE19: 0 | AF19: 0 | AG19: 1 | AH19: 0.65 | AI19: garden style | AJ19: mf | AK19: 1.69 | AL19: 5.07 | AM19: 3 | AN19: 8.5 | AO19: 3 | AP19: 25.5 | AQ19: TRUE | AR19: 2 | AS19: 153.18 | AT19: 0.15 | AU19: 28 | AV19: 34 | AW19: 7 | AX19: FALSE | AY19: 952 | AZ19: 1500 | BA19: 50 | BB19: 50 | BC19: 0 | BD19: 1959.6 | BE19: 0 | BF19: 428.4 | BG19: 952 | BH19: 0.8571428571 | BI19: 350
A20: 17 | B20: s952 | C20: 6 | D20: 35.16854525 | E20: In | F20: 280 | G20: In | H20: 70 | I20: 7616 | J20: 64736 | K20: 0 | L20: 6528 | M20: 3808 | N20: 285.6 | O20: 285.6 | P20: 285.6 | Q20: 285.6 | R20: 160 | S20: 2 | T20: 3808 | U20: 328 | V20: 0 | W20: 0 | X20: 17 | Y20: 400 | Z20: 4.5 | AA20: 4.5 | AB20: 1 | AC20: 400 | AD20: 4 | AE20: 0 | AF20: 0 | AG20: 1 | AH20: 0.65 | AI20: garden style | AJ20: sf | AK20: 1.69 | AL20: 13.52 | AM20: 8 | AN20: 8.5 | AO20: 2 | AP20: 17 | AQ20: TRUE | AR20: 2 | AS20: 408.48 | AT20: 0.15 | AU20: 28 | AV20: 136 | AW20: 7 | AX20: TRUE | AY20: 952 | AZ20: 1500 | BA20: 50 | BB20: 50 | BC20: 0 | BD20: 5225.6 | BE20: 0 | BF20: 1142.4 | BG20: 3808 | BH20: 0.8571428571 | BI20: 350

Sheet Agreement Not Accepted (hidden)
B2: Total UA Alternative Calculator
B4: Terms of use were not accepted.
B6: Please click on "Review & Accept Terms of Use" button below to try again.
B8: For Assistance please contact:
B9: Carolyn Roos
B10: Washington State University Energy Program
B11: roosc@energy.wsu.edu
B12: Please include 'UA Alternative Calculator' in the subject line.

Sheet UserRegistration (hidden)
A1: User Registration | B1: ='Group R'!E2 -> 0
A3: First Name | B3: Carolyn
A4: Last Name | B4: Roos
A5: Registration Date: | B5: 2020-08-15
A6: Version | B6: Version: 2015-2018 Total UA Alternative Worksheet~20200814a~C2200-1.xlsm, 8/14/2020 7:04:19 PM
A7: Company | B7: WSUEP
A8: Demographic
A9: ContactInfo1
A10: ContactInfo2
A11: ContactInfo3
A12: ContactInfo4
A13: City | B13: Olympia
A14: State
A15: Zipcode
A16: Add to Mailing List? | B16: No
A17: Registrations with this file | B17: 1
